Body Name,Body,Supplier,Transaction Number,Payment Date,Amount,Directorate,Organisational Unit,Cost Centre/Detail code,Cost Centre Description,Details Code Description
Ashfield District Council,37UB,Inspire,V923750,04/06/2020,129.80,R & B Transformation 2,Suspense & Overall Control,Z99026/Z999,Control Accounts,Credit control totals
Ashfield District Council,37UB,Inspire,V923751,04/06/2020,190.00,R & B Transformation 2,Suspense & Overall Control,Z99026/Z999,Control Accounts,Credit control totals
Ashfield District Council,37UB,Inspire,V923752,04/06/2020,168.40,R & B Transformation 2,Suspense & Overall Control,Z99026/Z999,Control Accounts,Credit control totals
Ashfield District Council,37UB,Inspire,V923753,04/06/2020,64.90,R & B Transformation 2,Suspense & Overall Control,Z99026/Z999,Control Accounts,Credit control totals
Ashfield District Council,37UB,Inspire,V923754,04/06/2020,84.20,R & B Transformation 2,Suspense & Overall Control,Z99026/Z999,Control Accounts,Credit control totals
Ashfield District Council,37UB,David P Formon B.D.C. Ltd,V926757,25/06/2020,845.00,Housing & Assets 2,Supplies & Services,G00002001/D200008,Capital Corporate,Payments to Contractors External
Ashfield District Council,37UB,Legrand Electric T/A Tynetec,V923680,11/06/2020,1914.84,Housing & Assets 2,Supplies & Services,G00002003/D200008,Capital Corporate,Payments to Contractors External
Ashfield District Council,37UB,Legrand Electric T/A Tynetec,V923681,11/06/2020,478.71,Housing & Assets 2,Supplies & Services,G00002003/D200008,Capital Corporate,Payments to Contractors External
Ashfield District Council,37UB,Legrand Electric T/A Tynetec,V922239,18/06/2020,498.80,Housing & Assets 2,Supplies & Services,G00002003/D200008,Capital Corporate,Payments to Contractors External
Ashfield District Council,37UB,Legrand Electric T/A Tynetec,V922239,18/06/2020,170.95,Housing & Assets 2,Supplies & Services,G00002003/D200008,Capital Corporate,Payments to Contractors External
Ashfield District Council,37UB,Legrand Electric T/A Tynetec,V922239,18/06/2020,22.66,Housing & Assets 2,Supplies & Services,G00002003/D200008,Capital Corporate,Payments to Contractors External
Ashfield District Council,37UB,Legrand Electric T/A Tynetec,V922239,18/06/2020,141.20,Housing & Assets 2,Supplies & Services,G00002003/D200008,Capital Corporate,Payments to Contractors External
Ashfield District Council,37UB,Legrand Electric T/A Tynetec,V922239,18/06/2020,1379.60,Housing & Assets 2,Supplies & Services,G00002003/D200008,Capital Corporate,Payments to Contractors External
Ashfield District Council,37UB,Legrand Electric T/A Tynetec,V922239,18/06/2020,83.10,Housing & Assets 2,Supplies & Services,G00002003/D200008,Capital Corporate,Payments to Contractors External
Ashfield District Council,37UB,Legrand Electric T/A Tynetec,V922239,18/06/2020,254.80,Housing & Assets 2,Supplies & Services,G00002003/D200008,Capital Corporate,Payments to Contractors External
Ashfield District Council,37UB,Legrand Electric T/A Tynetec,V922239,18/06/2020,593.32,Housing & Assets 2,Supplies & Services,G00002003/D200008,Capital Corporate,Payments to Contractors External
Ashfield District Council,37UB,Legrand Electric T/A Tynetec,V922239,18/06/2020,73.75,Housing & Assets 2,Supplies & Services,G00002003/D200008,Capital Corporate,Payments to Contractors External
Ashfield District Council,37UB,Legrand Electric T/A Tynetec,V922239,18/06/2020,734.75,Housing & Assets 2,Supplies & Services,G00002003/D200008,Capital Corporate,Payments to Contractors External
Ashfield District Council,37UB,Neil Shacklock Contractors Ltd,V925856,11/06/2020,2250.00,Housing & Assets 2,Supplies & Services,G00002002/D200008,Capital Corporate,Payments to Contractors External
Ashfield District Council,37UB,PB Property Developments,V926177,18/06/2020,5862.00,Housing & Assets 2,Supplies & Services,G00002001/D200008,Capital Corporate,Payments to Contractors External
Ashfield District Council,37UB,PB Property Developments,V926178,18/06/2020,19361.00,Housing & Assets 2,Supplies & Services,G00002001/D200008,Capital Corporate,Payments to Contractors External
Ashfield District Council,37UB,PB Property Developments,V926183,18/06/2020,6225.91,Housing & Assets 2,Supplies & Services,G00002001/D200008,Capital Corporate,Payments to Contractors External
Ashfield District Council,37UB,Dell Products,V923048,11/06/2020,2100.00,R & B Transformation 2,Supplies & Services,C00244/D200008,Capital Corporate,Payments to Contractors External
Ashfield District Council,37UB,Dell Products,V923990,11/06/2020,1725.00,R & B Transformation 2,Supplies & Services,C00244/D200008,Capital Corporate,Payments to Contractors External
Ashfield District Council,37UB,Dell Products,V923990,11/06/2020,5400.00,R & B Transformation 2,Supplies & Services,C00244/D200008,Capital Corporate,Payments to Contractors External
Ashfield District Council,37UB,UK Airsoft Retail Ltd,V925981,18/06/2020,1640.49,R & B Transformation 2,Supplies & Services,C00199/D200008,Area Consultative Group Scheme,Payments to Contractors External
Ashfield District Council,37UB,Faithful & Gould Ltd,V923507,04/06/2020,71587.29,Place & Communities 2,Supplies & Services,C00235/D200008,Capital Economy,Payments to Contractors External
Ashfield District Council,37UB,FMG Consulting Ltd,V925997,18/06/2020,2995.00,Place & Communities 2,Supplies & Services,C00235/D200008,Capital Economy,Payments to Contractors External
Ashfield District Council,37UB,FMG Consulting Ltd,V927033,25/06/2020,1000.00,Place & Communities 2,Supplies & Services,C00235/D200008,Capital Economy,Payments to Contractors External
Ashfield District Council,37UB,Zirkon Ltd,V926214,18/06/2020,16628.50,Place & Communities 2,Supplies & Services,c00235/D200008,Capital Economy,Payments to Contractors External
Ashfield District Council,37UB,Severn Trent Water Limited,V926187,18/06/2020,20000.00,R & B Transformation 2,Supplies & Services,C00235/D200008,Capital Economy,Payments to Contractors External
Ashfield District Council,37UB,Ackroyd Electrical Services Ltd,V927049,25/06/2020,2332.11,Place & Communities 2,Supplies & Services,C00125001/D200008,Capital Environment,Payments to Contractors External
Ashfield District Council,37UB,Ackroyd Electrical Services Ltd,V927049,25/06/2020,23580.24,Place & Communities 2,Supplies & Services,C00125001/D200008,Capital Environment,Payments to Contractors External
Ashfield District Council,37UB,RIBA Enterprises Ltd,V924165,11/06/2020,1225.00,Place & Communities 2,Supplies & Services,C00125001/D200008,Capital Environment,Payments to Contractors External
Ashfield District Council,37UB,Well Read,V923611,04/06/2020,945.00,Place & Communities 2,Supplies & Services,C00125001/D200008,Capital Environment,Payments to Contractors External
Ashfield District Council,37UB,Dell Products,V923048,11/06/2020,2099.99,R & B Transformation 2,Supplies & Services,G00930/D200008,Capital Housing Revenue,Payments to Contractors External
Ashfield District Council,37UB,Dell Products,V923990,11/06/2020,5400.00,R & B Transformation 2,Supplies & Services,G00930/D200008,Capital Housing Revenue,Payments to Contractors External
Ashfield District Council,37UB,Dell Products,V923990,11/06/2020,1725.00,R & B Transformation 2,Supplies & Services,G00930/D200008,Capital Housing Revenue,Payments to Contractors External
Ashfield District Council,37UB,J Tomlinson Ltd,V925931,11/06/2020,7287.24,R & B Transformation 2,Supplies & Services,G00450008/D200008,Capital Housing Revenue,Payments to Contractors External
Ashfield District Council,37UB,J Tomlinson Ltd,V925931,11/06/2020,4333.85,R & B Transformation 2,Supplies & Services,G00470001/D200008,Capital Housing Revenue,Payments to Contractors External
Ashfield District Council,37UB,J Tomlinson Ltd,V925931,11/06/2020,1419.77,R & B Transformation 2,Supplies & Services,G00450004/D200008,Capital Housing Revenue,Payments to Contractors External
Ashfield District Council,37UB,J Tomlinson Ltd,V925931,11/06/2020,6332.75,R & B Transformation 2,Supplies & Services,G00450007/D200008,Capital Housing Revenue,Payments to Contractors External
Ashfield District Council,37UB,J Tomlinson Ltd,V925931,11/06/2020,3314.81,R & B Transformation 2,Supplies & Services,G00450001/D200008,Capital Housing Revenue,Payments to Contractors External
Ashfield District Council,37UB,J Tomlinson Ltd,V925931,11/06/2020,1564.91,R & B Transformation 2,Supplies & Services,G00450005/D200008,Capital Housing Revenue,Payments to Contractors External
Ashfield District Council,37UB,Wilko Retail Limited,V923700,04/06/2020,51.67,R & B Transformation 2,Supplies & Services,G00450003/D200033,Capital Housing Revenue,Decoration Vouchers
Ashfield District Council,37UB,Wilko Retail Limited,V923756,04/06/2020,69.17,R & B Transformation 2,Supplies & Services,G00450003/D200033,Capital Housing Revenue,Decoration Vouchers
Ashfield District Council,37UB,Wilko Retail Limited,V924169,11/06/2020,60.00,R & B Transformation 2,Supplies & Services,G00450003/D200033,Capital Housing Revenue,Decoration Vouchers
Ashfield District Council,37UB,Wilko Retail Limited,V924170,11/06/2020,54.58,R & B Transformation 2,Supplies & Services,G00450003/D200033,Capital Housing Revenue,Decoration Vouchers
Ashfield District Council,37UB,Wilko Retail Limited,V924173,11/06/2020,63.83,R & B Transformation 2,Supplies & Services,G00450003/D200033,Capital Housing Revenue,Decoration Vouchers
Ashfield District Council,37UB,Wilko Retail Limited,V924174,11/06/2020,65.83,R & B Transformation 2,Supplies & Services,G00450003/D200033,Capital Housing Revenue,Decoration Vouchers
Ashfield District Council,37UB,Wilko Retail Limited,V924175,11/06/2020,224.17,R & B Transformation 2,Supplies & Services,G00450003/D200033,Capital Housing Revenue,Decoration Vouchers
Ashfield District Council,37UB,British Gas Business,V926773,25/06/2020,12.34,Housing & Assets 2,Premises Expenses,G51012/B102,Housing OP and SN,Electricity
Ashfield District Council,37UB,Hoot Fire & Security Ltd,V926062,18/06/2020,160.00,Housing & Assets 2,Premises Expenses,G51026/B003011,Housing OP and SN,Fire Alarms
Ashfield District Council,37UB,Hoot Fire & Security Ltd,V926063,18/06/2020,160.00,Housing & Assets 2,Premises Expenses,G51013/B003011,Housing OP and SN,Fire Alarms
Ashfield District Council,37UB,Hoot Fire & Security Ltd,V926064,18/06/2020,160.00,Housing & Assets 2,Premises Expenses,G51020/B003011,Housing OP and SN,Fire Alarms
Ashfield District Council,37UB,Hoot Fire & Security Ltd,V926065,18/06/2020,160.00,Housing & Assets 2,Premises Expenses,G51027/B003011,Housing OP and SN,Fire Alarms
Ashfield District Council,37UB,Hoot Fire & Security Ltd,V926066,18/06/2020,160.00,Housing & Assets 2,Premises Expenses,G51021/B003011,Housing OP and SN,Fire Alarms
Ashfield District Council,37UB,Hoot Fire & Security Ltd,V926203,18/06/2020,160.00,Housing & Assets 2,Premises Expenses,G51028/B003011,Housing OP and SN,Fire Alarms
Ashfield District Council,37UB,Hoot Fire & Security Ltd,V926269,18/06/2020,160.00,Housing & Assets 2,Premises Expenses,G51015/B002002,Housing OP and SN,"Fire,Intruder,CCTV ,Access Control"
Ashfield District Council,37UB,Morris Vermaport Ltd,V922297,04/06/2020,293.29,Housing & Assets 2,Premises Expenses,G51028/B003006,Housing OP and SN,Lift
Ashfield District Council,37UB,Morris Vermaport Ltd,V922327,04/06/2020,135.00,Housing & Assets 2,Premises Expenses,G51013/B003006,Housing OP and SN,Lift
Ashfield District Council,37UB,Morris Vermaport Ltd,V923488,04/06/2020,397.00,Housing & Assets 2,Premises Expenses,G51028/B003006,Housing OP and SN,Lift
Ashfield District Council,37UB,Morris Vermaport Ltd,V926216,18/06/2020,526.00,Housing & Assets 2,Premises Expenses,G51015/B003006,Housing OP and SN,Lift
Ashfield District Council,37UB,Morris Vermaport Ltd,V926217,18/06/2020,526.00,Housing & Assets 2,Premises Expenses,G51015/B003006,Housing OP and SN,Lift
Ashfield District Council,37UB,Morris Vermaport Ltd,V926218,18/06/2020,494.00,Housing & Assets 2,Premises Expenses,G51015/B003006,Housing OP and SN,Lift
Ashfield District Council,37UB,Morris Vermaport Ltd,V926220,18/06/2020,494.00,Housing & Assets 2,Premises Expenses,G51015/B003006,Housing OP and SN,Lift
Ashfield District Council,37UB,Morris Vermaport Ltd,V926160,25/06/2020,66.00,Housing & Assets 2,Premises Expenses,G51007/B003006,Housing OP and SN,Lift
Ashfield District Council,37UB,Morris Vermaport Ltd,V926160,25/06/2020,66.00,Housing & Assets 2,Premises Expenses,G51023/B003006,Housing OP and SN,Lift
Ashfield District Council,37UB,Morris Vermaport Ltd,V926160,25/06/2020,66.00,Housing & Assets 2,Premises Expenses,G51026/B003006,Housing OP and SN,Lift
Ashfield District Council,37UB,Morris Vermaport Ltd,V926160,25/06/2020,66.00,Housing & Assets 2,Premises Expenses,G51027/B003006,Housing OP and SN,Lift
Ashfield District Council,37UB,Morris Vermaport Ltd,V926160,25/06/2020,66.00,Housing & Assets 2,Premises Expenses,G51022/B003006,Housing OP and SN,Lift
Ashfield District Council,37UB,Morris Vermaport Ltd,V926160,25/06/2020,66.00,Housing & Assets 2,Premises Expenses,G51030/B003006,Housing OP and SN,Lift
Ashfield District Council,37UB,Morris Vermaport Ltd,V926160,25/06/2020,66.00,Housing & Assets 2,Premises Expenses,G51028/B003006,Housing OP and SN,Lift
Ashfield District Council,37UB,Morris Vermaport Ltd,V926160,25/06/2020,132.00,Housing & Assets 2,Premises Expenses,G51013/B003006,Housing OP and SN,Lift
Ashfield District Council,37UB,Morris Vermaport Ltd,V926160,25/06/2020,132.00,Housing & Assets 2,Premises Expenses,G51015/B003006,Housing OP and SN,Lift
Ashfield District Council,37UB,Morris Vermaport Ltd,V926160,25/06/2020,66.00,Housing & Assets 2,Premises Expenses,G51021/B003006,Housing OP and SN,Lift
Ashfield District Council,37UB,Morris Vermaport Ltd,V926172,25/06/2020,193.55,Housing & Assets 2,Premises Expenses,G51027/B003006,Housing OP and SN,Lift
Ashfield District Council,37UB,British Gas Business,V923943,11/06/2020,10.47,R & B Transformation 2,Premises Expenses,G51063/B102,Housing OP and SN,Electricity
Ashfield District Council,37UB,British Gas Business,V923943,11/06/2020,172.65,R & B Transformation 2,Premises Expenses,G51007/B102,Housing OP and SN,Electricity
Ashfield District Council,37UB,British Gas Business,V923943,11/06/2020,111.28,R & B Transformation 2,Premises Expenses,G51008/B102,Housing OP and SN,Electricity
Ashfield District Council,37UB,British Gas Business,V923943,11/06/2020,44.76,R & B Transformation 2,Premises Expenses,G51009/B102,Housing OP and SN,Electricity
Ashfield District Council,37UB,British Gas Business,V923943,11/06/2020,34.02,R & B Transformation 2,Premises Expenses,G51017/B102,Housing OP and SN,Electricity
Ashfield District Council,37UB,British Gas Business,V923943,11/06/2020,27.14,R & B Transformation 2,Premises Expenses,G51017/B102,Housing OP and SN,Electricity
Ashfield District Council,37UB,British Gas Business,V923943,11/06/2020,101.28,R & B Transformation 2,Premises Expenses,G51019/B102,Housing OP and SN,Electricity
Ashfield District Council,37UB,British Gas Business,V923943,11/06/2020,222.47,R & B Transformation 2,Premises Expenses,G51020/B102,Housing OP and SN,Electricity
Ashfield District Council,37UB,British Gas Business,V923943,11/06/2020,12.69,R & B Transformation 2,Premises Expenses,G51021/B102,Housing OP and SN,Electricity
Ashfield District Council,37UB,British Gas Business,V923943,11/06/2020,19.02,R & B Transformation 2,Premises Expenses,G51017/B102,Housing OP and SN,Electricity
Ashfield District Council,37UB,British Gas Business,V923943,11/06/2020,38.22,R & B Transformation 2,Premises Expenses,G51017/B102,Housing OP and SN,Electricity
Ashfield District Council,37UB,British Gas Business,V923943,11/06/2020,20.70,R & B Transformation 2,Premises Expenses,G51021/B102,Housing OP and SN,Electricity
Ashfield District Council,37UB,British Gas Business,V923943,11/06/2020,17.29,R & B Transformation 2,Premises Expenses,G51022/B102,Housing OP and SN,Electricity
Ashfield District Council,37UB,British Gas Business,V923943,11/06/2020,193.90,R & B Transformation 2,Premises Expenses,G51022/B102,Housing OP and SN,Electricity
Ashfield District Council,37UB,British Gas Business,V923943,11/06/2020,22.91,R & B Transformation 2,Premises Expenses,G51022/B102,Housing OP and SN,Electricity
Ashfield District Council,37UB,British Gas Business,V923943,11/06/2020,30.78,R & B Transformation 2,Premises Expenses,G51022/B102,Housing OP and SN,Electricity
Ashfield District Council,37UB,British Gas Business,V923943,11/06/2020,15.79,R & B Transformation 2,Premises Expenses,G51022/B102,Housing OP and SN,Electricity
Ashfield District Council,37UB,British Gas Business,V923943,11/06/2020,41.61,R & B Transformation 2,Premises Expenses,G51023/B102,Housing OP and SN,Electricity
Ashfield District Council,37UB,British Gas Business,V923943,11/06/2020,190.68,R & B Transformation 2,Premises Expenses,G51028/B102,Housing OP and SN,Electricity
Ashfield District Council,37UB,British Gas Business,V923943,11/06/2020,54.15,R & B Transformation 2,Premises Expenses,G51032/B102,Housing OP and SN,Electricity
Ashfield District Council,37UB,British Gas Business,V923943,11/06/2020,56.60,R & B Transformation 2,Premises Expenses,G51032/B102,Housing OP and SN,Electricity
Ashfield District Council,37UB,British Gas Business,V923943,11/06/2020,8.09,R & B Transformation 2,Premises Expenses,G51033/B102,Housing OP and SN,Electricity
Ashfield District Council,37UB,British Gas Business,V923943,11/06/2020,55.88,R & B Transformation 2,Premises Expenses,G51033/B102,Housing OP and SN,Electricity
Ashfield District Council,37UB,British Gas Business,V923943,11/06/2020,25.59,R & B Transformation 2,Premises Expenses,G51029/B102,Housing OP and SN,Electricity
Ashfield District Council,37UB,British Gas Business,V923943,11/06/2020,49.91,R & B Transformation 2,Premises Expenses,G51034/B102,Housing OP and SN,Electricity
Ashfield District Council,37UB,British Gas Business,V923943,11/06/2020,28.59,R & B Transformation 2,Premises Expenses,G51035/B102,Housing OP and SN,Electricity
Ashfield District Council,37UB,British Gas Business,V923943,11/06/2020,14.15,R & B Transformation 2,Premises Expenses,G51036/B102,Housing OP and SN,Electricity
Ashfield District Council,37UB,British Gas Business,V923943,11/06/2020,17.86,R & B Transformation 2,Premises Expenses,G51036/B102,Housing OP and SN,Electricity
Ashfield District Council,37UB,British Gas Business,V923943,11/06/2020,27.98,R & B Transformation 2,Premises Expenses,G51037/B102,Housing OP and SN,Electricity
Ashfield District Council,37UB,British Gas Business,V923943,11/06/2020,16.14,R & B Transformation 2,Premises Expenses,G51039/B102,Housing OP and SN,Electricity
Ashfield District Council,37UB,British Gas Business,V923943,11/06/2020,36.06,R & B Transformation 2,Premises Expenses,G51040/B102,Housing OP and SN,Electricity
Ashfield District Council,37UB,British Gas Business,V923943,11/06/2020,17.86,R & B Transformation 2,Premises Expenses,G51042/B102,Housing OP and SN,Electricity
Ashfield District Council,37UB,British Gas Business,V923943,11/06/2020,15.48,R & B Transformation 2,Premises Expenses,G51042/B102,Housing OP and SN,Electricity
Ashfield District Council,37UB,British Gas Business,V923943,11/06/2020,19.72,R & B Transformation 2,Premises Expenses,G51042/B102,Housing OP and SN,Electricity
Ashfield District Council,37UB,British Gas Business,V923943,11/06/2020,14.15,R & B Transformation 2,Premises Expenses,G51049/B102,Housing OP and SN,Electricity
Ashfield District Council,37UB,British Gas Business,V923943,11/06/2020,21.17,R & B Transformation 2,Premises Expenses,G51049/B102,Housing OP and SN,Electricity
Ashfield District Council,37UB,British Gas Business,V923943,11/06/2020,8.37,R & B Transformation 2,Premises Expenses,G51050/B102,Housing OP and SN,Electricity
Ashfield District Council,37UB,British Gas Business,V923943,11/06/2020,16.01,R & B Transformation 2,Premises Expenses,G51042/B102,Housing OP and SN,Electricity
Ashfield District Council,37UB,British Gas Business,V923943,11/06/2020,16.78,R & B Transformation 2,Premises Expenses,G51044/B102,Housing OP and SN,Electricity
Ashfield District Council,37UB,British Gas Business,V923943,11/06/2020,17.20,R & B Transformation 2,Premises Expenses,G51048/B102,Housing OP and SN,Electricity
Ashfield District Council,37UB,British Gas Business,V923943,11/06/2020,15.61,R & B Transformation 2,Premises Expenses,G51049/B102,Housing OP and SN,Electricity
Ashfield District Council,37UB,British Gas Business,V923943,11/06/2020,12.69,R & B Transformation 2,Premises Expenses,G51051/B102,Housing OP and SN,Electricity
Ashfield District Council,37UB,British Gas Business,V923943,11/06/2020,10.18,R & B Transformation 2,Premises Expenses,G51052/B102,Housing OP and SN,Electricity
Ashfield District Council,37UB,British Gas Business,V923943,11/06/2020,12.83,R & B Transformation 2,Premises Expenses,G51052/B102,Housing OP and SN,Electricity
Ashfield District Council,37UB,British Gas Business,V923943,11/06/2020,9.49,R & B Transformation 2,Premises Expenses,G51055/B102,Housing OP and SN,Electricity
Ashfield District Council,37UB,British Gas Business,V923943,11/06/2020,9.63,R & B Transformation 2,Premises Expenses,G51055/B102,Housing OP and SN,Electricity
Ashfield District Council,37UB,British Gas Business,V923943,11/06/2020,19.19,R & B Transformation 2,Premises Expenses,G51058/B102,Housing OP and SN,Electricity
Ashfield District Council,37UB,British Gas Business,V923943,11/06/2020,16.14,R & B Transformation 2,Premises Expenses,G51060/B102,Housing OP and SN,Electricity
Ashfield District Council,37UB,British Gas Business,V923943,11/06/2020,17.73,R & B Transformation 2,Premises Expenses,G51060/B102,Housing OP and SN,Electricity
Ashfield District Council,37UB,British Gas Business,V923943,11/06/2020,31.49,R & B Transformation 2,Premises Expenses,G51057/B102,Housing OP and SN,Electricity
Ashfield District Council,37UB,British Gas Business,V923943,11/06/2020,15.48,R & B Transformation 2,Premises Expenses,G51058/B102,Housing OP and SN,Electricity
Ashfield District Council,37UB,British Gas Business,V923943,11/06/2020,22.53,R & B Transformation 2,Premises Expenses,G51059/B102,Housing OP and SN,Electricity
Ashfield District Council,37UB,British Gas Business,V923943,11/06/2020,11.37,R & B Transformation 2,Premises Expenses,G51061/B102,Housing OP and SN,Electricity
Ashfield District Council,37UB,British Gas Business,V923943,11/06/2020,16.92,R & B Transformation 2,Premises Expenses,G51045/B102,Housing OP and SN,Electricity
Ashfield District Council,37UB,British Gas Business,V923943,11/06/2020,10.89,R & B Transformation 2,Premises Expenses,G51046/B102,Housing OP and SN,Electricity
Ashfield District Council,37UB,British Gas Business,V923943,11/06/2020,13.84,R & B Transformation 2,Premises Expenses,G51046/B102,Housing OP and SN,Electricity
Ashfield District Council,37UB,British Gas Business,V923943,11/06/2020,18.60,R & B Transformation 2,Premises Expenses,G51046/B102,Housing OP and SN,Electricity
Ashfield District Council,37UB,British Gas Business,V923943,11/06/2020,51.21,R & B Transformation 2,Premises Expenses,G51047/B102,Housing OP and SN,Electricity
Ashfield District Council,37UB,British Gas Business,V923943,11/06/2020,14.68,R & B Transformation 2,Premises Expenses,G51053/B102,Housing OP and SN,Electricity
Ashfield District Council,37UB,British Gas Business,V923943,11/06/2020,13.75,R & B Transformation 2,Premises Expenses,G51054/B102,Housing OP and SN,Electricity
Ashfield District Council,37UB,British Gas Business,V923943,11/06/2020,14.32,R & B Transformation 2,Premises Expenses,G51056/B102,Housing OP and SN,Electricity
Ashfield District Council,37UB,British Gas Business,V923943,11/06/2020,11.17,R & B Transformation 2,Premises Expenses,G51050/B102,Housing OP and SN,Electricity
Ashfield District Council,37UB,British Gas Business,V923943,11/06/2020,11.10,R & B Transformation 2,Premises Expenses,G51054/B102,Housing OP and SN,Electricity
Ashfield District Council,37UB,British Gas Business,V923943,11/06/2020,11.77,R & B Transformation 2,Premises Expenses,G51054/B102,Housing OP and SN,Electricity
Ashfield District Council,37UB,British Gas Business,V923943,11/06/2020,18.26,R & B Transformation 2,Premises Expenses,G51060/B102,Housing OP and SN,Electricity
Ashfield District Council,37UB,British Gas Business,V923943,11/06/2020,13.22,R & B Transformation 2,Premises Expenses,G51061/B102,Housing OP and SN,Electricity
Ashfield District Council,37UB,British Gas Business,V923943,11/06/2020,13.09,R & B Transformation 2,Premises Expenses,G51061/B102,Housing OP and SN,Electricity
Ashfield District Council,37UB,British Gas Business,V923943,11/06/2020,13.09,R & B Transformation 2,Premises Expenses,G51061/B102,Housing OP and SN,Electricity
Ashfield District Council,37UB,British Gas Business,V923943,11/06/2020,16.40,R & B Transformation 2,Premises Expenses,G51062/B102,Housing OP and SN,Electricity
Ashfield District Council,37UB,British Gas Business,V923943,11/06/2020,12.96,R & B Transformation 2,Premises Expenses,G51041/B102,Housing OP and SN,Electricity
Ashfield District Council,37UB,British Gas Business,V923943,11/06/2020,18.66,R & B Transformation 2,Premises Expenses,G51041/B102,Housing OP and SN,Electricity
Ashfield District Council,37UB,British Gas Business,V923943,11/06/2020,14.02,R & B Transformation 2,Premises Expenses,G51039/B102,Housing OP and SN,Electricity
Ashfield District Council,37UB,British Gas Business,V923943,11/06/2020,14.55,R & B Transformation 2,Premises Expenses,G51039/B102,Housing OP and SN,Electricity
Ashfield District Council,37UB,British Gas Business,V923943,11/06/2020,10.84,R & B Transformation 2,Premises Expenses,G51043/B102,Housing OP and SN,Electricity
Ashfield District Council,37UB,British Gas Business,V923943,11/06/2020,16.87,R & B Transformation 2,Premises Expenses,G51043/B102,Housing OP and SN,Electricity
Ashfield District Council,37UB,British Gas Business,V923943,11/06/2020,18.94,R & B Transformation 2,Premises Expenses,G51043/B102,Housing OP and SN,Electricity
Ashfield District Council,37UB,British Gas Business,V923943,11/06/2020,22.37,R & B Transformation 2,Premises Expenses,G51043/B102,Housing OP and SN,Electricity
Ashfield District Council,37UB,British Gas Business,V923943,11/06/2020,16.92,R & B Transformation 2,Premises Expenses,G51046/B102,Housing OP and SN,Electricity
Ashfield District Council,37UB,British Gas Business,V923943,11/06/2020,22.23,R & B Transformation 2,Premises Expenses,G51048/B102,Housing OP and SN,Electricity
Ashfield District Council,37UB,British Gas Business,V923943,11/06/2020,10.61,R & B Transformation 2,Premises Expenses,G51044/B102,Housing OP and SN,Electricity
Ashfield District Council,37UB,British Gas Business,V923943,11/06/2020,55.75,R & B Transformation 2,Premises Expenses,G51032/B102,Housing OP and SN,Electricity
Ashfield District Council,37UB,British Gas Business,V923943,11/06/2020,37.62,R & B Transformation 2,Premises Expenses,G51032/B102,Housing OP and SN,Electricity
Ashfield District Council,37UB,British Gas Business,V923943,11/06/2020,53.86,R & B Transformation 2,Premises Expenses,G51032/B102,Housing OP and SN,Electricity
Ashfield District Council,37UB,British Gas Business,V923943,11/06/2020,244.54,R & B Transformation 2,Premises Expenses,G51030/B102,Housing OP and SN,Electricity
Ashfield District Council,37UB,British Gas Business,V923943,11/06/2020,43.64,R & B Transformation 2,Premises Expenses,G51032/B102,Housing OP and SN,Electricity
Ashfield District Council,37UB,British Gas Business,V923943,11/06/2020,49.19,R & B Transformation 2,Premises Expenses,G51032/B102,Housing OP and SN,Electricity
Ashfield District Council,37UB,British Gas Business,V923943,11/06/2020,34.65,R & B Transformation 2,Premises Expenses,G51032/B102,Housing OP and SN,Electricity
Ashfield District Council,37UB,British Gas Business,V923943,11/06/2020,52.32,R & B Transformation 2,Premises Expenses,G51032/B102,Housing OP and SN,Electricity
Ashfield District Council,37UB,British Gas Business,V923943,11/06/2020,10.71,R & B Transformation 2,Premises Expenses,G51033/B102,Housing OP and SN,Electricity
Ashfield District Council,37UB,British Gas Business,V923943,11/06/2020,29.96,R & B Transformation 2,Premises Expenses,G51038/B102,Housing OP and SN,Electricity
Ashfield District Council,37UB,British Gas Business,V923943,11/06/2020,15.08,R & B Transformation 2,Premises Expenses,G51039/B102,Housing OP and SN,Electricity
Ashfield District Council,37UB,British Gas Business,V923943,11/06/2020,24.62,R & B Transformation 2,Premises Expenses,G51009/B102,Housing OP and SN,Electricity
Ashfield District Council,37UB,British Gas Business,V923943,11/06/2020,11.28,R & B Transformation 2,Premises Expenses,G51012/B102,Housing OP and SN,Electricity
Ashfield District Council,37UB,British Gas Business,V923943,11/06/2020,10.88,R & B Transformation 2,Premises Expenses,G51012/B102,Housing OP and SN,Electricity
Ashfield District Council,37UB,British Gas Business,V923943,11/06/2020,18.79,R & B Transformation 2,Premises Expenses,G51013/B102,Housing OP and SN,Electricity
Ashfield District Council,37UB,British Gas Business,V923943,11/06/2020,89.60,R & B Transformation 2,Premises Expenses,G51015/B102,Housing OP and SN,Electricity
Ashfield District Council,37UB,British Gas Business,V923943,11/06/2020,90.91,R & B Transformation 2,Premises Expenses,G51015/B102,Housing OP and SN,Electricity
Ashfield District Council,37UB,British Gas Business,V923943,11/06/2020,39.65,R & B Transformation 2,Premises Expenses,G51009/B102,Housing OP and SN,Electricity
Ashfield District Council,37UB,British Gas Business,V923943,11/06/2020,90.71,R & B Transformation 2,Premises Expenses,G51009/B102,Housing OP and SN,Electricity
Ashfield District Council,37UB,British Gas Business,V923943,11/06/2020,11.88,R & B Transformation 2,Premises Expenses,G51012/B102,Housing OP and SN,Electricity
Ashfield District Council,37UB,British Gas Business,V923943,11/06/2020,98.73,R & B Transformation 2,Premises Expenses,G51015/B102,Housing OP and SN,Electricity
Ashfield District Council,37UB,British Gas Business,V923943,11/06/2020,581.82,R & B Transformation 2,Premises Expenses,G51015/B102,Housing OP and SN,Electricity
Ashfield District Council,37UB,British Gas Business,V923943,11/06/2020,302.56,R & B Transformation 2,Premises Expenses,G51023/B102,Housing OP and SN,Electricity
Ashfield District Council,37UB,British Gas Business,V923943,11/06/2020,44.60,R & B Transformation 2,Premises Expenses,G51024/B102,Housing OP and SN,Electricity
Ashfield District Council,37UB,British Gas Business,V923943,11/06/2020,13.42,R & B Transformation 2,Premises Expenses,G51027/B102,Housing OP and SN,Electricity
Ashfield District Council,37UB,British Gas Business,V923943,11/06/2020,14.82,R & B Transformation 2,Premises Expenses,G51029/B102,Housing OP and SN,Electricity
Ashfield District Council,37UB,British Gas Business,V923943,11/06/2020,18.60,R & B Transformation 2,Premises Expenses,G51029/B102,Housing OP and SN,Electricity
Ashfield District Council,37UB,British Gas Business,V923943,11/06/2020,886.10,R & B Transformation 2,Premises Expenses,G51021/B102,Housing OP and SN,Electricity
Ashfield District Council,37UB,British Gas Business,V923943,11/06/2020,7.41,R & B Transformation 2,Premises Expenses,G51030/B102,Housing OP and SN,Electricity
Ashfield District Council,37UB,British Gas Business,V923943,11/06/2020,31.71,R & B Transformation 2,Premises Expenses,G51032/B102,Housing OP and SN,Electricity
Ashfield District Council,37UB,British Gas Business,V923943,11/06/2020,38.99,R & B Transformation 2,Premises Expenses,G51032/B102,Housing OP and SN,Electricity
Ashfield District Council,37UB,Daisy Telecoms Ltd,V924014,11/06/2020,12.94,R & B Transformation 2,Premises Expenses,G51023/B003011,Housing OP and SN,Fire Alarms
Ashfield District Council,37UB,Daisy Telecoms Ltd,V924014,11/06/2020,27.08,R & B Transformation 2,Supplies & Services,G51027/D301006,Housing OP and SN,Alarm Lines
Ashfield District Council,37UB,Daisy Telecoms Ltd,V924014,11/06/2020,23.00,R & B Transformation 2,Supplies & Services,G51028/D301002,Housing OP and SN,Telephones
Ashfield District Council,37UB,Daisy Telecoms Ltd,V924014,11/06/2020,26.08,R & B Transformation 2,Supplies & Services,G51028/D301006,Housing OP and SN,Alarm Lines
Ashfield District Council,37UB,Daisy Telecoms Ltd,V924014,11/06/2020,12.94,R & B Transformation 2,Premises Expenses,G51009/B003011,Housing OP and SN,Fire Alarms
Ashfield District Council,37UB,Daisy Telecoms Ltd,V924014,11/06/2020,75.56,R & B Transformation 2,Supplies & Services,G51015/D301006,Housing OP and SN,Alarm Lines
Ashfield District Council,37UB,Daisy Telecoms Ltd,V924014,11/06/2020,39.67,R & B Transformation 2,Supplies & Services,G51021/D301006,Housing OP and SN,Alarm Lines
Ashfield District Council,37UB,Daisy Telecoms Ltd,V924014,11/06/2020,12.94,R & B Transformation 2,Supplies & Services,G51022/D301002,Housing OP and SN,Telephones
Ashfield District Council,37UB,Daisy Telecoms Ltd,V924014,11/06/2020,44.12,R & B Transformation 2,Supplies & Services,G51030/D301006,Housing OP and SN,Alarm Lines
Ashfield District Council,37UB,Daisy Telecoms Ltd,V924014,11/06/2020,23.00,R & B Transformation 2,Supplies & Services,G51015/D301002,Housing OP and SN,Telephones
Ashfield District Council,37UB,Daisy Telecoms Ltd,V924014,11/06/2020,23.00,R & B Transformation 2,Supplies & Services,G51030/D301002,Housing OP and SN,Telephones
Ashfield District Council,37UB,Daisy Telecoms Ltd,V924014,11/06/2020,35.94,R & B Transformation 2,Supplies & Services,G51027/D301002,Housing OP and SN,Telephones
Ashfield District Council,37UB,Daisy Telecoms Ltd,V924014,11/06/2020,18.14,R & B Transformation 2,Premises Expenses,G51028/B003011,Housing OP and SN,Fire Alarms
Ashfield District Council,37UB,Daisy Telecoms Ltd,V924014,11/06/2020,12.94,R & B Transformation 2,Premises Expenses,G51030/B004006,Housing OP and SN,General; Building Repairs & Courts
Ashfield District Council,37UB,Daisy Telecoms Ltd,V924014,11/06/2020,207.91,R & B Transformation 2,Premises Expenses,G51001/B003010,Housing OP and SN,C C T V Cameras
Ashfield District Council,37UB,Daisy Telecoms Ltd,V924014,11/06/2020,142.32,R & B Transformation 2,Supplies & Services,G51001/D301002,Housing OP and SN,Telephones
Ashfield District Council,37UB,Daisy Telecoms Ltd,V924014,11/06/2020,12.94,R & B Transformation 2,Premises Expenses,G51008/B003011,Housing OP and SN,Fire Alarms
Ashfield District Council,37UB,Daisy Telecoms Ltd,V924014,11/06/2020,64.82,R & B Transformation 2,Supplies & Services,G51022/D301006,Housing OP and SN,Alarm Lines
Ashfield District Council,37UB,Daisy Telecoms Ltd,V924014,11/06/2020,13.19,R & B Transformation 2,Supplies & Services,G51023/D301006,Housing OP and SN,Alarm Lines
Ashfield District Council,37UB,Daisy Telecoms Ltd,V924014,11/06/2020,59.21,R & B Transformation 2,Supplies & Services,G51026/D301006,Housing OP and SN,Alarm Lines
Ashfield District Council,37UB,Daisy Telecoms Ltd,V924015,11/06/2020,6.57,R & B Transformation 2,Supplies & Services,G51028/D301002,Housing OP and SN,Telephones
Ashfield District Council,37UB,Daisy Telecoms Ltd,V924015,11/06/2020,5.49,R & B Transformation 2,Supplies & Services,G51027/D301002,Housing OP and SN,Telephones
Ashfield District Council,37UB,Daisy Telecoms Ltd,V924015,11/06/2020,6.57,R & B Transformation 2,Supplies & Services,G51030/D301002,Housing OP and SN,Telephones
Ashfield District Council,37UB,Daisy Telecoms Ltd,V924015,11/06/2020,13.14,R & B Transformation 2,Supplies & Services,G51015/D301002,Housing OP and SN,Telephones
Ashfield District Council,37UB,EDF Energy 1 Ltd,V925932,18/06/2020,-1825.89,R & B Transformation 2,Premises Expenses,G51026/B102,Housing OP and SN,Electricity
Ashfield District Council,37UB,EDF Energy 1 Ltd,V925932,18/06/2020,1283.41,R & B Transformation 2,Premises Expenses,G51026/B102,Housing OP and SN,Electricity
Ashfield District Council,37UB,EDF Energy 1 Ltd,V925932,18/06/2020,1688.41,R & B Transformation 2,Premises Expenses,G51026/B102,Housing OP and SN,Electricity
Ashfield District Council,37UB,Water Plus Limited,V923968,11/06/2020,114.23,R & B Transformation 2,Premises Expenses,G51028/B401,Housing OP and SN,Water rates
Ashfield District Council,37UB,Water Plus Limited,V924007,11/06/2020,56.10,R & B Transformation 2,Premises Expenses,G51021/B401,Housing OP and SN,Water rates
Ashfield District Council,37UB,Water Plus Limited,V926003,18/06/2020,146.33,R & B Transformation 2,Premises Expenses,G51020/B401,Housing OP and SN,Water rates
Ashfield District Council,37UB,Water Plus Limited,V926189,18/06/2020,43.43,R & B Transformation 2,Premises Expenses,g51022/b401,Housing OP and SN,Water rates
Ashfield District Council,37UB,Water Plus Limited,V926190,18/06/2020,74.50,R & B Transformation 2,Premises Expenses,G51022/B401,Housing OP and SN,Water rates
Ashfield District Council,37UB,British Gas Business,V926773,25/06/2020,40.91,Housing & Assets 2,Premises Expenses,G23100002/B102,Housing Revenue Account,Electricity
Ashfield District Council,37UB,British Gas Business,V926773,25/06/2020,81.70,Housing & Assets 2,Premises Expenses,G23100003/B102,Housing Revenue Account,Electricity
Ashfield District Council,37UB,British Gas Business,V926773,25/06/2020,26.08,Housing & Assets 2,Premises Expenses,G23100004/B102,Housing Revenue Account,Electricity
Ashfield District Council,37UB,British Gas Business,V926773,25/06/2020,38.62,Housing & Assets 2,Premises Expenses,G23100001/B102,Housing Revenue Account,Electricity
Ashfield District Council,37UB,British Gas Business,V926773,25/06/2020,23.82,Housing & Assets 2,Premises Expenses,G23100005/B102,Housing Revenue Account,Electricity
Ashfield District Council,37UB,British Gas Business,V926773,25/06/2020,22.22,Housing & Assets 2,Premises Expenses,G23100006/B102,Housing Revenue Account,Electricity
Ashfield District Council,37UB,British Gas Business,V926773,25/06/2020,24.22,Housing & Assets 2,Premises Expenses,G23100007/B102,Housing Revenue Account,Electricity
Ashfield District Council,37UB,DFP Services Limited,V925992,25/06/2020,495.00,Housing & Assets 2,Premises Expenses,G23100001/B002001,Housing Revenue Account,Mechanical Ventilation Asset Maintenance
Ashfield District Council,37UB,DFP Services Limited,V925993,25/06/2020,90.00,Housing & Assets 2,Premises Expenses,G23100007/B002001,Housing Revenue Account,Mechanical Ventilation Asset Maintenance
Ashfield District Council,37UB,Legrand Electric T/A Tynetec,V926173,18/06/2020,78.00,Housing & Assets 2,Supplies & Services,G23011025/D001001,Housing Revenue Account,Equipment Purchase
Ashfield District Council,37UB,Morris Vermaport Ltd,V926160,25/06/2020,66.00,Housing & Assets 2,Premises Expenses,N23000/B003006,Housing Revenue Account,Lift
Ashfield District Council,37UB,Quadient Finance UK Limited,V923951,18/06/2020,1630.90,Housing & Assets 2,Supplies & Services,N23000/D301001,Housing Revenue Account,Postages
Ashfield District Council,37UB,Reef London Limited,V924164,11/06/2020,3675.00,Housing & Assets 2,Transport Related Expenses,N23000/C404,Housing Revenue Account,Parking Permits
Ashfield District Council,37UB,Daisy Telecoms Ltd,V924005,11/06/2020,47.25,R & B Transformation 2,Supplies & Services,N23000/D301002,Housing Revenue Account,Telephones
Ashfield District Council,37UB,Daisy Telecoms Ltd,V924005,11/06/2020,98.30,R & B Transformation 2,Supplies & Services,G23100007/D301002,Housing Revenue Account,Telephones
Ashfield District Council,37UB,Daisy Telecoms Ltd,V924005,11/06/2020,34.32,R & B Transformation 2,Supplies & Services,G23100002/D301002,Housing Revenue Account,Telephones
Ashfield District Council,37UB,Daisy Telecoms Ltd,V924014,11/06/2020,55.60,R & B Transformation 2,Supplies & Services,N23000/D301006,Housing Revenue Account,Alarm Lines
Ashfield District Council,37UB,Daisy Telecoms Ltd,V924014,11/06/2020,12.94,R & B Transformation 2,Premises Expenses,G23100004/B003026,Housing Revenue Account,Radio Controlled /Radio Equipment
Ashfield District Council,37UB,Daisy Telecoms Ltd,V924014,11/06/2020,12.94,R & B Transformation 2,Premises Expenses,G23100005/B003026,Housing Revenue Account,Radio Controlled /Radio Equipment
Ashfield District Council,37UB,Daisy Telecoms Ltd,V924014,11/06/2020,13.10,R & B Transformation 2,Premises Expenses,G23100007/B003026,Housing Revenue Account,Radio Controlled /Radio Equipment
Ashfield District Council,37UB,Daisy Telecoms Ltd,V924014,11/06/2020,12.94,R & B Transformation 2,Premises Expenses,G23100001/B003026,Housing Revenue Account,Radio Controlled /Radio Equipment
Ashfield District Council,37UB,Daisy Telecoms Ltd,V924014,11/06/2020,12.94,R & B Transformation 2,Premises Expenses,G23100006/B003026,Housing Revenue Account,Radio Controlled /Radio Equipment
Ashfield District Council,37UB,EDF Energy 1 Ltd,V925932,18/06/2020,1474.21,R & B Transformation 2,Premises Expenses,N23000/B102,Housing Revenue Account,Electricity
Ashfield District Council,37UB,Water Plus Limited,V926005,18/06/2020,-44.63,R & B Transformation 2,Premises Expenses,G23100005/B401,Housing Revenue Account,Water rates
Ashfield District Council,37UB,Water Plus Limited,V926006,18/06/2020,-45.92,R & B Transformation 2,Premises Expenses,G23100005/B401,Housing Revenue Account,Water rates
Ashfield District Council,37UB,Water Plus Limited,V926011,18/06/2020,-27.86,R & B Transformation 2,Premises Expenses,G23100007/B401,Housing Revenue Account,Water rates
Ashfield District Council,37UB,Water Plus Limited,V926028,18/06/2020,41.59,R & B Transformation 2,Premises Expenses,G23100006/B401,Housing Revenue Account,Water rates
Ashfield District Council,37UB,Water Plus Limited,V926028,18/06/2020,38.81,R & B Transformation 2,Premises Expenses,G23100001/B401,Housing Revenue Account,Water rates
Ashfield District Council,37UB,Water Plus Limited,V926028,18/06/2020,58.17,R & B Transformation 2,Premises Expenses,G23100004/B401,Housing Revenue Account,Water rates
Ashfield District Council,37UB,Water Plus Limited,V926028,18/06/2020,54.40,R & B Transformation 2,Premises Expenses,G23100007/B401,Housing Revenue Account,Water rates
Ashfield District Council,37UB,Water Plus Limited,V926028,18/06/2020,31.02,R & B Transformation 2,Premises Expenses,G23100005/B401,Housing Revenue Account,Water rates
Ashfield District Council,37UB,Water Plus Limited,V926028,18/06/2020,85.11,R & B Transformation 2,Premises Expenses,G23100002/B401,Housing Revenue Account,Water rates
Ashfield District Council,37UB,Water Plus Limited,V926028,18/06/2020,26.99,R & B Transformation 2,Premises Expenses,G23100003/B401,Housing Revenue Account,Water rates
Ashfield District Council,37UB,Bibby Factors (Leicester) Ltd,V923608,04/06/2020,455.82,Housing & Assets 2,Employee Expenses,G53000/A200004,Lettings and PS,Agency Staff
Ashfield District Council,37UB,Bibby Factors (Leicester) Ltd,V924160,11/06/2020,569.94,Housing & Assets 2,Employee Expenses,G53000/A200004,Lettings and PS,Agency Staff
Ashfield District Council,37UB,Bibby Factors (Leicester) Ltd,V926188,18/06/2020,849.67,Housing & Assets 2,Employee Expenses,G53000/A200004,Lettings and PS,Agency Staff
Ashfield District Council,37UB,Bibby Factors (Leicester) Ltd,V926759,25/06/2020,663.97,Housing & Assets 2,Employee Expenses,G53000/A200004,Lettings and PS,Agency Staff
Ashfield District Council,37UB,EE Limited,V924037,11/06/2020,18.16,R & B Transformation 2,Supplies & Services,G53000/D301003,Lettings and PS,Mobiles
Ashfield District Council,37UB,EE Limited,V925946,11/06/2020,16.03,R & B Transformation 2,Supplies & Services,G53000/D301003,Lettings and PS,Mobiles
Ashfield District Council,37UB,EE Limited,V924037,11/06/2020,28.50,R & B Transformation 2,Supplies & Services,G58000/D301003,Procurement Section,Mobiles
Ashfield District Council,37UB,EE Limited,V925946,11/06/2020,19.50,R & B Transformation 2,Supplies & Services,G58000/D301003,Procurement Section,Mobiles
Ashfield District Council,37UB,VPS (UK) Ltd,V923540,25/06/2020,105.28,Housing & Assets 2,Premises Expenses,G56013/B004010,Tech Servs Planned Responsive,PM Void Screens
Ashfield District Council,37UB,VPS (UK) Ltd,V923540,25/06/2020,25.32,Housing & Assets 2,Premises Expenses,G56013/B004010,Tech Servs Planned Responsive,PM Void Screens
Ashfield District Council,37UB,VPS (UK) Ltd,V923540,25/06/2020,82.12,Housing & Assets 2,Premises Expenses,G56013/B004010,Tech Servs Planned Responsive,PM Void Screens
Ashfield District Council,37UB,VPS (UK) Ltd,V923540,25/06/2020,25.32,Housing & Assets 2,Premises Expenses,G56013/B004010,Tech Servs Planned Responsive,PM Void Screens
Ashfield District Council,37UB,VPS (UK) Ltd,V923540,25/06/2020,61.08,Housing & Assets 2,Premises Expenses,G56013/B004010,Tech Servs Planned Responsive,PM Void Screens
Ashfield District Council,37UB,VPS (UK) Ltd,V923541,25/06/2020,82.12,Housing & Assets 2,Premises Expenses,G56005/B004010,Tech Servs Planned Responsive,PM Void Screens
Ashfield District Council,37UB,VPS (UK) Ltd,V923541,25/06/2020,84.40,Housing & Assets 2,Premises Expenses,G56005/B004010,Tech Servs Planned Responsive,PM Void Screens
Ashfield District Council,37UB,VPS (UK) Ltd,V923541,25/06/2020,105.28,Housing & Assets 2,Premises Expenses,G56005/B004010,Tech Servs Planned Responsive,PM Void Screens
Ashfield District Council,37UB,VPS (UK) Ltd,V923541,25/06/2020,25.32,Housing & Assets 2,Premises Expenses,G56005/B004010,Tech Servs Planned Responsive,PM Void Screens
Ashfield District Council,37UB,VPS (UK) Ltd,V923541,25/06/2020,37.88,Housing & Assets 2,Premises Expenses,G56005/B004010,Tech Servs Planned Responsive,PM Void Screens
Ashfield District Council,37UB,Wilko Retail Limited,V923696,04/06/2020,174.17,R & B Transformation 2,Supplies & Services,G56004/D200033,Tech Servs Planned Responsive,Decoration Vouchers
Ashfield District Council,37UB,Wilko Retail Limited,V923698,04/06/2020,66.67,R & B Transformation 2,Supplies & Services,G56004/D200033,Tech Servs Planned Responsive,Decoration Vouchers
Ashfield District Council,37UB,Wilko Retail Limited,V923699,04/06/2020,174.00,R & B Transformation 2,Supplies & Services,G56004/D200033,Tech Servs Planned Responsive,Decoration Vouchers
Ashfield District Council,37UB,Wilko Retail Limited,V923755,04/06/2020,374.17,R & B Transformation 2,Supplies & Services,G56004/D200033,Tech Servs Planned Responsive,Decoration Vouchers
Ashfield District Council,37UB,Wilko Retail Limited,V923757,04/06/2020,200.00,R & B Transformation 2,Supplies & Services,G56004/D200033,Tech Servs Planned Responsive,Decoration Vouchers
Ashfield District Council,37UB,Wilko Retail Limited,V924166,11/06/2020,122.50,R & B Transformation 2,Supplies & Services,G56004/D200033,Tech Servs Planned Responsive,Decoration Vouchers
Ashfield District Council,37UB,Wilko Retail Limited,V924167,11/06/2020,133.33,R & B Transformation 2,Supplies & Services,G56004/D200033,Tech Servs Planned Responsive,Decoration Vouchers
Ashfield District Council,37UB,Wilko Retail Limited,V924168,11/06/2020,90.83,R & B Transformation 2,Supplies & Services,G56004/D200033,Tech Servs Planned Responsive,Decoration Vouchers
Ashfield District Council,37UB,Wilko Retail Limited,V924171,11/06/2020,218.58,R & B Transformation 2,Supplies & Services,G56004/D200033,Tech Servs Planned Responsive,Decoration Vouchers
Ashfield District Council,37UB,Wilko Retail Limited,V924172,11/06/2020,161.67,R & B Transformation 2,Supplies & Services,G56004/D200033,Tech Servs Planned Responsive,Decoration Vouchers
Ashfield District Council,37UB,H W Martin (Plant) Limited,V919105,25/06/2020,523.60,Place & Communities 2,Supplies & Services,G57000/D200002,Technical Services Depot,Refuse Collection
Ashfield District Council,37UB,AGS Tech Ltd,V922552,02/06/2020,50.00,R & B Transformation 2,Supplies & Services,G57002/D200008,Technical Services Depot,Payments to Contractors External
Ashfield District Council,37UB,AGS Tech Ltd,V922553,02/06/2020,79.95,R & B Transformation 2,Supplies & Services,G57002/D200008,Technical Services Depot,Payments to Contractors External
Ashfield District Council,37UB,AGS Tech Ltd,V922554,02/06/2020,50.00,R & B Transformation 2,Supplies & Services,G57002/D200008,Technical Services Depot,Payments to Contractors External
Ashfield District Council,37UB,AGS Tech Ltd,V922555,02/06/2020,50.00,R & B Transformation 2,Supplies & Services,G57002/D200008,Technical Services Depot,Payments to Contractors External
Ashfield District Council,37UB,AGS Tech Ltd,V922556,02/06/2020,79.95,R & B Transformation 2,Supplies & Services,G57002/D200008,Technical Services Depot,Payments to Contractors External
Ashfield District Council,37UB,AGS Tech Ltd,V922558,02/06/2020,50.00,R & B Transformation 2,Supplies & Services,G57002/D200008,Technical Services Depot,Payments to Contractors External
Ashfield District Council,37UB,AGS Tech Ltd,V922559,02/06/2020,60.00,R & B Transformation 2,Supplies & Services,G57002/D200008,Technical Services Depot,Payments to Contractors External
Ashfield District Council,37UB,AGS Tech Ltd,V922560,02/06/2020,190.32,R & B Transformation 2,Supplies & Services,G57002/D200008,Technical Services Depot,Payments to Contractors External
Ashfield District Council,37UB,Brays Pipelines Limited,V926846,29/06/2020,350.00,R & B Transformation 2,Supplies & Services,G57002/D200008,Technical Services Depot,Payments to Contractors External
Ashfield District Council,37UB,Brays Pipelines Limited,V926847,29/06/2020,350.00,R & B Transformation 2,Supplies & Services,G57002/D200008,Technical Services Depot,Payments to Contractors External
Ashfield District Council,37UB,Brays Pipelines Limited,V926848,29/06/2020,350.00,R & B Transformation 2,Supplies & Services,G57002/D200008,Technical Services Depot,Payments to Contractors External
Ashfield District Council,37UB,Brays Pipelines Limited,V926849,29/06/2020,750.00,R & B Transformation 2,Supplies & Services,G57002/D200008,Technical Services Depot,Payments to Contractors External
Ashfield District Council,37UB,City Electrical Factors,V926917,29/06/2020,554.72,R & B Transformation 2,Supplies & Services,G57000/D001004,Technical Services Depot,Chemicals and Materials Purchase
Ashfield District Council,37UB,City Plumbing Supplies Holdings Ltd,V922597,02/06/2020,30.07,R & B Transformation 2,Supplies & Services,G57000/D001004,Technical Services Depot,Chemicals and Materials Purchase
Ashfield District Council,37UB,City Plumbing Supplies Holdings Ltd,V923895,08/06/2020,30.95,R & B Transformation 2,Supplies & Services,G57000/D001004,Technical Services Depot,Chemicals and Materials Purchase
Ashfield District Council,37UB,City Plumbing Supplies Holdings Ltd,V923897,08/06/2020,20.60,R & B Transformation 2,Supplies & Services,G57000/D001004,Technical Services Depot,Chemicals and Materials Purchase
Ashfield District Council,37UB,City Plumbing Supplies Holdings Ltd,V925899,15/06/2020,46.83,R & B Transformation 2,Supplies & Services,G57000/D001004,Technical Services Depot,Chemicals and Materials Purchase
Ashfield District Council,37UB,City Plumbing Supplies Holdings Ltd,V925900,15/06/2020,51.52,R & B Transformation 2,Supplies & Services,G57000/D001004,Technical Services Depot,Chemicals and Materials Purchase
Ashfield District Council,37UB,City Plumbing Supplies Holdings Ltd,V926323,23/06/2020,-17.93,R & B Transformation 2,Supplies & Services,G57000/D001004,Technical Services Depot,Chemicals and Materials Purchase
Ashfield District Council,37UB,City Plumbing Supplies Holdings Ltd,V926547,23/06/2020,31.00,R & B Transformation 2,Supplies & Services,G57000/D001004,Technical Services Depot,Chemicals and Materials Purchase
Ashfield District Council,37UB,City Plumbing Supplies Holdings Ltd,V926547,23/06/2020,175.74,R & B Transformation 2,Supplies & Services,G57000/D001004,Technical Services Depot,Chemicals and Materials Purchase
Ashfield District Council,37UB,City Plumbing Supplies Holdings Ltd,V926547,23/06/2020,41.88,R & B Transformation 2,Supplies & Services,G57000/D001004,Technical Services Depot,Chemicals and Materials Purchase
Ashfield District Council,37UB,City Plumbing Supplies Holdings Ltd,V926548,23/06/2020,6.70,R & B Transformation 2,Supplies & Services,G57000/D001004,Technical Services Depot,Chemicals and Materials Purchase
Ashfield District Council,37UB,City Plumbing Supplies Holdings Ltd,V926942,29/06/2020,82.22,R & B Transformation 2,Supplies & Services,G57000/D001004,Technical Services Depot,Chemicals and Materials Purchase
Ashfield District Council,37UB,City Plumbing Supplies Holdings Ltd,V926945,29/06/2020,72.96,R & B Transformation 2,Supplies & Services,G57000/D001004,Technical Services Depot,Chemicals and Materials Purchase
Ashfield District Council,37UB,City Plumbing Supplies Holdings Ltd,V926946,29/06/2020,19.23,R & B Transformation 2,Supplies & Services,G57000/D001004,Technical Services Depot,Chemicals and Materials Purchase
Ashfield District Council,37UB,City Plumbing Supplies Holdings Ltd,V926946,29/06/2020,29.50,R & B Transformation 2,Supplies & Services,G57000/D001004,Technical Services Depot,Chemicals and Materials Purchase
Ashfield District Council,37UB,City Plumbing Supplies Holdings Ltd,V926946,29/06/2020,19.23,R & B Transformation 2,Supplies & Services,G57000/D001004,Technical Services Depot,Chemicals and Materials Purchase
Ashfield District Council,37UB,City Plumbing Supplies Holdings Ltd,V926946,29/06/2020,11.60,R & B Transformation 2,Supplies & Services,G57000/D001004,Technical Services Depot,Chemicals and Materials Purchase
Ashfield District Council,37UB,City Plumbing Supplies Holdings Ltd,V926946,29/06/2020,7.56,R & B Transformation 2,Supplies & Services,G57000/D001004,Technical Services Depot,Chemicals and Materials Purchase
Ashfield District Council,37UB,Crown Paints Limited,V925894,15/06/2020,9.24,R & B Transformation 2,Supplies & Services,G57000/D001004,Technical Services Depot,Chemicals and Materials Purchase
Ashfield District Council,37UB,Daisy Telecoms Ltd,V924014,11/06/2020,17.59,R & B Transformation 2,Supplies & Services,G57000/D301003,Technical Services Depot,Mobiles
Ashfield District Council,37UB,Dalrod UK Ltd,V922544,02/06/2020,156.00,R & B Transformation 2,Supplies & Services,G57002/D200008,Technical Services Depot,Payments to Contractors External
Ashfield District Council,37UB,Dalrod UK Ltd,V922562,02/06/2020,120.94,R & B Transformation 2,Supplies & Services,G57002/D200008,Technical Services Depot,Payments to Contractors External
Ashfield District Council,37UB,Dalrod UK Ltd,V922563,02/06/2020,120.94,R & B Transformation 2,Supplies & Services,G57002/D200008,Technical Services Depot,Payments to Contractors External
Ashfield District Council,37UB,Dalrod UK Ltd,V922564,02/06/2020,120.94,R & B Transformation 2,Supplies & Services,G57002/D200008,Technical Services Depot,Payments to Contractors External
Ashfield District Council,37UB,Dalrod UK Ltd,V922565,02/06/2020,120.94,R & B Transformation 2,Supplies & Services,G57002/D200008,Technical Services Depot,Payments to Contractors External
Ashfield District Council,37UB,Dalrod UK Ltd,V922566,02/06/2020,120.94,R & B Transformation 2,Supplies & Services,G57002/D200008,Technical Services Depot,Payments to Contractors External
Ashfield District Council,37UB,Dalrod UK Ltd,V922567,02/06/2020,60.47,R & B Transformation 2,Supplies & Services,G57002/D200008,Technical Services Depot,Payments to Contractors External
Ashfield District Council,37UB,Dalrod UK Ltd,V922568,02/06/2020,120.94,R & B Transformation 2,Supplies & Services,G57002/D200008,Technical Services Depot,Payments to Contractors External
Ashfield District Council,37UB,Dalrod UK Ltd,V926404,23/06/2020,60.47,R & B Transformation 2,Supplies & Services,G57002/D200008,Technical Services Depot,Payments to Contractors External
Ashfield District Council,37UB,Dalrod UK Ltd,V926405,23/06/2020,60.47,R & B Transformation 2,Supplies & Services,G57002/D200008,Technical Services Depot,Payments to Contractors External
Ashfield District Council,37UB,Dalrod UK Ltd,V926406,23/06/2020,60.47,R & B Transformation 2,Supplies & Services,G57002/D200008,Technical Services Depot,Payments to Contractors External
Ashfield District Council,37UB,Dalrod UK Ltd,V926407,23/06/2020,156.00,R & B Transformation 2,Supplies & Services,G57002/D200008,Technical Services Depot,Payments to Contractors External
Ashfield District Council,37UB,Dalrod UK Ltd,V926408,23/06/2020,120.94,R & B Transformation 2,Supplies & Services,G57002/D200008,Technical Services Depot,Payments to Contractors External
Ashfield District Council,37UB,Dalrod UK Ltd,V926409,23/06/2020,120.94,R & B Transformation 2,Supplies & Services,G57002/D200008,Technical Services Depot,Payments to Contractors External
Ashfield District Council,37UB,Dalrod UK Ltd,V926410,23/06/2020,60.47,R & B Transformation 2,Supplies & Services,G57002/D200008,Technical Services Depot,Payments to Contractors External
Ashfield District Council,37UB,Dalrod UK Ltd,V926411,23/06/2020,156.00,R & B Transformation 2,Supplies & Services,G57002/D200008,Technical Services Depot,Payments to Contractors External
Ashfield District Council,37UB,Dalrod UK Ltd,V926412,23/06/2020,60.47,R & B Transformation 2,Supplies & Services,G57002/D200008,Technical Services Depot,Payments to Contractors External
Ashfield District Council,37UB,Dalrod UK Ltd,V926413,23/06/2020,60.47,R & B Transformation 2,Supplies & Services,G57002/D200008,Technical Services Depot,Payments to Contractors External
Ashfield District Council,37UB,Dalrod UK Ltd,V926414,23/06/2020,156.00,R & B Transformation 2,Supplies & Services,G57002/D200008,Technical Services Depot,Payments to Contractors External
Ashfield District Council,37UB,Dalrod UK Ltd,V926415,23/06/2020,120.94,R & B Transformation 2,Supplies & Services,G57002/D200008,Technical Services Depot,Payments to Contractors External
Ashfield District Council,37UB,Dalrod UK Ltd,V926416,23/06/2020,60.47,R & B Transformation 2,Supplies & Services,G57002/D200008,Technical Services Depot,Payments to Contractors External
Ashfield District Council,37UB,Dalrod UK Ltd,V926417,23/06/2020,60.47,R & B Transformation 2,Supplies & Services,G57002/D200008,Technical Services Depot,Payments to Contractors External
Ashfield District Council,37UB,Dalrod UK Ltd,V926418,23/06/2020,120.94,R & B Transformation 2,Supplies & Services,G57002/D200008,Technical Services Depot,Payments to Contractors External
Ashfield District Council,37UB,Dalrod UK Ltd,V926419,23/06/2020,120.94,R & B Transformation 2,Supplies & Services,G57002/D200008,Technical Services Depot,Payments to Contractors External
Ashfield District Council,37UB,Dalrod UK Ltd,V926420,23/06/2020,120.94,R & B Transformation 2,Supplies & Services,G57002/D200008,Technical Services Depot,Payments to Contractors External
Ashfield District Council,37UB,Dalrod UK Ltd,V926421,23/06/2020,120.94,R & B Transformation 2,Supplies & Services,G57002/D200008,Technical Services Depot,Payments to Contractors External
Ashfield District Council,37UB,Dalrod UK Ltd,V926422,23/06/2020,60.47,R & B Transformation 2,Supplies & Services,G57002/D200008,Technical Services Depot,Payments to Contractors External
Ashfield District Council,37UB,Dalrod UK Ltd,V926423,23/06/2020,60.47,R & B Transformation 2,Supplies & Services,G57002/D200008,Technical Services Depot,Payments to Contractors External
Ashfield District Council,37UB,Dalrod UK Ltd,V926424,23/06/2020,120.94,R & B Transformation 2,Supplies & Services,G57002/D200008,Technical Services Depot,Payments to Contractors External
Ashfield District Council,37UB,Dalrod UK Ltd,V926425,23/06/2020,120.94,R & B Transformation 2,Supplies & Services,G57002/D200008,Technical Services Depot,Payments to Contractors External
Ashfield District Council,37UB,Dalrod UK Ltd,V926426,23/06/2020,60.47,R & B Transformation 2,Supplies & Services,G57002/D200008,Technical Services Depot,Payments to Contractors External
Ashfield District Council,37UB,Dalrod UK Ltd,V926427,23/06/2020,60.47,R & B Transformation 2,Supplies & Services,G57002/D200008,Technical Services Depot,Payments to Contractors External
Ashfield District Council,37UB,Dalrod UK Ltd,V926428,23/06/2020,60.47,R & B Transformation 2,Supplies & Services,G57002/D200008,Technical Services Depot,Payments to Contractors External
Ashfield District Council,37UB,Dalrod UK Ltd,V926429,23/06/2020,120.94,R & B Transformation 2,Supplies & Services,G57002/D200008,Technical Services Depot,Payments to Contractors External
Ashfield District Council,37UB,Dalrod UK Ltd,V926430,23/06/2020,60.47,R & B Transformation 2,Supplies & Services,G57002/D200008,Technical Services Depot,Payments to Contractors External
Ashfield District Council,37UB,Dalrod UK Ltd,V926431,23/06/2020,60.47,R & B Transformation 2,Supplies & Services,G57002/D200008,Technical Services Depot,Payments to Contractors External
Ashfield District Council,37UB,Dalrod UK Ltd,V926432,23/06/2020,78.00,R & B Transformation 2,Supplies & Services,G57002/D200008,Technical Services Depot,Payments to Contractors External
Ashfield District Council,37UB,Dalrod UK Ltd,V926433,23/06/2020,60.47,R & B Transformation 2,Supplies & Services,G57002/D200008,Technical Services Depot,Payments to Contractors External
Ashfield District Council,37UB,Dalrod UK Ltd,V926434,23/06/2020,120.94,R & B Transformation 2,Supplies & Services,G57002/D200008,Technical Services Depot,Payments to Contractors External
Ashfield District Council,37UB,Dalrod UK Ltd,V926435,23/06/2020,120.94,R & B Transformation 2,Supplies & Services,G57002/D200008,Technical Services Depot,Payments to Contractors External
Ashfield District Council,37UB,Dalrod UK Ltd,V926475,23/06/2020,120.94,R & B Transformation 2,Supplies & Services,G57002/D200008,Technical Services Depot,Payments to Contractors External
Ashfield District Council,37UB,Dalrod UK Ltd,V926515,23/06/2020,120.94,R & B Transformation 2,Supplies & Services,G57002/D200008,Technical Services Depot,Payments to Contractors External
Ashfield District Council,37UB,Dalrod UK Ltd,V926860,29/06/2020,120.94,R & B Transformation 2,Supplies & Services,G57002/D200008,Technical Services Depot,Payments to Contractors External
Ashfield District Council,37UB,Dalrod UK Ltd,V926861,29/06/2020,120.94,R & B Transformation 2,Supplies & Services,G57002/D200008,Technical Services Depot,Payments to Contractors External
Ashfield District Council,37UB,Dalrod UK Ltd,V926862,29/06/2020,60.47,R & B Transformation 2,Supplies & Services,G57002/D200008,Technical Services Depot,Payments to Contractors External
Ashfield District Council,37UB,Dalrod UK Ltd,V926863,29/06/2020,120.94,R & B Transformation 2,Supplies & Services,G57002/D200008,Technical Services Depot,Payments to Contractors External
Ashfield District Council,37UB,Dalrod UK Ltd,V926864,29/06/2020,60.47,R & B Transformation 2,Supplies & Services,G57002/D200008,Technical Services Depot,Payments to Contractors External
Ashfield District Council,37UB,Dalrod UK Ltd,V926865,29/06/2020,156.00,R & B Transformation 2,Supplies & Services,G57002/D200008,Technical Services Depot,Payments to Contractors External
Ashfield District Council,37UB,Dalrod UK Ltd,V926866,29/06/2020,60.47,R & B Transformation 2,Supplies & Services,G57002/D200008,Technical Services Depot,Payments to Contractors External
Ashfield District Council,37UB,Dalrod UK Ltd,V926867,29/06/2020,120.94,R & B Transformation 2,Supplies & Services,G57002/D200008,Technical Services Depot,Payments to Contractors External
Ashfield District Council,37UB,Dalrod UK Ltd,V926868,29/06/2020,120.94,R & B Transformation 2,Supplies & Services,G57002/D200008,Technical Services Depot,Payments to Contractors External
Ashfield District Council,37UB,EE Limited,V924037,11/06/2020,105.53,R & B Transformation 2,Supplies & Services,G57000/D301003,Technical Services Depot,Mobiles
Ashfield District Council,37UB,EE Limited,V925946,11/06/2020,105.62,R & B Transformation 2,Supplies & Services,G57000/D301003,Technical Services Depot,Mobiles
Ashfield District Council,37UB,J Tomlinson Ltd,V922401,02/06/2020,41.70,R & B Transformation 2,Supplies & Services,G57002/D200008,Technical Services Depot,Payments to Contractors External
Ashfield District Council,37UB,J Tomlinson Ltd,V922402,02/06/2020,41.70,R & B Transformation 2,Supplies & Services,G57002/D200008,Technical Services Depot,Payments to Contractors External
Ashfield District Council,37UB,J Tomlinson Ltd,V922403,02/06/2020,41.70,R & B Transformation 2,Supplies & Services,G57002/D200008,Technical Services Depot,Payments to Contractors External
Ashfield District Council,37UB,J Tomlinson Ltd,V922404,02/06/2020,41.70,R & B Transformation 2,Supplies & Services,G57002/D200008,Technical Services Depot,Payments to Contractors External
Ashfield District Council,37UB,J Tomlinson Ltd,V922405,02/06/2020,41.70,R & B Transformation 2,Supplies & Services,G57002/D200008,Technical Services Depot,Payments to Contractors External
Ashfield District Council,37UB,J Tomlinson Ltd,V922406,02/06/2020,41.70,R & B Transformation 2,Supplies & Services,G57002/D200008,Technical Services Depot,Payments to Contractors External
Ashfield District Council,37UB,J Tomlinson Ltd,V922407,02/06/2020,41.70,R & B Transformation 2,Supplies & Services,G57002/D200008,Technical Services Depot,Payments to Contractors External
Ashfield District Council,37UB,J Tomlinson Ltd,V922408,02/06/2020,41.70,R & B Transformation 2,Supplies & Services,G57002/D200008,Technical Services Depot,Payments to Contractors External
Ashfield District Council,37UB,J Tomlinson Ltd,V922409,02/06/2020,41.70,R & B Transformation 2,Supplies & Services,G57002/D200008,Technical Services Depot,Payments to Contractors External
Ashfield District Council,37UB,J Tomlinson Ltd,V922410,02/06/2020,41.70,R & B Transformation 2,Supplies & Services,G57002/D200008,Technical Services Depot,Payments to Contractors External
Ashfield District Council,37UB,J Tomlinson Ltd,V922411,02/06/2020,41.70,R & B Transformation 2,Supplies & Services,G57002/D200008,Technical Services Depot,Payments to Contractors External
Ashfield District Council,37UB,J Tomlinson Ltd,V922412,02/06/2020,41.70,R & B Transformation 2,Supplies & Services,G57002/D200008,Technical Services Depot,Payments to Contractors External
Ashfield District Council,37UB,J Tomlinson Ltd,V922413,02/06/2020,41.70,R & B Transformation 2,Supplies & Services,G57002/D200008,Technical Services Depot,Payments to Contractors External
Ashfield District Council,37UB,J Tomlinson Ltd,V922414,02/06/2020,41.70,R & B Transformation 2,Supplies & Services,G57002/D200008,Technical Services Depot,Payments to Contractors External
Ashfield District Council,37UB,J Tomlinson Ltd,V922415,02/06/2020,41.70,R & B Transformation 2,Supplies & Services,G57002/D200008,Technical Services Depot,Payments to Contractors External
Ashfield District Council,37UB,J Tomlinson Ltd,V922416,02/06/2020,41.70,R & B Transformation 2,Supplies & Services,G57002/D200008,Technical Services Depot,Payments to Contractors External
Ashfield District Council,37UB,J Tomlinson Ltd,V922417,02/06/2020,41.70,R & B Transformation 2,Supplies & Services,G57002/D200008,Technical Services Depot,Payments to Contractors External
Ashfield District Council,37UB,J Tomlinson Ltd,V922418,02/06/2020,41.70,R & B Transformation 2,Supplies & Services,G57002/D200008,Technical Services Depot,Payments to Contractors External
Ashfield District Council,37UB,J Tomlinson Ltd,V922419,02/06/2020,41.70,R & B Transformation 2,Supplies & Services,G57002/D200008,Technical Services Depot,Payments to Contractors External
Ashfield District Council,37UB,J Tomlinson Ltd,V922420,02/06/2020,41.70,R & B Transformation 2,Supplies & Services,G57002/D200008,Technical Services Depot,Payments to Contractors External
Ashfield District Council,37UB,J Tomlinson Ltd,V922421,02/06/2020,41.70,R & B Transformation 2,Supplies & Services,G57002/D200008,Technical Services Depot,Payments to Contractors External
Ashfield District Council,37UB,J Tomlinson Ltd,V922422,02/06/2020,41.70,R & B Transformation 2,Supplies & Services,G57002/D200008,Technical Services Depot,Payments to Contractors External
Ashfield District Council,37UB,J Tomlinson Ltd,V922423,02/06/2020,41.70,R & B Transformation 2,Supplies & Services,G57002/D200008,Technical Services Depot,Payments to Contractors External
Ashfield District Council,37UB,J Tomlinson Ltd,V922424,02/06/2020,41.70,R & B Transformation 2,Supplies & Services,G57002/D200008,Technical Services Depot,Payments to Contractors External
Ashfield District Council,37UB,J Tomlinson Ltd,V922425,02/06/2020,41.70,R & B Transformation 2,Supplies & Services,G57002/D200008,Technical Services Depot,Payments to Contractors External
Ashfield District Council,37UB,J Tomlinson Ltd,V922426,02/06/2020,41.70,R & B Transformation 2,Supplies & Services,G57002/D200008,Technical Services Depot,Payments to Contractors External
Ashfield District Council,37UB,J Tomlinson Ltd,V922427,02/06/2020,41.70,R & B Transformation 2,Supplies & Services,G57002/D200008,Technical Services Depot,Payments to Contractors External
Ashfield District Council,37UB,J Tomlinson Ltd,V922428,02/06/2020,41.70,R & B Transformation 2,Supplies & Services,G57002/D200008,Technical Services Depot,Payments to Contractors External
Ashfield District Council,37UB,J Tomlinson Ltd,V922429,02/06/2020,41.70,R & B Transformation 2,Supplies & Services,G57002/D200008,Technical Services Depot,Payments to Contractors External
Ashfield District Council,37UB,J Tomlinson Ltd,V922430,02/06/2020,41.70,R & B Transformation 2,Supplies & Services,G57002/D200008,Technical Services Depot,Payments to Contractors External
Ashfield District Council,37UB,J Tomlinson Ltd,V922431,02/06/2020,41.70,R & B Transformation 2,Supplies & Services,G57002/D200008,Technical Services Depot,Payments to Contractors External
Ashfield District Council,37UB,J Tomlinson Ltd,V922432,02/06/2020,41.70,R & B Transformation 2,Supplies & Services,G57002/D200008,Technical Services Depot,Payments to Contractors External
Ashfield District Council,37UB,J Tomlinson Ltd,V922433,02/06/2020,41.70,R & B Transformation 2,Supplies & Services,G57002/D200008,Technical Services Depot,Payments to Contractors External
Ashfield District Council,37UB,J Tomlinson Ltd,V922434,02/06/2020,41.70,R & B Transformation 2,Supplies & Services,G57002/D200008,Technical Services Depot,Payments to Contractors External
Ashfield District Council,37UB,J Tomlinson Ltd,V922435,02/06/2020,41.70,R & B Transformation 2,Supplies & Services,G57002/D200008,Technical Services Depot,Payments to Contractors External
Ashfield District Council,37UB,J Tomlinson Ltd,V922436,02/06/2020,41.70,R & B Transformation 2,Supplies & Services,G57002/D200008,Technical Services Depot,Payments to Contractors External
Ashfield District Council,37UB,J Tomlinson Ltd,V922437,02/06/2020,41.70,R & B Transformation 2,Supplies & Services,G57002/D200008,Technical Services Depot,Payments to Contractors External
Ashfield District Council,37UB,J Tomlinson Ltd,V922438,02/06/2020,41.70,R & B Transformation 2,Supplies & Services,G57002/D200008,Technical Services Depot,Payments to Contractors External
Ashfield District Council,37UB,J Tomlinson Ltd,V922439,02/06/2020,41.70,R & B Transformation 2,Supplies & Services,G57002/D200008,Technical Services Depot,Payments to Contractors External
Ashfield District Council,37UB,J Tomlinson Ltd,V922440,02/06/2020,41.70,R & B Transformation 2,Supplies & Services,G57002/D200008,Technical Services Depot,Payments to Contractors External
Ashfield District Council,37UB,J Tomlinson Ltd,V922441,02/06/2020,41.70,R & B Transformation 2,Supplies & Services,G57002/D200008,Technical Services Depot,Payments to Contractors External
Ashfield District Council,37UB,J Tomlinson Ltd,V922442,02/06/2020,41.70,R & B Transformation 2,Supplies & Services,G57002/D200008,Technical Services Depot,Payments to Contractors External
Ashfield District Council,37UB,J Tomlinson Ltd,V922443,02/06/2020,41.70,R & B Transformation 2,Supplies & Services,G57002/D200008,Technical Services Depot,Payments to Contractors External
Ashfield District Council,37UB,J Tomlinson Ltd,V922444,02/06/2020,41.70,R & B Transformation 2,Supplies & Services,G57002/D200008,Technical Services Depot,Payments to Contractors External
Ashfield District Council,37UB,J Tomlinson Ltd,V922445,02/06/2020,41.70,R & B Transformation 2,Supplies & Services,G57002/D200008,Technical Services Depot,Payments to Contractors External
Ashfield District Council,37UB,J Tomlinson Ltd,V922446,02/06/2020,41.70,R & B Transformation 2,Supplies & Services,G57002/D200008,Technical Services Depot,Payments to Contractors External
Ashfield District Council,37UB,J Tomlinson Ltd,V922447,02/06/2020,41.70,R & B Transformation 2,Supplies & Services,G57002/D200008,Technical Services Depot,Payments to Contractors External
Ashfield District Council,37UB,J Tomlinson Ltd,V922448,02/06/2020,41.70,R & B Transformation 2,Supplies & Services,G57002/D200008,Technical Services Depot,Payments to Contractors External
Ashfield District Council,37UB,J Tomlinson Ltd,V922449,02/06/2020,41.70,R & B Transformation 2,Supplies & Services,G57002/D200008,Technical Services Depot,Payments to Contractors External
Ashfield District Council,37UB,J Tomlinson Ltd,V922450,02/06/2020,41.70,R & B Transformation 2,Supplies & Services,G57002/D200008,Technical Services Depot,Payments to Contractors External
Ashfield District Council,37UB,J Tomlinson Ltd,V922451,02/06/2020,41.70,R & B Transformation 2,Supplies & Services,G57002/D200008,Technical Services Depot,Payments to Contractors External
Ashfield District Council,37UB,J Tomlinson Ltd,V922452,02/06/2020,41.70,R & B Transformation 2,Supplies & Services,G57002/D200008,Technical Services Depot,Payments to Contractors External
Ashfield District Council,37UB,J Tomlinson Ltd,V922453,02/06/2020,41.70,R & B Transformation 2,Supplies & Services,G57002/D200008,Technical Services Depot,Payments to Contractors External
Ashfield District Council,37UB,J Tomlinson Ltd,V922454,02/06/2020,41.70,R & B Transformation 2,Supplies & Services,G57002/D200008,Technical Services Depot,Payments to Contractors External
Ashfield District Council,37UB,J Tomlinson Ltd,V922455,02/06/2020,41.70,R & B Transformation 2,Supplies & Services,G57002/D200008,Technical Services Depot,Payments to Contractors External
Ashfield District Council,37UB,J Tomlinson Ltd,V922456,02/06/2020,41.70,R & B Transformation 2,Supplies & Services,G57002/D200008,Technical Services Depot,Payments to Contractors External
Ashfield District Council,37UB,J Tomlinson Ltd,V922457,02/06/2020,41.70,R & B Transformation 2,Supplies & Services,G57002/D200008,Technical Services Depot,Payments to Contractors External
Ashfield District Council,37UB,J Tomlinson Ltd,V922458,02/06/2020,41.70,R & B Transformation 2,Supplies & Services,G57002/D200008,Technical Services Depot,Payments to Contractors External
Ashfield District Council,37UB,J Tomlinson Ltd,V922459,02/06/2020,41.70,R & B Transformation 2,Supplies & Services,G57002/D200008,Technical Services Depot,Payments to Contractors External
Ashfield District Council,37UB,J Tomlinson Ltd,V922460,02/06/2020,41.70,R & B Transformation 2,Supplies & Services,G57002/D200008,Technical Services Depot,Payments to Contractors External
Ashfield District Council,37UB,J Tomlinson Ltd,V922461,02/06/2020,41.70,R & B Transformation 2,Supplies & Services,G57002/D200008,Technical Services Depot,Payments to Contractors External
Ashfield District Council,37UB,J Tomlinson Ltd,V922462,02/06/2020,41.70,R & B Transformation 2,Supplies & Services,G57002/D200008,Technical Services Depot,Payments to Contractors External
Ashfield District Council,37UB,J Tomlinson Ltd,V922463,02/06/2020,41.70,R & B Transformation 2,Supplies & Services,G57002/D200008,Technical Services Depot,Payments to Contractors External
Ashfield District Council,37UB,J Tomlinson Ltd,V922464,02/06/2020,41.70,R & B Transformation 2,Supplies & Services,G57002/D200008,Technical Services Depot,Payments to Contractors External
Ashfield District Council,37UB,J Tomlinson Ltd,V922465,02/06/2020,41.70,R & B Transformation 2,Supplies & Services,G57002/D200008,Technical Services Depot,Payments to Contractors External
Ashfield District Council,37UB,J Tomlinson Ltd,V922466,02/06/2020,41.70,R & B Transformation 2,Supplies & Services,G57002/D200008,Technical Services Depot,Payments to Contractors External
Ashfield District Council,37UB,J Tomlinson Ltd,V922467,02/06/2020,41.70,R & B Transformation 2,Supplies & Services,G57002/D200008,Technical Services Depot,Payments to Contractors External
Ashfield District Council,37UB,J Tomlinson Ltd,V922468,02/06/2020,41.70,R & B Transformation 2,Supplies & Services,G57002/D200008,Technical Services Depot,Payments to Contractors External
Ashfield District Council,37UB,J Tomlinson Ltd,V922469,02/06/2020,41.70,R & B Transformation 2,Supplies & Services,G57002/D200008,Technical Services Depot,Payments to Contractors External
Ashfield District Council,37UB,J Tomlinson Ltd,V922470,02/06/2020,41.70,R & B Transformation 2,Supplies & Services,G57002/D200008,Technical Services Depot,Payments to Contractors External
Ashfield District Council,37UB,J Tomlinson Ltd,V922471,02/06/2020,41.70,R & B Transformation 2,Supplies & Services,G57002/D200008,Technical Services Depot,Payments to Contractors External
Ashfield District Council,37UB,J Tomlinson Ltd,V922472,02/06/2020,41.70,R & B Transformation 2,Supplies & Services,G57002/D200008,Technical Services Depot,Payments to Contractors External
Ashfield District Council,37UB,J Tomlinson Ltd,V922473,02/06/2020,41.70,R & B Transformation 2,Supplies & Services,G57002/D200008,Technical Services Depot,Payments to Contractors External
Ashfield District Council,37UB,J Tomlinson Ltd,V922474,02/06/2020,41.70,R & B Transformation 2,Supplies & Services,G57002/D200008,Technical Services Depot,Payments to Contractors External
Ashfield District Council,37UB,J Tomlinson Ltd,V922475,02/06/2020,41.70,R & B Transformation 2,Supplies & Services,G57002/D200008,Technical Services Depot,Payments to Contractors External
Ashfield District Council,37UB,J Tomlinson Ltd,V922476,02/06/2020,41.70,R & B Transformation 2,Supplies & Services,G57002/D200008,Technical Services Depot,Payments to Contractors External
Ashfield District Council,37UB,J Tomlinson Ltd,V922477,02/06/2020,41.70,R & B Transformation 2,Supplies & Services,G57002/D200008,Technical Services Depot,Payments to Contractors External
Ashfield District Council,37UB,J Tomlinson Ltd,V922478,02/06/2020,41.70,R & B Transformation 2,Supplies & Services,G57002/D200008,Technical Services Depot,Payments to Contractors External
Ashfield District Council,37UB,J Tomlinson Ltd,V922479,02/06/2020,41.70,R & B Transformation 2,Supplies & Services,G57002/D200008,Technical Services Depot,Payments to Contractors External
Ashfield District Council,37UB,J Tomlinson Ltd,V922480,02/06/2020,41.70,R & B Transformation 2,Supplies & Services,G57002/D200008,Technical Services Depot,Payments to Contractors External
Ashfield District Council,37UB,J Tomlinson Ltd,V922481,02/06/2020,41.70,R & B Transformation 2,Supplies & Services,G57002/D200008,Technical Services Depot,Payments to Contractors External
Ashfield District Council,37UB,J Tomlinson Ltd,V922482,02/06/2020,41.70,R & B Transformation 2,Supplies & Services,G57002/D200008,Technical Services Depot,Payments to Contractors External
Ashfield District Council,37UB,J Tomlinson Ltd,V922483,02/06/2020,41.70,R & B Transformation 2,Supplies & Services,G57002/D200008,Technical Services Depot,Payments to Contractors External
Ashfield District Council,37UB,J Tomlinson Ltd,V922484,02/06/2020,41.70,R & B Transformation 2,Supplies & Services,G57002/D200008,Technical Services Depot,Payments to Contractors External
Ashfield District Council,37UB,J Tomlinson Ltd,V922485,02/06/2020,41.70,R & B Transformation 2,Supplies & Services,G57002/D200008,Technical Services Depot,Payments to Contractors External
Ashfield District Council,37UB,J Tomlinson Ltd,V922486,02/06/2020,41.70,R & B Transformation 2,Supplies & Services,G57002/D200008,Technical Services Depot,Payments to Contractors External
Ashfield District Council,37UB,J Tomlinson Ltd,V922487,02/06/2020,41.70,R & B Transformation 2,Supplies & Services,G57002/D200008,Technical Services Depot,Payments to Contractors External
Ashfield District Council,37UB,J Tomlinson Ltd,V922488,02/06/2020,41.70,R & B Transformation 2,Supplies & Services,G57002/D200008,Technical Services Depot,Payments to Contractors External
Ashfield District Council,37UB,J Tomlinson Ltd,V922489,02/06/2020,41.70,R & B Transformation 2,Supplies & Services,G57002/D200008,Technical Services Depot,Payments to Contractors External
Ashfield District Council,37UB,J Tomlinson Ltd,V922490,02/06/2020,41.70,R & B Transformation 2,Supplies & Services,G57002/D200008,Technical Services Depot,Payments to Contractors External
Ashfield District Council,37UB,J Tomlinson Ltd,V922491,02/06/2020,41.70,R & B Transformation 2,Supplies & Services,G57002/D200008,Technical Services Depot,Payments to Contractors External
Ashfield District Council,37UB,J Tomlinson Ltd,V922492,02/06/2020,41.70,R & B Transformation 2,Supplies & Services,G57002/D200008,Technical Services Depot,Payments to Contractors External
Ashfield District Council,37UB,J Tomlinson Ltd,V922493,02/06/2020,41.70,R & B Transformation 2,Supplies & Services,G57002/D200008,Technical Services Depot,Payments to Contractors External
Ashfield District Council,37UB,J Tomlinson Ltd,V922494,02/06/2020,41.70,R & B Transformation 2,Supplies & Services,G57002/D200008,Technical Services Depot,Payments to Contractors External
Ashfield District Council,37UB,J Tomlinson Ltd,V922495,02/06/2020,41.70,R & B Transformation 2,Supplies & Services,G57002/D200008,Technical Services Depot,Payments to Contractors External
Ashfield District Council,37UB,J Tomlinson Ltd,V922496,02/06/2020,41.70,R & B Transformation 2,Supplies & Services,G57002/D200008,Technical Services Depot,Payments to Contractors External
Ashfield District Council,37UB,J Tomlinson Ltd,V922497,02/06/2020,41.70,R & B Transformation 2,Supplies & Services,G57002/D200008,Technical Services Depot,Payments to Contractors External
Ashfield District Council,37UB,J Tomlinson Ltd,V922498,02/06/2020,41.70,R & B Transformation 2,Supplies & Services,G57002/D200008,Technical Services Depot,Payments to Contractors External
Ashfield District Council,37UB,J Tomlinson Ltd,V922499,02/06/2020,41.70,R & B Transformation 2,Supplies & Services,G57002/D200008,Technical Services Depot,Payments to Contractors External
Ashfield District Council,37UB,J Tomlinson Ltd,V922500,02/06/2020,41.70,R & B Transformation 2,Supplies & Services,G57002/D200008,Technical Services Depot,Payments to Contractors External
Ashfield District Council,37UB,J Tomlinson Ltd,V922501,02/06/2020,41.70,R & B Transformation 2,Supplies & Services,G57002/D200008,Technical Services Depot,Payments to Contractors External
Ashfield District Council,37UB,J Tomlinson Ltd,V922502,02/06/2020,41.70,R & B Transformation 2,Supplies & Services,G57002/D200008,Technical Services Depot,Payments to Contractors External
Ashfield District Council,37UB,J Tomlinson Ltd,V922503,02/06/2020,41.70,R & B Transformation 2,Supplies & Services,G57002/D200008,Technical Services Depot,Payments to Contractors External
Ashfield District Council,37UB,J Tomlinson Ltd,V922506,02/06/2020,62.99,R & B Transformation 2,Supplies & Services,G57002/D200008,Technical Services Depot,Payments to Contractors External
Ashfield District Council,37UB,J Tomlinson Ltd,V922541,02/06/2020,495.76,R & B Transformation 2,Supplies & Services,G57002/D200008,Technical Services Depot,Payments to Contractors External
Ashfield District Council,37UB,J Tomlinson Ltd,V922542,02/06/2020,70.92,R & B Transformation 2,Supplies & Services,G57002/D200008,Technical Services Depot,Payments to Contractors External
Ashfield District Council,37UB,J Tomlinson Ltd,V922543,02/06/2020,345.20,R & B Transformation 2,Supplies & Services,G57002/D200008,Technical Services Depot,Payments to Contractors External
Ashfield District Council,37UB,J Tomlinson Ltd,V922546,02/06/2020,14.27,R & B Transformation 2,Supplies & Services,G57002/D200008,Technical Services Depot,Payments to Contractors External
Ashfield District Council,37UB,J Tomlinson Ltd,V922547,02/06/2020,33.90,R & B Transformation 2,Supplies & Services,G57002/D200008,Technical Services Depot,Payments to Contractors External
Ashfield District Council,37UB,J Tomlinson Ltd,V922548,02/06/2020,2412.56,R & B Transformation 2,Supplies & Services,G57002/D200008,Technical Services Depot,Payments to Contractors External
Ashfield District Council,37UB,J Tomlinson Ltd,V922549,02/06/2020,2871.03,R & B Transformation 2,Supplies & Services,G57002/D200008,Technical Services Depot,Payments to Contractors External
Ashfield District Council,37UB,J Tomlinson Ltd,V922550,02/06/2020,456.56,R & B Transformation 2,Supplies & Services,G57002/D200008,Technical Services Depot,Payments to Contractors External
Ashfield District Council,37UB,J Tomlinson Ltd,V922551,02/06/2020,101.54,R & B Transformation 2,Supplies & Services,G57002/D200008,Technical Services Depot,Payments to Contractors External
Ashfield District Council,37UB,J Tomlinson Ltd,V922557,02/06/2020,31.52,R & B Transformation 2,Supplies & Services,G57002/D200008,Technical Services Depot,Payments to Contractors External
Ashfield District Council,37UB,J Tomlinson Ltd,V922561,02/06/2020,44.00,R & B Transformation 2,Supplies & Services,G57002/D200008,Technical Services Depot,Payments to Contractors External
Ashfield District Council,37UB,J Tomlinson Ltd,V923759,08/06/2020,-107.57,R & B Transformation 2,Supplies & Services,G57002/D200008,Technical Services Depot,Payments to Contractors External
Ashfield District Council,37UB,J Tomlinson Ltd,V923760,08/06/2020,-62.99,R & B Transformation 2,Supplies & Services,G57002/D200008,Technical Services Depot,Payments to Contractors External
Ashfield District Council,37UB,J Tomlinson Ltd,V923761,08/06/2020,-777.49,R & B Transformation 2,Supplies & Services,G57002/D200008,Technical Services Depot,Payments to Contractors External
Ashfield District Council,37UB,J Tomlinson Ltd,V923762,08/06/2020,-30.44,R & B Transformation 2,Supplies & Services,G57002/D200008,Technical Services Depot,Payments to Contractors External
Ashfield District Council,37UB,J Tomlinson Ltd,V923763,08/06/2020,-40.52,R & B Transformation 2,Supplies & Services,G57002/D200008,Technical Services Depot,Payments to Contractors External
Ashfield District Council,37UB,J Tomlinson Ltd,V923764,08/06/2020,40.52,R & B Transformation 2,Supplies & Services,G57002/D200008,Technical Services Depot,Payments to Contractors External
Ashfield District Council,37UB,J Tomlinson Ltd,V923765,08/06/2020,30.44,R & B Transformation 2,Supplies & Services,G57002/D200008,Technical Services Depot,Payments to Contractors External
Ashfield District Council,37UB,J Tomlinson Ltd,V923766,08/06/2020,21.82,R & B Transformation 2,Supplies & Services,G57002/D200008,Technical Services Depot,Payments to Contractors External
Ashfield District Council,37UB,J Tomlinson Ltd,V923767,08/06/2020,61.99,R & B Transformation 2,Supplies & Services,G57002/D200008,Technical Services Depot,Payments to Contractors External
Ashfield District Council,37UB,J Tomlinson Ltd,V923768,08/06/2020,135.97,R & B Transformation 2,Supplies & Services,G57002/D200008,Technical Services Depot,Payments to Contractors External
Ashfield District Council,37UB,J Tomlinson Ltd,V923769,08/06/2020,30.99,R & B Transformation 2,Supplies & Services,G57002/D200008,Technical Services Depot,Payments to Contractors External
Ashfield District Council,37UB,J Tomlinson Ltd,V923771,08/06/2020,3407.08,R & B Transformation 2,Supplies & Services,G57002/D200008,Technical Services Depot,Payments to Contractors External
Ashfield District Council,37UB,J Tomlinson Ltd,V923772,08/06/2020,777.49,R & B Transformation 2,Supplies & Services,G57002/D200008,Technical Services Depot,Payments to Contractors External
Ashfield District Council,37UB,J Tomlinson Ltd,V923773,08/06/2020,28.53,R & B Transformation 2,Supplies & Services,G57002/D200008,Technical Services Depot,Payments to Contractors External
Ashfield District Council,37UB,J Tomlinson Ltd,V923774,08/06/2020,107.57,R & B Transformation 2,Supplies & Services,G57002/D200008,Technical Services Depot,Payments to Contractors External
Ashfield District Council,37UB,J Tomlinson Ltd,V923775,08/06/2020,2412.58,R & B Transformation 2,Supplies & Services,G57002/D200008,Technical Services Depot,Payments to Contractors External
Ashfield District Council,37UB,J Tomlinson Ltd,V923776,08/06/2020,2412.58,R & B Transformation 2,Supplies & Services,G57002/D200008,Technical Services Depot,Payments to Contractors External
Ashfield District Council,37UB,J Tomlinson Ltd,V923777,08/06/2020,136.96,R & B Transformation 2,Supplies & Services,G57002/D200008,Technical Services Depot,Payments to Contractors External
Ashfield District Council,37UB,J Tomlinson Ltd,V923781,08/06/2020,28.44,R & B Transformation 2,Supplies & Services,G57002/D200008,Technical Services Depot,Payments to Contractors External
Ashfield District Council,37UB,J Tomlinson Ltd,V923782,08/06/2020,136.96,R & B Transformation 2,Supplies & Services,G57002/D200008,Technical Services Depot,Payments to Contractors External
Ashfield District Council,37UB,J Tomlinson Ltd,V923783,08/06/2020,28.44,R & B Transformation 2,Supplies & Services,G57002/D200008,Technical Services Depot,Payments to Contractors External
Ashfield District Council,37UB,J Tomlinson Ltd,V923784,08/06/2020,28.44,R & B Transformation 2,Supplies & Services,G57002/D200008,Technical Services Depot,Payments to Contractors External
Ashfield District Council,37UB,J Tomlinson Ltd,V923785,08/06/2020,28.44,R & B Transformation 2,Supplies & Services,G57002/D200008,Technical Services Depot,Payments to Contractors External
Ashfield District Council,37UB,J Tomlinson Ltd,V923786,08/06/2020,28.44,R & B Transformation 2,Supplies & Services,G57002/D200008,Technical Services Depot,Payments to Contractors External
Ashfield District Council,37UB,J Tomlinson Ltd,V923787,08/06/2020,28.44,R & B Transformation 2,Supplies & Services,G57002/D200008,Technical Services Depot,Payments to Contractors External
Ashfield District Council,37UB,J Tomlinson Ltd,V923788,08/06/2020,28.44,R & B Transformation 2,Supplies & Services,G57002/D200008,Technical Services Depot,Payments to Contractors External
Ashfield District Council,37UB,J Tomlinson Ltd,V923789,08/06/2020,28.44,R & B Transformation 2,Supplies & Services,G57002/D200008,Technical Services Depot,Payments to Contractors External
Ashfield District Council,37UB,J Tomlinson Ltd,V923790,08/06/2020,28.44,R & B Transformation 2,Supplies & Services,G57002/D200008,Technical Services Depot,Payments to Contractors External
Ashfield District Council,37UB,J Tomlinson Ltd,V923791,08/06/2020,28.44,R & B Transformation 2,Supplies & Services,G57002/D200008,Technical Services Depot,Payments to Contractors External
Ashfield District Council,37UB,J Tomlinson Ltd,V923792,08/06/2020,28.44,R & B Transformation 2,Supplies & Services,G57002/D200008,Technical Services Depot,Payments to Contractors External
Ashfield District Council,37UB,J Tomlinson Ltd,V923804,08/06/2020,28.44,R & B Transformation 2,Supplies & Services,G57002/D200008,Technical Services Depot,Payments to Contractors External
Ashfield District Council,37UB,J Tomlinson Ltd,V923805,08/06/2020,28.44,R & B Transformation 2,Supplies & Services,G57002/D200008,Technical Services Depot,Payments to Contractors External
Ashfield District Council,37UB,J Tomlinson Ltd,V923806,08/06/2020,28.44,R & B Transformation 2,Supplies & Services,G57002/D200008,Technical Services Depot,Payments to Contractors External
Ashfield District Council,37UB,J Tomlinson Ltd,V923809,08/06/2020,14.27,R & B Transformation 2,Supplies & Services,G57002/D200008,Technical Services Depot,Payments to Contractors External
Ashfield District Council,37UB,J Tomlinson Ltd,V923810,08/06/2020,33.90,R & B Transformation 2,Supplies & Services,G57002/D200008,Technical Services Depot,Payments to Contractors External
Ashfield District Council,37UB,J Tomlinson Ltd,V923821,08/06/2020,33.90,R & B Transformation 2,Supplies & Services,G57002/D200008,Technical Services Depot,Payments to Contractors External
Ashfield District Council,37UB,J Tomlinson Ltd,V923822,08/06/2020,60.81,R & B Transformation 2,Supplies & Services,G57002/D200008,Technical Services Depot,Payments to Contractors External
Ashfield District Council,37UB,J Tomlinson Ltd,V923823,08/06/2020,60.82,R & B Transformation 2,Supplies & Services,G57002/D200008,Technical Services Depot,Payments to Contractors External
Ashfield District Council,37UB,J Tomlinson Ltd,V923824,08/06/2020,60.82,R & B Transformation 2,Supplies & Services,G57002/D200008,Technical Services Depot,Payments to Contractors External
Ashfield District Council,37UB,J Tomlinson Ltd,V923825,08/06/2020,60.82,R & B Transformation 2,Supplies & Services,G57002/D200008,Technical Services Depot,Payments to Contractors External
Ashfield District Council,37UB,J Tomlinson Ltd,V923826,08/06/2020,60.82,R & B Transformation 2,Supplies & Services,G57002/D200008,Technical Services Depot,Payments to Contractors External
Ashfield District Council,37UB,J Tomlinson Ltd,V923827,08/06/2020,60.82,R & B Transformation 2,Supplies & Services,G57002/D200008,Technical Services Depot,Payments to Contractors External
Ashfield District Council,37UB,J Tomlinson Ltd,V923828,08/06/2020,60.82,R & B Transformation 2,Supplies & Services,G57002/D200008,Technical Services Depot,Payments to Contractors External
Ashfield District Council,37UB,J Tomlinson Ltd,V923829,08/06/2020,60.82,R & B Transformation 2,Supplies & Services,G57002/D200008,Technical Services Depot,Payments to Contractors External
Ashfield District Council,37UB,J Tomlinson Ltd,V923830,08/06/2020,60.82,R & B Transformation 2,Supplies & Services,G57002/D200008,Technical Services Depot,Payments to Contractors External
Ashfield District Council,37UB,J Tomlinson Ltd,V923831,08/06/2020,60.82,R & B Transformation 2,Supplies & Services,G57002/D200008,Technical Services Depot,Payments to Contractors External
Ashfield District Council,37UB,J Tomlinson Ltd,V923832,08/06/2020,60.82,R & B Transformation 2,Supplies & Services,G57002/D200008,Technical Services Depot,Payments to Contractors External
Ashfield District Council,37UB,J Tomlinson Ltd,V923833,08/06/2020,60.82,R & B Transformation 2,Supplies & Services,G57002/D200008,Technical Services Depot,Payments to Contractors External
Ashfield District Council,37UB,J Tomlinson Ltd,V923834,08/06/2020,60.82,R & B Transformation 2,Supplies & Services,G57002/D200008,Technical Services Depot,Payments to Contractors External
Ashfield District Council,37UB,J Tomlinson Ltd,V923835,08/06/2020,60.82,R & B Transformation 2,Supplies & Services,G57002/D200008,Technical Services Depot,Payments to Contractors External
Ashfield District Council,37UB,J Tomlinson Ltd,V923836,08/06/2020,60.82,R & B Transformation 2,Supplies & Services,G57002/D200008,Technical Services Depot,Payments to Contractors External
Ashfield District Council,37UB,J Tomlinson Ltd,V923837,08/06/2020,60.82,R & B Transformation 2,Supplies & Services,G57002/D200008,Technical Services Depot,Payments to Contractors External
Ashfield District Council,37UB,J Tomlinson Ltd,V923838,08/06/2020,60.82,R & B Transformation 2,Supplies & Services,G57002/D200008,Technical Services Depot,Payments to Contractors External
Ashfield District Council,37UB,J Tomlinson Ltd,V923839,08/06/2020,60.82,R & B Transformation 2,Supplies & Services,G57002/D200008,Technical Services Depot,Payments to Contractors External
Ashfield District Council,37UB,J Tomlinson Ltd,V923840,08/06/2020,60.82,R & B Transformation 2,Supplies & Services,G57002/D200008,Technical Services Depot,Payments to Contractors External
Ashfield District Council,37UB,J Tomlinson Ltd,V923841,08/06/2020,60.82,R & B Transformation 2,Supplies & Services,G57002/D200008,Technical Services Depot,Payments to Contractors External
Ashfield District Council,37UB,J Tomlinson Ltd,V923842,08/06/2020,60.82,R & B Transformation 2,Supplies & Services,G57002/D200008,Technical Services Depot,Payments to Contractors External
Ashfield District Council,37UB,J Tomlinson Ltd,V923843,08/06/2020,60.82,R & B Transformation 2,Supplies & Services,G57002/D200008,Technical Services Depot,Payments to Contractors External
Ashfield District Council,37UB,J Tomlinson Ltd,V923844,08/06/2020,60.82,R & B Transformation 2,Supplies & Services,G57002/D200008,Technical Services Depot,Payments to Contractors External
Ashfield District Council,37UB,J Tomlinson Ltd,V923845,08/06/2020,60.82,R & B Transformation 2,Supplies & Services,G57002/D200008,Technical Services Depot,Payments to Contractors External
Ashfield District Council,37UB,J Tomlinson Ltd,V923846,08/06/2020,60.82,R & B Transformation 2,Supplies & Services,G57002/D200008,Technical Services Depot,Payments to Contractors External
Ashfield District Council,37UB,J Tomlinson Ltd,V923847,08/06/2020,60.82,R & B Transformation 2,Supplies & Services,G57002/D200008,Technical Services Depot,Payments to Contractors External
Ashfield District Council,37UB,J Tomlinson Ltd,V923848,08/06/2020,60.82,R & B Transformation 2,Supplies & Services,G57002/D200008,Technical Services Depot,Payments to Contractors External
Ashfield District Council,37UB,J Tomlinson Ltd,V923849,08/06/2020,60.82,R & B Transformation 2,Supplies & Services,G57002/D200008,Technical Services Depot,Payments to Contractors External
Ashfield District Council,37UB,J Tomlinson Ltd,V923850,08/06/2020,60.82,R & B Transformation 2,Supplies & Services,G57002/D200008,Technical Services Depot,Payments to Contractors External
Ashfield District Council,37UB,J Tomlinson Ltd,V923851,08/06/2020,60.82,R & B Transformation 2,Supplies & Services,G57002/D200008,Technical Services Depot,Payments to Contractors External
Ashfield District Council,37UB,J Tomlinson Ltd,V923852,08/06/2020,60.82,R & B Transformation 2,Supplies & Services,G57002/D200008,Technical Services Depot,Payments to Contractors External
Ashfield District Council,37UB,J Tomlinson Ltd,V923853,08/06/2020,60.82,R & B Transformation 2,Supplies & Services,G57002/D200008,Technical Services Depot,Payments to Contractors External
Ashfield District Council,37UB,J Tomlinson Ltd,V923854,08/06/2020,60.82,R & B Transformation 2,Supplies & Services,G57002/D200008,Technical Services Depot,Payments to Contractors External
Ashfield District Council,37UB,J Tomlinson Ltd,V923855,08/06/2020,60.82,R & B Transformation 2,Supplies & Services,G57002/D200008,Technical Services Depot,Payments to Contractors External
Ashfield District Council,37UB,J Tomlinson Ltd,V923856,08/06/2020,60.82,R & B Transformation 2,Supplies & Services,G57002/D200008,Technical Services Depot,Payments to Contractors External
Ashfield District Council,37UB,J Tomlinson Ltd,V923857,08/06/2020,60.82,R & B Transformation 2,Supplies & Services,G57002/D200008,Technical Services Depot,Payments to Contractors External
Ashfield District Council,37UB,J Tomlinson Ltd,V923858,08/06/2020,60.82,R & B Transformation 2,Supplies & Services,G57002/D200008,Technical Services Depot,Payments to Contractors External
Ashfield District Council,37UB,J Tomlinson Ltd,V923859,08/06/2020,60.82,R & B Transformation 2,Supplies & Services,G57002/D200008,Technical Services Depot,Payments to Contractors External
Ashfield District Council,37UB,J Tomlinson Ltd,V923860,08/06/2020,60.82,R & B Transformation 2,Supplies & Services,G57002/D200008,Technical Services Depot,Payments to Contractors External
Ashfield District Council,37UB,J Tomlinson Ltd,V923861,08/06/2020,60.82,R & B Transformation 2,Supplies & Services,G57002/D200008,Technical Services Depot,Payments to Contractors External
Ashfield District Council,37UB,J Tomlinson Ltd,V923862,08/06/2020,60.82,R & B Transformation 2,Supplies & Services,G57002/D200008,Technical Services Depot,Payments to Contractors External
Ashfield District Council,37UB,J Tomlinson Ltd,V923863,08/06/2020,60.82,R & B Transformation 2,Supplies & Services,G57002/D200008,Technical Services Depot,Payments to Contractors External
Ashfield District Council,37UB,J Tomlinson Ltd,V923864,08/06/2020,60.82,R & B Transformation 2,Supplies & Services,G57002/D200008,Technical Services Depot,Payments to Contractors External
Ashfield District Council,37UB,J Tomlinson Ltd,V923865,08/06/2020,60.82,R & B Transformation 2,Supplies & Services,G57002/D200008,Technical Services Depot,Payments to Contractors External
Ashfield District Council,37UB,J Tomlinson Ltd,V923866,08/06/2020,60.82,R & B Transformation 2,Supplies & Services,G57002/D200008,Technical Services Depot,Payments to Contractors External
Ashfield District Council,37UB,J Tomlinson Ltd,V923867,08/06/2020,60.82,R & B Transformation 2,Supplies & Services,G57002/D200008,Technical Services Depot,Payments to Contractors External
Ashfield District Council,37UB,J Tomlinson Ltd,V923868,08/06/2020,60.82,R & B Transformation 2,Supplies & Services,G57002/D200008,Technical Services Depot,Payments to Contractors External
Ashfield District Council,37UB,J Tomlinson Ltd,V923869,08/06/2020,60.82,R & B Transformation 2,Supplies & Services,G57002/D200008,Technical Services Depot,Payments to Contractors External
Ashfield District Council,37UB,J Tomlinson Ltd,V923870,08/06/2020,60.82,R & B Transformation 2,Supplies & Services,G57002/D200008,Technical Services Depot,Payments to Contractors External
Ashfield District Council,37UB,J Tomlinson Ltd,V923871,08/06/2020,60.82,R & B Transformation 2,Supplies & Services,G57002/D200008,Technical Services Depot,Payments to Contractors External
Ashfield District Council,37UB,J Tomlinson Ltd,V923872,08/06/2020,60.82,R & B Transformation 2,Supplies & Services,G57002/D200008,Technical Services Depot,Payments to Contractors External
Ashfield District Council,37UB,J Tomlinson Ltd,V923873,08/06/2020,60.82,R & B Transformation 2,Supplies & Services,G57002/D200008,Technical Services Depot,Payments to Contractors External
Ashfield District Council,37UB,J Tomlinson Ltd,V923874,08/06/2020,60.82,R & B Transformation 2,Supplies & Services,G57002/D200008,Technical Services Depot,Payments to Contractors External
Ashfield District Council,37UB,J Tomlinson Ltd,V923875,08/06/2020,60.82,R & B Transformation 2,Supplies & Services,G57002/D200008,Technical Services Depot,Payments to Contractors External
Ashfield District Council,37UB,J Tomlinson Ltd,V923876,08/06/2020,60.82,R & B Transformation 2,Supplies & Services,G57002/D200008,Technical Services Depot,Payments to Contractors External
Ashfield District Council,37UB,J Tomlinson Ltd,V923877,08/06/2020,60.82,R & B Transformation 2,Supplies & Services,G57002/D200008,Technical Services Depot,Payments to Contractors External
Ashfield District Council,37UB,J Tomlinson Ltd,V923878,08/06/2020,60.82,R & B Transformation 2,Supplies & Services,G57002/D200008,Technical Services Depot,Payments to Contractors External
Ashfield District Council,37UB,J Tomlinson Ltd,V923879,08/06/2020,60.82,R & B Transformation 2,Supplies & Services,G57002/D200008,Technical Services Depot,Payments to Contractors External
Ashfield District Council,37UB,J Tomlinson Ltd,V923880,08/06/2020,60.82,R & B Transformation 2,Supplies & Services,G57002/D200008,Technical Services Depot,Payments to Contractors External
Ashfield District Council,37UB,J Tomlinson Ltd,V925881,15/06/2020,6072.94,R & B Transformation 2,Supplies & Services,G57002/D200008,Technical Services Depot,Payments to Contractors External
Ashfield District Council,37UB,J Tomlinson Ltd,V925881,15/06/2020,89.47,R & B Transformation 2,Supplies & Services,G57002/D200008,Technical Services Depot,Payments to Contractors External
Ashfield District Council,37UB,J Tomlinson Ltd,V926311,23/06/2020,-28.44,R & B Transformation 2,Supplies & Services,G57002/D200008,Technical Services Depot,Payments to Contractors External
Ashfield District Council,37UB,J Tomlinson Ltd,V926330,23/06/2020,41.70,R & B Transformation 2,Supplies & Services,G57002/D200008,Technical Services Depot,Payments to Contractors External
Ashfield District Council,37UB,J Tomlinson Ltd,V926331,23/06/2020,41.70,R & B Transformation 2,Supplies & Services,G57002/D200008,Technical Services Depot,Payments to Contractors External
Ashfield District Council,37UB,J Tomlinson Ltd,V926332,23/06/2020,41.70,R & B Transformation 2,Supplies & Services,G57002/D200008,Technical Services Depot,Payments to Contractors External
Ashfield District Council,37UB,J Tomlinson Ltd,V926333,23/06/2020,41.70,R & B Transformation 2,Supplies & Services,G57002/D200008,Technical Services Depot,Payments to Contractors External
Ashfield District Council,37UB,J Tomlinson Ltd,V926334,23/06/2020,41.70,R & B Transformation 2,Supplies & Services,G57002/D200008,Technical Services Depot,Payments to Contractors External
Ashfield District Council,37UB,J Tomlinson Ltd,V926335,23/06/2020,41.70,R & B Transformation 2,Supplies & Services,G57002/D200008,Technical Services Depot,Payments to Contractors External
Ashfield District Council,37UB,J Tomlinson Ltd,V926336,23/06/2020,41.70,R & B Transformation 2,Supplies & Services,G57002/D200008,Technical Services Depot,Payments to Contractors External
Ashfield District Council,37UB,J Tomlinson Ltd,V926337,23/06/2020,41.70,R & B Transformation 2,Supplies & Services,G57002/D200008,Technical Services Depot,Payments to Contractors External
Ashfield District Council,37UB,J Tomlinson Ltd,V926338,23/06/2020,41.70,R & B Transformation 2,Supplies & Services,G57002/D200008,Technical Services Depot,Payments to Contractors External
Ashfield District Council,37UB,J Tomlinson Ltd,V926339,23/06/2020,41.70,R & B Transformation 2,Supplies & Services,G57002/D200008,Technical Services Depot,Payments to Contractors External
Ashfield District Council,37UB,J Tomlinson Ltd,V926340,23/06/2020,41.70,R & B Transformation 2,Supplies & Services,G57002/D200008,Technical Services Depot,Payments to Contractors External
Ashfield District Council,37UB,J Tomlinson Ltd,V926341,23/06/2020,41.70,R & B Transformation 2,Supplies & Services,G57002/D200008,Technical Services Depot,Payments to Contractors External
Ashfield District Council,37UB,J Tomlinson Ltd,V926342,23/06/2020,41.70,R & B Transformation 2,Supplies & Services,G57002/D200008,Technical Services Depot,Payments to Contractors External
Ashfield District Council,37UB,J Tomlinson Ltd,V926343,23/06/2020,41.70,R & B Transformation 2,Supplies & Services,G57002/D200008,Technical Services Depot,Payments to Contractors External
Ashfield District Council,37UB,J Tomlinson Ltd,V926344,23/06/2020,41.70,R & B Transformation 2,Supplies & Services,G57002/D200008,Technical Services Depot,Payments to Contractors External
Ashfield District Council,37UB,J Tomlinson Ltd,V926345,23/06/2020,41.70,R & B Transformation 2,Supplies & Services,G57002/D200008,Technical Services Depot,Payments to Contractors External
Ashfield District Council,37UB,J Tomlinson Ltd,V926346,23/06/2020,41.70,R & B Transformation 2,Supplies & Services,G57002/D200008,Technical Services Depot,Payments to Contractors External
Ashfield District Council,37UB,J Tomlinson Ltd,V926347,23/06/2020,41.70,R & B Transformation 2,Supplies & Services,G57002/D200008,Technical Services Depot,Payments to Contractors External
Ashfield District Council,37UB,J Tomlinson Ltd,V926348,23/06/2020,41.70,R & B Transformation 2,Supplies & Services,G57002/D200008,Technical Services Depot,Payments to Contractors External
Ashfield District Council,37UB,J Tomlinson Ltd,V926349,23/06/2020,41.70,R & B Transformation 2,Supplies & Services,G57002/D200008,Technical Services Depot,Payments to Contractors External
Ashfield District Council,37UB,J Tomlinson Ltd,V926350,23/06/2020,41.70,R & B Transformation 2,Supplies & Services,G57002/D200008,Technical Services Depot,Payments to Contractors External
Ashfield District Council,37UB,J Tomlinson Ltd,V926351,23/06/2020,41.70,R & B Transformation 2,Supplies & Services,G57002/D200008,Technical Services Depot,Payments to Contractors External
Ashfield District Council,37UB,J Tomlinson Ltd,V926352,23/06/2020,41.70,R & B Transformation 2,Supplies & Services,G57002/D200008,Technical Services Depot,Payments to Contractors External
Ashfield District Council,37UB,J Tomlinson Ltd,V926353,23/06/2020,41.70,R & B Transformation 2,Supplies & Services,G57002/D200008,Technical Services Depot,Payments to Contractors External
Ashfield District Council,37UB,J Tomlinson Ltd,V926354,23/06/2020,41.70,R & B Transformation 2,Supplies & Services,G57002/D200008,Technical Services Depot,Payments to Contractors External
Ashfield District Council,37UB,J Tomlinson Ltd,V926355,23/06/2020,41.70,R & B Transformation 2,Supplies & Services,G57002/D200008,Technical Services Depot,Payments to Contractors External
Ashfield District Council,37UB,J Tomlinson Ltd,V926356,23/06/2020,41.70,R & B Transformation 2,Supplies & Services,G57002/D200008,Technical Services Depot,Payments to Contractors External
Ashfield District Council,37UB,J Tomlinson Ltd,V926357,23/06/2020,41.70,R & B Transformation 2,Supplies & Services,G57002/D200008,Technical Services Depot,Payments to Contractors External
Ashfield District Council,37UB,J Tomlinson Ltd,V926358,23/06/2020,41.70,R & B Transformation 2,Supplies & Services,G57002/D200008,Technical Services Depot,Payments to Contractors External
Ashfield District Council,37UB,J Tomlinson Ltd,V926359,23/06/2020,41.70,R & B Transformation 2,Supplies & Services,G57002/D200008,Technical Services Depot,Payments to Contractors External
Ashfield District Council,37UB,J Tomlinson Ltd,V926360,23/06/2020,41.70,R & B Transformation 2,Supplies & Services,G57002/D200008,Technical Services Depot,Payments to Contractors External
Ashfield District Council,37UB,J Tomlinson Ltd,V926361,23/06/2020,41.70,R & B Transformation 2,Supplies & Services,G57002/D200008,Technical Services Depot,Payments to Contractors External
Ashfield District Council,37UB,J Tomlinson Ltd,V926362,23/06/2020,41.70,R & B Transformation 2,Supplies & Services,G57002/D200008,Technical Services Depot,Payments to Contractors External
Ashfield District Council,37UB,J Tomlinson Ltd,V926363,23/06/2020,41.70,R & B Transformation 2,Supplies & Services,G57002/D200008,Technical Services Depot,Payments to Contractors External
Ashfield District Council,37UB,J Tomlinson Ltd,V926364,23/06/2020,41.70,R & B Transformation 2,Supplies & Services,G57002/D200008,Technical Services Depot,Payments to Contractors External
Ashfield District Council,37UB,J Tomlinson Ltd,V926365,23/06/2020,41.70,R & B Transformation 2,Supplies & Services,G57002/D200008,Technical Services Depot,Payments to Contractors External
Ashfield District Council,37UB,J Tomlinson Ltd,V926366,23/06/2020,41.70,R & B Transformation 2,Supplies & Services,G57002/D200008,Technical Services Depot,Payments to Contractors External
Ashfield District Council,37UB,J Tomlinson Ltd,V926367,23/06/2020,41.70,R & B Transformation 2,Supplies & Services,G57002/D200008,Technical Services Depot,Payments to Contractors External
Ashfield District Council,37UB,J Tomlinson Ltd,V926368,23/06/2020,41.70,R & B Transformation 2,Supplies & Services,G57002/D200008,Technical Services Depot,Payments to Contractors External
Ashfield District Council,37UB,J Tomlinson Ltd,V926369,23/06/2020,41.70,R & B Transformation 2,Supplies & Services,G57002/D200008,Technical Services Depot,Payments to Contractors External
Ashfield District Council,37UB,J Tomlinson Ltd,V926370,23/06/2020,41.70,R & B Transformation 2,Supplies & Services,G57002/D200008,Technical Services Depot,Payments to Contractors External
Ashfield District Council,37UB,J Tomlinson Ltd,V926371,23/06/2020,41.70,R & B Transformation 2,Supplies & Services,G57002/D200008,Technical Services Depot,Payments to Contractors External
Ashfield District Council,37UB,J Tomlinson Ltd,V926372,23/06/2020,41.70,R & B Transformation 2,Supplies & Services,G57002/D200008,Technical Services Depot,Payments to Contractors External
Ashfield District Council,37UB,J Tomlinson Ltd,V926373,23/06/2020,41.70,R & B Transformation 2,Supplies & Services,G57002/D200008,Technical Services Depot,Payments to Contractors External
Ashfield District Council,37UB,J Tomlinson Ltd,V926374,23/06/2020,41.70,R & B Transformation 2,Supplies & Services,G57002/D200008,Technical Services Depot,Payments to Contractors External
Ashfield District Council,37UB,J Tomlinson Ltd,V926375,23/06/2020,41.70,R & B Transformation 2,Supplies & Services,G57002/D200008,Technical Services Depot,Payments to Contractors External
Ashfield District Council,37UB,J Tomlinson Ltd,V926376,23/06/2020,41.70,R & B Transformation 2,Supplies & Services,G57002/D200008,Technical Services Depot,Payments to Contractors External
Ashfield District Council,37UB,J Tomlinson Ltd,V926377,23/06/2020,41.70,R & B Transformation 2,Supplies & Services,G57002/D200008,Technical Services Depot,Payments to Contractors External
Ashfield District Council,37UB,J Tomlinson Ltd,V926378,23/06/2020,41.70,R & B Transformation 2,Supplies & Services,G57002/D200008,Technical Services Depot,Payments to Contractors External
Ashfield District Council,37UB,J Tomlinson Ltd,V926379,23/06/2020,41.70,R & B Transformation 2,Supplies & Services,G57002/D200008,Technical Services Depot,Payments to Contractors External
Ashfield District Council,37UB,J Tomlinson Ltd,V926380,23/06/2020,41.70,R & B Transformation 2,Supplies & Services,G57002/D200008,Technical Services Depot,Payments to Contractors External
Ashfield District Council,37UB,J Tomlinson Ltd,V926381,23/06/2020,41.70,R & B Transformation 2,Supplies & Services,G57002/D200008,Technical Services Depot,Payments to Contractors External
Ashfield District Council,37UB,J Tomlinson Ltd,V926382,23/06/2020,41.70,R & B Transformation 2,Supplies & Services,G57002/D200008,Technical Services Depot,Payments to Contractors External
Ashfield District Council,37UB,J Tomlinson Ltd,V926383,23/06/2020,41.70,R & B Transformation 2,Supplies & Services,G57002/D200008,Technical Services Depot,Payments to Contractors External
Ashfield District Council,37UB,J Tomlinson Ltd,V926384,23/06/2020,41.70,R & B Transformation 2,Supplies & Services,G57002/D200008,Technical Services Depot,Payments to Contractors External
Ashfield District Council,37UB,J Tomlinson Ltd,V926385,23/06/2020,41.70,R & B Transformation 2,Supplies & Services,G57002/D200008,Technical Services Depot,Payments to Contractors External
Ashfield District Council,37UB,J Tomlinson Ltd,V926386,23/06/2020,41.70,R & B Transformation 2,Supplies & Services,G57002/D200008,Technical Services Depot,Payments to Contractors External
Ashfield District Council,37UB,J Tomlinson Ltd,V926387,23/06/2020,41.70,R & B Transformation 2,Supplies & Services,G57002/D200008,Technical Services Depot,Payments to Contractors External
Ashfield District Council,37UB,J Tomlinson Ltd,V926388,23/06/2020,41.70,R & B Transformation 2,Supplies & Services,G57002/D200008,Technical Services Depot,Payments to Contractors External
Ashfield District Council,37UB,J Tomlinson Ltd,V926389,23/06/2020,41.70,R & B Transformation 2,Supplies & Services,G57002/D200008,Technical Services Depot,Payments to Contractors External
Ashfield District Council,37UB,J Tomlinson Ltd,V926390,23/06/2020,41.70,R & B Transformation 2,Supplies & Services,G57002/D200008,Technical Services Depot,Payments to Contractors External
Ashfield District Council,37UB,J Tomlinson Ltd,V926391,23/06/2020,41.70,R & B Transformation 2,Supplies & Services,G57002/D200008,Technical Services Depot,Payments to Contractors External
Ashfield District Council,37UB,J Tomlinson Ltd,V926392,23/06/2020,41.70,R & B Transformation 2,Supplies & Services,G57002/D200008,Technical Services Depot,Payments to Contractors External
Ashfield District Council,37UB,J Tomlinson Ltd,V926443,23/06/2020,19.97,R & B Transformation 2,Supplies & Services,G57002/D200008,Technical Services Depot,Payments to Contractors External
Ashfield District Council,37UB,J Tomlinson Ltd,V926444,23/06/2020,19.97,R & B Transformation 2,Supplies & Services,G57002/D200008,Technical Services Depot,Payments to Contractors External
Ashfield District Council,37UB,J Tomlinson Ltd,V926445,23/06/2020,19.97,R & B Transformation 2,Supplies & Services,G57002/D200008,Technical Services Depot,Payments to Contractors External
Ashfield District Council,37UB,J Tomlinson Ltd,V926446,23/06/2020,19.97,R & B Transformation 2,Supplies & Services,G57002/D200008,Technical Services Depot,Payments to Contractors External
Ashfield District Council,37UB,J Tomlinson Ltd,V926447,23/06/2020,31.52,R & B Transformation 2,Supplies & Services,G57002/D200008,Technical Services Depot,Payments to Contractors External
Ashfield District Council,37UB,J Tomlinson Ltd,V926450,23/06/2020,641.90,R & B Transformation 2,Supplies & Services,G57002/D200008,Technical Services Depot,Payments to Contractors External
Ashfield District Council,37UB,J Tomlinson Ltd,V926451,23/06/2020,61.99,R & B Transformation 2,Supplies & Services,G57002/D200008,Technical Services Depot,Payments to Contractors External
Ashfield District Council,37UB,J Tomlinson Ltd,V926452,23/06/2020,68.80,R & B Transformation 2,Supplies & Services,G57002/D200008,Technical Services Depot,Payments to Contractors External
Ashfield District Council,37UB,J Tomlinson Ltd,V926453,23/06/2020,61.99,R & B Transformation 2,Supplies & Services,G57002/D200008,Technical Services Depot,Payments to Contractors External
Ashfield District Council,37UB,J Tomlinson Ltd,V926454,23/06/2020,60.81,R & B Transformation 2,Supplies & Services,G57002/D200008,Technical Services Depot,Payments to Contractors External
Ashfield District Council,37UB,J Tomlinson Ltd,V926468,23/06/2020,30.99,R & B Transformation 2,Supplies & Services,G57002/D200008,Technical Services Depot,Payments to Contractors External
Ashfield District Council,37UB,J Tomlinson Ltd,V926469,23/06/2020,61.99,R & B Transformation 2,Supplies & Services,G57002/D200008,Technical Services Depot,Payments to Contractors External
Ashfield District Council,37UB,J Tomlinson Ltd,V926470,23/06/2020,61.99,R & B Transformation 2,Supplies & Services,G57002/D200008,Technical Services Depot,Payments to Contractors External
Ashfield District Council,37UB,J Tomlinson Ltd,V926471,23/06/2020,61.99,R & B Transformation 2,Supplies & Services,G57002/D200008,Technical Services Depot,Payments to Contractors External
Ashfield District Council,37UB,J Tomlinson Ltd,V926472,23/06/2020,61.99,R & B Transformation 2,Supplies & Services,G57002/D200008,Technical Services Depot,Payments to Contractors External
Ashfield District Council,37UB,J Tomlinson Ltd,V926473,23/06/2020,61.99,R & B Transformation 2,Supplies & Services,G57002/D200008,Technical Services Depot,Payments to Contractors External
Ashfield District Council,37UB,J Tomlinson Ltd,V926474,23/06/2020,14.27,R & B Transformation 2,Supplies & Services,G57002/D200008,Technical Services Depot,Payments to Contractors External
Ashfield District Council,37UB,J Tomlinson Ltd,V926476,23/06/2020,28.44,R & B Transformation 2,Supplies & Services,G57002/D200008,Technical Services Depot,Payments to Contractors External
Ashfield District Council,37UB,J Tomlinson Ltd,V926477,23/06/2020,19.97,R & B Transformation 2,Supplies & Services,G57002/D200008,Technical Services Depot,Payments to Contractors External
Ashfield District Council,37UB,J Tomlinson Ltd,V926478,23/06/2020,30.99,R & B Transformation 2,Supplies & Services,G57002/D200008,Technical Services Depot,Payments to Contractors External
Ashfield District Council,37UB,J Tomlinson Ltd,V926479,23/06/2020,68.48,R & B Transformation 2,Supplies & Services,G57002/D200008,Technical Services Depot,Payments to Contractors External
Ashfield District Council,37UB,J Tomlinson Ltd,V926480,23/06/2020,68.48,R & B Transformation 2,Supplies & Services,G57002/D200008,Technical Services Depot,Payments to Contractors External
Ashfield District Council,37UB,J Tomlinson Ltd,V926481,23/06/2020,2257.50,R & B Transformation 2,Supplies & Services,G57002/D200008,Technical Services Depot,Payments to Contractors External
Ashfield District Council,37UB,J Tomlinson Ltd,V926482,23/06/2020,2257.50,R & B Transformation 2,Supplies & Services,G57002/D200008,Technical Services Depot,Payments to Contractors External
Ashfield District Council,37UB,J Tomlinson Ltd,V926483,23/06/2020,19.97,R & B Transformation 2,Supplies & Services,G57002/D200008,Technical Services Depot,Payments to Contractors External
Ashfield District Council,37UB,J Tomlinson Ltd,V926484,23/06/2020,19.97,R & B Transformation 2,Supplies & Services,G57002/D200008,Technical Services Depot,Payments to Contractors External
Ashfield District Council,37UB,J Tomlinson Ltd,V926485,23/06/2020,19.97,R & B Transformation 2,Supplies & Services,G57002/D200008,Technical Services Depot,Payments to Contractors External
Ashfield District Council,37UB,J Tomlinson Ltd,V926486,23/06/2020,19.97,R & B Transformation 2,Supplies & Services,G57002/D200008,Technical Services Depot,Payments to Contractors External
Ashfield District Council,37UB,J Tomlinson Ltd,V926487,23/06/2020,19.97,R & B Transformation 2,Supplies & Services,G57002/D200008,Technical Services Depot,Payments to Contractors External
Ashfield District Council,37UB,J Tomlinson Ltd,V926488,23/06/2020,41.70,R & B Transformation 2,Supplies & Services,G57002/D200008,Technical Services Depot,Payments to Contractors External
Ashfield District Council,37UB,J Tomlinson Ltd,V926489,23/06/2020,41.70,R & B Transformation 2,Supplies & Services,G57002/D200008,Technical Services Depot,Payments to Contractors External
Ashfield District Council,37UB,J Tomlinson Ltd,V926490,23/06/2020,41.70,R & B Transformation 2,Supplies & Services,G57002/D200008,Technical Services Depot,Payments to Contractors External
Ashfield District Council,37UB,J Tomlinson Ltd,V926491,23/06/2020,41.70,R & B Transformation 2,Supplies & Services,G57002/D200008,Technical Services Depot,Payments to Contractors External
Ashfield District Council,37UB,J Tomlinson Ltd,V926492,23/06/2020,41.70,R & B Transformation 2,Supplies & Services,G57002/D200008,Technical Services Depot,Payments to Contractors External
Ashfield District Council,37UB,J Tomlinson Ltd,V926493,23/06/2020,41.70,R & B Transformation 2,Supplies & Services,G57002/D200008,Technical Services Depot,Payments to Contractors External
Ashfield District Council,37UB,J Tomlinson Ltd,V926494,23/06/2020,41.70,R & B Transformation 2,Supplies & Services,G57002/D200008,Technical Services Depot,Payments to Contractors External
Ashfield District Council,37UB,J Tomlinson Ltd,V926495,23/06/2020,41.70,R & B Transformation 2,Supplies & Services,G57002/D200008,Technical Services Depot,Payments to Contractors External
Ashfield District Council,37UB,J Tomlinson Ltd,V926496,23/06/2020,41.70,R & B Transformation 2,Supplies & Services,G57002/D200008,Technical Services Depot,Payments to Contractors External
Ashfield District Council,37UB,J Tomlinson Ltd,V926497,23/06/2020,41.70,R & B Transformation 2,Supplies & Services,G57002/D200008,Technical Services Depot,Payments to Contractors External
Ashfield District Council,37UB,J Tomlinson Ltd,V926498,23/06/2020,41.70,R & B Transformation 2,Supplies & Services,G57002/D200008,Technical Services Depot,Payments to Contractors External
Ashfield District Council,37UB,J Tomlinson Ltd,V926499,23/06/2020,41.70,R & B Transformation 2,Supplies & Services,G57002/D200008,Technical Services Depot,Payments to Contractors External
Ashfield District Council,37UB,J Tomlinson Ltd,V926500,23/06/2020,41.70,R & B Transformation 2,Supplies & Services,G57002/D200008,Technical Services Depot,Payments to Contractors External
Ashfield District Council,37UB,J Tomlinson Ltd,V926501,23/06/2020,41.70,R & B Transformation 2,Supplies & Services,G57002/D200008,Technical Services Depot,Payments to Contractors External
Ashfield District Council,37UB,J Tomlinson Ltd,V926502,23/06/2020,41.70,R & B Transformation 2,Supplies & Services,G57002/D200008,Technical Services Depot,Payments to Contractors External
Ashfield District Council,37UB,J Tomlinson Ltd,V926503,23/06/2020,41.70,R & B Transformation 2,Supplies & Services,G57002/D200008,Technical Services Depot,Payments to Contractors External
Ashfield District Council,37UB,J Tomlinson Ltd,V926504,23/06/2020,41.70,R & B Transformation 2,Supplies & Services,G57002/D200008,Technical Services Depot,Payments to Contractors External
Ashfield District Council,37UB,J Tomlinson Ltd,V926505,23/06/2020,41.70,R & B Transformation 2,Supplies & Services,G57002/D200008,Technical Services Depot,Payments to Contractors External
Ashfield District Council,37UB,J Tomlinson Ltd,V926506,23/06/2020,41.70,R & B Transformation 2,Supplies & Services,G57002/D200008,Technical Services Depot,Payments to Contractors External
Ashfield District Council,37UB,J Tomlinson Ltd,V926507,23/06/2020,41.70,R & B Transformation 2,Supplies & Services,G57002/D200008,Technical Services Depot,Payments to Contractors External
Ashfield District Council,37UB,J Tomlinson Ltd,V926508,23/06/2020,41.70,R & B Transformation 2,Supplies & Services,G57002/D200008,Technical Services Depot,Payments to Contractors External
Ashfield District Council,37UB,J Tomlinson Ltd,V926509,23/06/2020,41.70,R & B Transformation 2,Supplies & Services,G57002/D200008,Technical Services Depot,Payments to Contractors External
Ashfield District Council,37UB,J Tomlinson Ltd,V926510,23/06/2020,41.70,R & B Transformation 2,Supplies & Services,G57002/D200008,Technical Services Depot,Payments to Contractors External
Ashfield District Council,37UB,J Tomlinson Ltd,V926511,23/06/2020,41.70,R & B Transformation 2,Supplies & Services,G57002/D200008,Technical Services Depot,Payments to Contractors External
Ashfield District Council,37UB,J Tomlinson Ltd,V926512,23/06/2020,41.70,R & B Transformation 2,Supplies & Services,G57002/D200008,Technical Services Depot,Payments to Contractors External
Ashfield District Council,37UB,J Tomlinson Ltd,V926513,23/06/2020,41.70,R & B Transformation 2,Supplies & Services,G57002/D200008,Technical Services Depot,Payments to Contractors External
Ashfield District Council,37UB,J Tomlinson Ltd,V926563,23/06/2020,41.70,R & B Transformation 2,Supplies & Services,G57002/D200008,Technical Services Depot,Payments to Contractors External
Ashfield District Council,37UB,J Tomlinson Ltd,V926564,23/06/2020,41.70,R & B Transformation 2,Supplies & Services,G57002/D200008,Technical Services Depot,Payments to Contractors External
Ashfield District Council,37UB,J Tomlinson Ltd,V926565,23/06/2020,41.70,R & B Transformation 2,Supplies & Services,G57002/D200008,Technical Services Depot,Payments to Contractors External
Ashfield District Council,37UB,J Tomlinson Ltd,V926566,23/06/2020,41.70,R & B Transformation 2,Supplies & Services,G57002/D200008,Technical Services Depot,Payments to Contractors External
Ashfield District Council,37UB,J Tomlinson Ltd,V926567,23/06/2020,41.70,R & B Transformation 2,Supplies & Services,G57002/D200008,Technical Services Depot,Payments to Contractors External
Ashfield District Council,37UB,J Tomlinson Ltd,V926568,23/06/2020,41.70,R & B Transformation 2,Supplies & Services,G57002/D200008,Technical Services Depot,Payments to Contractors External
Ashfield District Council,37UB,J Tomlinson Ltd,V926569,23/06/2020,41.70,R & B Transformation 2,Supplies & Services,G57002/D200008,Technical Services Depot,Payments to Contractors External
Ashfield District Council,37UB,J Tomlinson Ltd,V926570,23/06/2020,41.70,R & B Transformation 2,Supplies & Services,G57002/D200008,Technical Services Depot,Payments to Contractors External
Ashfield District Council,37UB,J Tomlinson Ltd,V926571,23/06/2020,41.70,R & B Transformation 2,Supplies & Services,G57002/D200008,Technical Services Depot,Payments to Contractors External
Ashfield District Council,37UB,J Tomlinson Ltd,V926572,23/06/2020,41.70,R & B Transformation 2,Supplies & Services,G57002/D200008,Technical Services Depot,Payments to Contractors External
Ashfield District Council,37UB,J Tomlinson Ltd,V926573,23/06/2020,41.70,R & B Transformation 2,Supplies & Services,G57002/D200008,Technical Services Depot,Payments to Contractors External
Ashfield District Council,37UB,J Tomlinson Ltd,V926574,23/06/2020,41.70,R & B Transformation 2,Supplies & Services,G57002/D200008,Technical Services Depot,Payments to Contractors External
Ashfield District Council,37UB,J Tomlinson Ltd,V926575,23/06/2020,41.70,R & B Transformation 2,Supplies & Services,G57002/D200008,Technical Services Depot,Payments to Contractors External
Ashfield District Council,37UB,J Tomlinson Ltd,V926576,23/06/2020,41.70,R & B Transformation 2,Supplies & Services,G57002/D200008,Technical Services Depot,Payments to Contractors External
Ashfield District Council,37UB,J Tomlinson Ltd,V926577,23/06/2020,41.70,R & B Transformation 2,Supplies & Services,G57002/D200008,Technical Services Depot,Payments to Contractors External
Ashfield District Council,37UB,J Tomlinson Ltd,V926578,23/06/2020,41.70,R & B Transformation 2,Supplies & Services,G57002/D200008,Technical Services Depot,Payments to Contractors External
Ashfield District Council,37UB,J Tomlinson Ltd,V926579,23/06/2020,41.70,R & B Transformation 2,Supplies & Services,G57002/D200008,Technical Services Depot,Payments to Contractors External
Ashfield District Council,37UB,J Tomlinson Ltd,V926580,23/06/2020,41.70,R & B Transformation 2,Supplies & Services,G57002/D200008,Technical Services Depot,Payments to Contractors External
Ashfield District Council,37UB,J Tomlinson Ltd,V926581,23/06/2020,41.70,R & B Transformation 2,Supplies & Services,G57002/D200008,Technical Services Depot,Payments to Contractors External
Ashfield District Council,37UB,J Tomlinson Ltd,V926582,23/06/2020,41.70,R & B Transformation 2,Supplies & Services,G57002/D200008,Technical Services Depot,Payments to Contractors External
Ashfield District Council,37UB,J Tomlinson Ltd,V926583,23/06/2020,41.70,R & B Transformation 2,Supplies & Services,G57002/D200008,Technical Services Depot,Payments to Contractors External
Ashfield District Council,37UB,J Tomlinson Ltd,V926584,23/06/2020,41.70,R & B Transformation 2,Supplies & Services,G57002/D200008,Technical Services Depot,Payments to Contractors External
Ashfield District Council,37UB,J Tomlinson Ltd,V926585,23/06/2020,41.70,R & B Transformation 2,Supplies & Services,G57002/D200008,Technical Services Depot,Payments to Contractors External
Ashfield District Council,37UB,J Tomlinson Ltd,V926586,23/06/2020,41.70,R & B Transformation 2,Supplies & Services,G57002/D200008,Technical Services Depot,Payments to Contractors External
Ashfield District Council,37UB,J Tomlinson Ltd,V926587,23/06/2020,41.70,R & B Transformation 2,Supplies & Services,G57002/D200008,Technical Services Depot,Payments to Contractors External
Ashfield District Council,37UB,J Tomlinson Ltd,V926588,23/06/2020,41.70,R & B Transformation 2,Supplies & Services,G57002/D200008,Technical Services Depot,Payments to Contractors External
Ashfield District Council,37UB,J Tomlinson Ltd,V926589,23/06/2020,41.70,R & B Transformation 2,Supplies & Services,G57002/D200008,Technical Services Depot,Payments to Contractors External
Ashfield District Council,37UB,J Tomlinson Ltd,V926590,23/06/2020,41.70,R & B Transformation 2,Supplies & Services,G57002/D200008,Technical Services Depot,Payments to Contractors External
Ashfield District Council,37UB,J Tomlinson Ltd,V926591,23/06/2020,41.70,R & B Transformation 2,Supplies & Services,G57002/D200008,Technical Services Depot,Payments to Contractors External
Ashfield District Council,37UB,J Tomlinson Ltd,V926592,23/06/2020,41.70,R & B Transformation 2,Supplies & Services,G57002/D200008,Technical Services Depot,Payments to Contractors External
Ashfield District Council,37UB,J Tomlinson Ltd,V926593,23/06/2020,41.70,R & B Transformation 2,Supplies & Services,G57002/D200008,Technical Services Depot,Payments to Contractors External
Ashfield District Council,37UB,J Tomlinson Ltd,V926594,23/06/2020,41.70,R & B Transformation 2,Supplies & Services,G57002/D200008,Technical Services Depot,Payments to Contractors External
Ashfield District Council,37UB,J Tomlinson Ltd,V926595,23/06/2020,41.70,R & B Transformation 2,Supplies & Services,G57002/D200008,Technical Services Depot,Payments to Contractors External
Ashfield District Council,37UB,J Tomlinson Ltd,V926596,23/06/2020,41.70,R & B Transformation 2,Supplies & Services,G57002/D200008,Technical Services Depot,Payments to Contractors External
Ashfield District Council,37UB,J Tomlinson Ltd,V926597,23/06/2020,41.70,R & B Transformation 2,Supplies & Services,G57002/D200008,Technical Services Depot,Payments to Contractors External
Ashfield District Council,37UB,J Tomlinson Ltd,V926598,23/06/2020,41.70,R & B Transformation 2,Supplies & Services,G57002/D200008,Technical Services Depot,Payments to Contractors External
Ashfield District Council,37UB,J Tomlinson Ltd,V926599,23/06/2020,41.70,R & B Transformation 2,Supplies & Services,G57002/D200008,Technical Services Depot,Payments to Contractors External
Ashfield District Council,37UB,J Tomlinson Ltd,V926600,23/06/2020,41.70,R & B Transformation 2,Supplies & Services,G57002/D200008,Technical Services Depot,Payments to Contractors External
Ashfield District Council,37UB,J Tomlinson Ltd,V926601,23/06/2020,41.70,R & B Transformation 2,Supplies & Services,G57002/D200008,Technical Services Depot,Payments to Contractors External
Ashfield District Council,37UB,J Tomlinson Ltd,V926602,23/06/2020,41.70,R & B Transformation 2,Supplies & Services,G57002/D200008,Technical Services Depot,Payments to Contractors External
Ashfield District Council,37UB,J Tomlinson Ltd,V926603,23/06/2020,41.70,R & B Transformation 2,Supplies & Services,G57002/D200008,Technical Services Depot,Payments to Contractors External
Ashfield District Council,37UB,J Tomlinson Ltd,V926604,23/06/2020,41.70,R & B Transformation 2,Supplies & Services,G57002/D200008,Technical Services Depot,Payments to Contractors External
Ashfield District Council,37UB,J Tomlinson Ltd,V926605,23/06/2020,41.70,R & B Transformation 2,Supplies & Services,G57002/D200008,Technical Services Depot,Payments to Contractors External
Ashfield District Council,37UB,J Tomlinson Ltd,V926606,23/06/2020,41.70,R & B Transformation 2,Supplies & Services,G57002/D200008,Technical Services Depot,Payments to Contractors External
Ashfield District Council,37UB,J Tomlinson Ltd,V926607,23/06/2020,41.70,R & B Transformation 2,Supplies & Services,G57002/D200008,Technical Services Depot,Payments to Contractors External
Ashfield District Council,37UB,J Tomlinson Ltd,V926608,23/06/2020,41.70,R & B Transformation 2,Supplies & Services,G57002/D200008,Technical Services Depot,Payments to Contractors External
Ashfield District Council,37UB,J Tomlinson Ltd,V926609,23/06/2020,41.70,R & B Transformation 2,Supplies & Services,G57002/D200008,Technical Services Depot,Payments to Contractors External
Ashfield District Council,37UB,J Tomlinson Ltd,V926610,23/06/2020,41.70,R & B Transformation 2,Supplies & Services,G57002/D200008,Technical Services Depot,Payments to Contractors External
Ashfield District Council,37UB,J Tomlinson Ltd,V926611,23/06/2020,41.70,R & B Transformation 2,Supplies & Services,G57002/D200008,Technical Services Depot,Payments to Contractors External
Ashfield District Council,37UB,J Tomlinson Ltd,V926612,23/06/2020,41.70,R & B Transformation 2,Supplies & Services,G57002/D200008,Technical Services Depot,Payments to Contractors External
Ashfield District Council,37UB,J Tomlinson Ltd,V926613,23/06/2020,41.70,R & B Transformation 2,Supplies & Services,G57002/D200008,Technical Services Depot,Payments to Contractors External
Ashfield District Council,37UB,J Tomlinson Ltd,V926614,23/06/2020,41.70,R & B Transformation 2,Supplies & Services,G57002/D200008,Technical Services Depot,Payments to Contractors External
Ashfield District Council,37UB,J Tomlinson Ltd,V926615,23/06/2020,41.70,R & B Transformation 2,Supplies & Services,G57002/D200008,Technical Services Depot,Payments to Contractors External
Ashfield District Council,37UB,J Tomlinson Ltd,V926616,23/06/2020,41.70,R & B Transformation 2,Supplies & Services,G57002/D200008,Technical Services Depot,Payments to Contractors External
Ashfield District Council,37UB,J Tomlinson Ltd,V926617,23/06/2020,41.70,R & B Transformation 2,Supplies & Services,G57002/D200008,Technical Services Depot,Payments to Contractors External
Ashfield District Council,37UB,J Tomlinson Ltd,V926618,23/06/2020,41.70,R & B Transformation 2,Supplies & Services,G57002/D200008,Technical Services Depot,Payments to Contractors External
Ashfield District Council,37UB,J Tomlinson Ltd,V926619,23/06/2020,41.70,R & B Transformation 2,Supplies & Services,G57002/D200008,Technical Services Depot,Payments to Contractors External
Ashfield District Council,37UB,J Tomlinson Ltd,V926620,23/06/2020,41.70,R & B Transformation 2,Supplies & Services,G57002/D200008,Technical Services Depot,Payments to Contractors External
Ashfield District Council,37UB,J Tomlinson Ltd,V926621,23/06/2020,41.70,R & B Transformation 2,Supplies & Services,G57002/D200008,Technical Services Depot,Payments to Contractors External
Ashfield District Council,37UB,J Tomlinson Ltd,V926622,23/06/2020,41.70,R & B Transformation 2,Supplies & Services,G57002/D200008,Technical Services Depot,Payments to Contractors External
Ashfield District Council,37UB,J Tomlinson Ltd,V926623,23/06/2020,41.70,R & B Transformation 2,Supplies & Services,G57002/D200008,Technical Services Depot,Payments to Contractors External
Ashfield District Council,37UB,J Tomlinson Ltd,V926624,23/06/2020,41.70,R & B Transformation 2,Supplies & Services,G57002/D200008,Technical Services Depot,Payments to Contractors External
Ashfield District Council,37UB,J Tomlinson Ltd,V926625,23/06/2020,41.70,R & B Transformation 2,Supplies & Services,G57002/D200008,Technical Services Depot,Payments to Contractors External
Ashfield District Council,37UB,J Tomlinson Ltd,V926626,23/06/2020,41.70,R & B Transformation 2,Supplies & Services,G57002/D200008,Technical Services Depot,Payments to Contractors External
Ashfield District Council,37UB,J Tomlinson Ltd,V926627,23/06/2020,41.70,R & B Transformation 2,Supplies & Services,G57002/D200008,Technical Services Depot,Payments to Contractors External
Ashfield District Council,37UB,J Tomlinson Ltd,V926449,29/06/2020,107.64,R & B Transformation 2,Supplies & Services,G57002/D200008,Technical Services Depot,Payments to Contractors External
Ashfield District Council,37UB,J Tomlinson Ltd,V926831,29/06/2020,-228.28,R & B Transformation 2,Supplies & Services,G57002/D200008,Technical Services Depot,Payments to Contractors External
Ashfield District Council,37UB,J Tomlinson Ltd,V926855,29/06/2020,28.44,R & B Transformation 2,Supplies & Services,G57002/D200008,Technical Services Depot,Payments to Contractors External
Ashfield District Council,37UB,J Tomlinson Ltd,V926856,29/06/2020,845.99,R & B Transformation 2,Supplies & Services,G57002/D200008,Technical Services Depot,Payments to Contractors External
Ashfield District Council,37UB,J Tomlinson Ltd,V926857,29/06/2020,40.98,R & B Transformation 2,Supplies & Services,G57002/D200008,Technical Services Depot,Payments to Contractors External
Ashfield District Council,37UB,J Tomlinson Ltd,V926858,29/06/2020,2257.50,R & B Transformation 2,Supplies & Services,G57002/D200008,Technical Services Depot,Payments to Contractors External
Ashfield District Council,37UB,J Tomlinson Ltd,V926859,29/06/2020,241.35,R & B Transformation 2,Supplies & Services,G57002/D200008,Technical Services Depot,Payments to Contractors External
Ashfield District Council,37UB,J Tomlinson Ltd,V926892,29/06/2020,60.82,R & B Transformation 2,Supplies & Services,G57002/D200008,Technical Services Depot,Payments to Contractors External
Ashfield District Council,37UB,J Tomlinson Ltd,V926893,29/06/2020,60.82,R & B Transformation 2,Supplies & Services,G57002/D200008,Technical Services Depot,Payments to Contractors External
Ashfield District Council,37UB,J Tomlinson Ltd,V926894,29/06/2020,60.82,R & B Transformation 2,Supplies & Services,G57002/D200008,Technical Services Depot,Payments to Contractors External
Ashfield District Council,37UB,J Tomlinson Ltd,V926895,29/06/2020,60.82,R & B Transformation 2,Supplies & Services,G57002/D200008,Technical Services Depot,Payments to Contractors External
Ashfield District Council,37UB,J Tomlinson Ltd,V926896,29/06/2020,60.82,R & B Transformation 2,Supplies & Services,G57002/D200008,Technical Services Depot,Payments to Contractors External
Ashfield District Council,37UB,J Tomlinson Ltd,V926897,29/06/2020,60.82,R & B Transformation 2,Supplies & Services,G57002/D200008,Technical Services Depot,Payments to Contractors External
Ashfield District Council,37UB,J Tomlinson Ltd,V926898,29/06/2020,60.82,R & B Transformation 2,Supplies & Services,G57002/D200008,Technical Services Depot,Payments to Contractors External
Ashfield District Council,37UB,J Tomlinson Ltd,V926899,29/06/2020,60.82,R & B Transformation 2,Supplies & Services,G57002/D200008,Technical Services Depot,Payments to Contractors External
Ashfield District Council,37UB,J Tomlinson Ltd,V926900,29/06/2020,60.82,R & B Transformation 2,Supplies & Services,G57002/D200008,Technical Services Depot,Payments to Contractors External
Ashfield District Council,37UB,J Tomlinson Ltd,V926901,29/06/2020,60.82,R & B Transformation 2,Supplies & Services,G57002/D200008,Technical Services Depot,Payments to Contractors External
Ashfield District Council,37UB,J Tomlinson Ltd,V926902,29/06/2020,60.82,R & B Transformation 2,Supplies & Services,G57002/D200008,Technical Services Depot,Payments to Contractors External
Ashfield District Council,37UB,J Tomlinson Ltd,V926903,29/06/2020,60.82,R & B Transformation 2,Supplies & Services,G57002/D200008,Technical Services Depot,Payments to Contractors External
Ashfield District Council,37UB,J Tomlinson Ltd,V926904,29/06/2020,60.82,R & B Transformation 2,Supplies & Services,G57002/D200008,Technical Services Depot,Payments to Contractors External
Ashfield District Council,37UB,J Tomlinson Ltd,V926977,29/06/2020,60.82,R & B Transformation 2,Supplies & Services,G57002/D200008,Technical Services Depot,Payments to Contractors External
Ashfield District Council,37UB,J Tomlinson Ltd,V926978,29/06/2020,60.82,R & B Transformation 2,Supplies & Services,G57002/D200008,Technical Services Depot,Payments to Contractors External
Ashfield District Council,37UB,J Tomlinson Ltd,V926981,29/06/2020,60.82,R & B Transformation 2,Supplies & Services,G57002/D200008,Technical Services Depot,Payments to Contractors External
Ashfield District Council,37UB,J Tomlinson Ltd,V926982,29/06/2020,60.82,R & B Transformation 2,Supplies & Services,G57002/D200008,Technical Services Depot,Payments to Contractors External
Ashfield District Council,37UB,J Tomlinson Ltd,V926983,29/06/2020,60.82,R & B Transformation 2,Supplies & Services,G57002/D200008,Technical Services Depot,Payments to Contractors External
Ashfield District Council,37UB,J Tomlinson Ltd,V926984,29/06/2020,60.82,R & B Transformation 2,Supplies & Services,G57002/D200008,Technical Services Depot,Payments to Contractors External
Ashfield District Council,37UB,J Tomlinson Ltd,V926985,29/06/2020,60.82,R & B Transformation 2,Supplies & Services,G57002/D200008,Technical Services Depot,Payments to Contractors External
Ashfield District Council,37UB,J Tomlinson Ltd,V926986,29/06/2020,60.82,R & B Transformation 2,Supplies & Services,G57002/D200008,Technical Services Depot,Payments to Contractors External
Ashfield District Council,37UB,J Tomlinson Ltd,V926987,29/06/2020,60.82,R & B Transformation 2,Supplies & Services,G57002/D200008,Technical Services Depot,Payments to Contractors External
Ashfield District Council,37UB,J Tomlinson Ltd,V926988,29/06/2020,60.82,R & B Transformation 2,Supplies & Services,G57002/D200008,Technical Services Depot,Payments to Contractors External
Ashfield District Council,37UB,J Tomlinson Ltd,V926989,29/06/2020,60.82,R & B Transformation 2,Supplies & Services,G57002/D200008,Technical Services Depot,Payments to Contractors External
Ashfield District Council,37UB,J Tomlinson Ltd,V926990,29/06/2020,60.82,R & B Transformation 2,Supplies & Services,G57002/D200008,Technical Services Depot,Payments to Contractors External
Ashfield District Council,37UB,J Tomlinson Ltd,V926991,29/06/2020,60.82,R & B Transformation 2,Supplies & Services,G57002/D200008,Technical Services Depot,Payments to Contractors External
Ashfield District Council,37UB,J Tomlinson Ltd,V926992,29/06/2020,60.82,R & B Transformation 2,Supplies & Services,G57002/D200008,Technical Services Depot,Payments to Contractors External
Ashfield District Council,37UB,J Tomlinson Ltd,V926993,29/06/2020,60.82,R & B Transformation 2,Supplies & Services,G57002/D200008,Technical Services Depot,Payments to Contractors External
Ashfield District Council,37UB,J Tomlinson Ltd,V926994,29/06/2020,60.82,R & B Transformation 2,Supplies & Services,G57002/D200008,Technical Services Depot,Payments to Contractors External
Ashfield District Council,37UB,J Tomlinson Ltd,V926995,29/06/2020,60.82,R & B Transformation 2,Supplies & Services,G57002/D200008,Technical Services Depot,Payments to Contractors External
Ashfield District Council,37UB,J Tomlinson Ltd,V926996,29/06/2020,60.82,R & B Transformation 2,Supplies & Services,G57002/D200008,Technical Services Depot,Payments to Contractors External
Ashfield District Council,37UB,J Tomlinson Ltd,V926997,29/06/2020,60.82,R & B Transformation 2,Supplies & Services,G57002/D200008,Technical Services Depot,Payments to Contractors External
Ashfield District Council,37UB,J Tomlinson Ltd,V926998,29/06/2020,60.82,R & B Transformation 2,Supplies & Services,G57002/D200008,Technical Services Depot,Payments to Contractors External
Ashfield District Council,37UB,J Tomlinson Ltd,V926999,29/06/2020,60.82,R & B Transformation 2,Supplies & Services,G57002/D200008,Technical Services Depot,Payments to Contractors External
Ashfield District Council,37UB,J Tomlinson Ltd,V927000,29/06/2020,60.82,R & B Transformation 2,Supplies & Services,G57002/D200008,Technical Services Depot,Payments to Contractors External
Ashfield District Council,37UB,J Tomlinson Ltd,V927001,29/06/2020,60.82,R & B Transformation 2,Supplies & Services,G57002/D200008,Technical Services Depot,Payments to Contractors External
Ashfield District Council,37UB,J Tomlinson Ltd,V927002,29/06/2020,60.82,R & B Transformation 2,Supplies & Services,G57002/D200008,Technical Services Depot,Payments to Contractors External
Ashfield District Council,37UB,J Tomlinson Ltd,V927003,29/06/2020,60.82,R & B Transformation 2,Supplies & Services,G57002/D200008,Technical Services Depot,Payments to Contractors External
Ashfield District Council,37UB,J Tomlinson Ltd,V927004,29/06/2020,60.82,R & B Transformation 2,Supplies & Services,G57002/D200008,Technical Services Depot,Payments to Contractors External
Ashfield District Council,37UB,J Tomlinson Ltd,V927005,29/06/2020,41.70,R & B Transformation 2,Supplies & Services,G57002/D200008,Technical Services Depot,Payments to Contractors External
Ashfield District Council,37UB,J Tomlinson Ltd,V927006,29/06/2020,60.82,R & B Transformation 2,Supplies & Services,G57002/D200008,Technical Services Depot,Payments to Contractors External
Ashfield District Council,37UB,J Tomlinson Ltd,V927007,29/06/2020,60.82,R & B Transformation 2,Supplies & Services,G57002/D200008,Technical Services Depot,Payments to Contractors External
Ashfield District Council,37UB,Jackson Building Centres Ltd,V922592,02/06/2020,1.60,R & B Transformation 2,Supplies & Services,G57000/D001004,Technical Services Depot,Chemicals and Materials Purchase
Ashfield District Council,37UB,Jackson Building Centres Ltd,V922593,02/06/2020,6.00,R & B Transformation 2,Supplies & Services,G57000/D001004,Technical Services Depot,Chemicals and Materials Purchase
Ashfield District Council,37UB,Jackson Building Centres Ltd,V922594,02/06/2020,3.16,R & B Transformation 2,Supplies & Services,G57000/D001004,Technical Services Depot,Chemicals and Materials Purchase
Ashfield District Council,37UB,Jackson Building Centres Ltd,V922606,02/06/2020,12.80,R & B Transformation 2,Supplies & Services,G57000/D001004,Technical Services Depot,Chemicals and Materials Purchase
Ashfield District Council,37UB,Jackson Building Centres Ltd,V922606,02/06/2020,6.60,R & B Transformation 2,Supplies & Services,G57000/D001004,Technical Services Depot,Chemicals and Materials Purchase
Ashfield District Council,37UB,Jackson Building Centres Ltd,V922607,02/06/2020,9.30,R & B Transformation 2,Supplies & Services,G57000/D001004,Technical Services Depot,Chemicals and Materials Purchase
Ashfield District Council,37UB,Jackson Building Centres Ltd,V922608,02/06/2020,7.10,R & B Transformation 2,Supplies & Services,G57000/D001004,Technical Services Depot,Chemicals and Materials Purchase
Ashfield District Council,37UB,Jackson Building Centres Ltd,V922609,02/06/2020,2.25,R & B Transformation 2,Supplies & Services,G57000/D001004,Technical Services Depot,Chemicals and Materials Purchase
Ashfield District Council,37UB,Jackson Building Centres Ltd,V922610,02/06/2020,5.05,R & B Transformation 2,Supplies & Services,G57000/D001004,Technical Services Depot,Chemicals and Materials Purchase
Ashfield District Council,37UB,Jackson Building Centres Ltd,V922610,02/06/2020,3.18,R & B Transformation 2,Supplies & Services,G57000/D001004,Technical Services Depot,Chemicals and Materials Purchase
Ashfield District Council,37UB,Jackson Building Centres Ltd,V922611,02/06/2020,41.86,R & B Transformation 2,Supplies & Services,G57000/D001004,Technical Services Depot,Chemicals and Materials Purchase
Ashfield District Council,37UB,Jackson Building Centres Ltd,V922612,02/06/2020,6.26,R & B Transformation 2,Supplies & Services,G57000/D001004,Technical Services Depot,Chemicals and Materials Purchase
Ashfield District Council,37UB,Jackson Building Centres Ltd,V926312,23/06/2020,-13.44,R & B Transformation 2,Supplies & Services,G57000/D001004,Technical Services Depot,Chemicals and Materials Purchase
Ashfield District Council,37UB,Jackson Building Centres Ltd,V926526,23/06/2020,5.28,R & B Transformation 2,Supplies & Services,G57000/D001004,Technical Services Depot,Chemicals and Materials Purchase
Ashfield District Council,37UB,Jackson Building Centres Ltd,V926526,23/06/2020,128.04,R & B Transformation 2,Supplies & Services,G57000/D001004,Technical Services Depot,Chemicals and Materials Purchase
Ashfield District Council,37UB,Jackson Building Centres Ltd,V926530,23/06/2020,6.45,R & B Transformation 2,Supplies & Services,G57000/D001004,Technical Services Depot,Chemicals and Materials Purchase
Ashfield District Council,37UB,Jackson Building Centres Ltd,V926534,23/06/2020,8.12,R & B Transformation 2,Supplies & Services,G57000/D001004,Technical Services Depot,Chemicals and Materials Purchase
Ashfield District Council,37UB,Jackson Building Centres Ltd,V926633,23/06/2020,40.52,R & B Transformation 2,Supplies & Services,G57000/D001004,Technical Services Depot,Chemicals and Materials Purchase
Ashfield District Council,37UB,Jackson Building Centres Ltd,V926919,29/06/2020,43.30,R & B Transformation 2,Supplies & Services,G57000/D001004,Technical Services Depot,Chemicals and Materials Purchase
Ashfield District Council,37UB,Jackson Building Centres Ltd,V926927,29/06/2020,31.32,R & B Transformation 2,Supplies & Services,G57000/D001004,Technical Services Depot,Chemicals and Materials Purchase
Ashfield District Council,37UB,Jackson Building Centres Ltd,V926927,29/06/2020,11.13,R & B Transformation 2,Supplies & Services,G57000/D001004,Technical Services Depot,Chemicals and Materials Purchase
Ashfield District Council,37UB,Jackson Building Centres Ltd,V926927,29/06/2020,11.57,R & B Transformation 2,Supplies & Services,G57000/D001004,Technical Services Depot,Chemicals and Materials Purchase
Ashfield District Council,37UB,Jackson Building Centres Ltd,V926932,29/06/2020,58.15,R & B Transformation 2,Supplies & Services,G57000/D001004,Technical Services Depot,Chemicals and Materials Purchase
Ashfield District Council,37UB,JWL (Architectural Ironmongers) Ltd,V926933,29/06/2020,5.74,R & B Transformation 2,Supplies & Services,G57000/D001004,Technical Services Depot,Chemicals and Materials Purchase
Ashfield District Council,37UB,Orbis Protect Limited,V922399,02/06/2020,-232.69,R & B Transformation 2,Supplies & Services,G57002/D200008,Technical Services Depot,Payments to Contractors External
Ashfield District Council,37UB,Orbis Protect Limited,V922400,02/06/2020,-92.20,R & B Transformation 2,Supplies & Services,G57002/D200008,Technical Services Depot,Payments to Contractors External
Ashfield District Council,37UB,Orbis Protect Limited,V922504,02/06/2020,180.89,R & B Transformation 2,Supplies & Services,G57002/D200008,Technical Services Depot,Payments to Contractors External
Ashfield District Council,37UB,Orbis Protect Limited,V922505,02/06/2020,92.20,R & B Transformation 2,Supplies & Services,G57002/D200008,Technical Services Depot,Payments to Contractors External
Ashfield District Council,37UB,Orbis Protect Limited,V922507,02/06/2020,92.20,R & B Transformation 2,Supplies & Services,G57002/D200008,Technical Services Depot,Payments to Contractors External
Ashfield District Council,37UB,Orbis Protect Limited,V922509,02/06/2020,510.40,R & B Transformation 2,Supplies & Services,G57002/D200008,Technical Services Depot,Payments to Contractors External
Ashfield District Council,37UB,Orbis Protect Limited,V922510,02/06/2020,163.93,R & B Transformation 2,Supplies & Services,G57002/D200008,Technical Services Depot,Payments to Contractors External
Ashfield District Council,37UB,Orbis Protect Limited,V922511,02/06/2020,59.35,R & B Transformation 2,Supplies & Services,G57002/D200008,Technical Services Depot,Payments to Contractors External
Ashfield District Council,37UB,Orbis Protect Limited,V922512,02/06/2020,107.41,R & B Transformation 2,Supplies & Services,G57002/D200008,Technical Services Depot,Payments to Contractors External
Ashfield District Council,37UB,Orbis Protect Limited,V922513,02/06/2020,723.56,R & B Transformation 2,Supplies & Services,G57002/D200008,Technical Services Depot,Payments to Contractors External
Ashfield District Council,37UB,Orbis Protect Limited,V922514,02/06/2020,206.91,R & B Transformation 2,Supplies & Services,G57002/D200008,Technical Services Depot,Payments to Contractors External
Ashfield District Council,37UB,Orbis Protect Limited,V922515,02/06/2020,107.41,R & B Transformation 2,Supplies & Services,G57002/D200008,Technical Services Depot,Payments to Contractors External
Ashfield District Council,37UB,Orbis Protect Limited,V922516,02/06/2020,678.34,R & B Transformation 2,Supplies & Services,G57002/D200008,Technical Services Depot,Payments to Contractors External
Ashfield District Council,37UB,Orbis Protect Limited,V922517,02/06/2020,59.35,R & B Transformation 2,Supplies & Services,G57002/D200008,Technical Services Depot,Payments to Contractors External
Ashfield District Council,37UB,Orbis Protect Limited,V922518,02/06/2020,107.41,R & B Transformation 2,Supplies & Services,G57002/D200008,Technical Services Depot,Payments to Contractors External
Ashfield District Council,37UB,Orbis Protect Limited,V922519,02/06/2020,361.78,R & B Transformation 2,Supplies & Services,G57002/D200008,Technical Services Depot,Payments to Contractors External
Ashfield District Council,37UB,Orbis Protect Limited,V922520,02/06/2020,339.17,R & B Transformation 2,Supplies & Services,G57002/D200008,Technical Services Depot,Payments to Contractors External
Ashfield District Council,37UB,Orbis Protect Limited,V922521,02/06/2020,361.78,R & B Transformation 2,Supplies & Services,G57002/D200008,Technical Services Depot,Payments to Contractors External
Ashfield District Council,37UB,Orbis Protect Limited,V922522,02/06/2020,99.50,R & B Transformation 2,Supplies & Services,G57002/D200008,Technical Services Depot,Payments to Contractors External
Ashfield District Council,37UB,Orbis Protect Limited,V922523,02/06/2020,107.41,R & B Transformation 2,Supplies & Services,G57002/D200008,Technical Services Depot,Payments to Contractors External
Ashfield District Council,37UB,Orbis Protect Limited,V922524,02/06/2020,56.53,R & B Transformation 2,Supplies & Services,G57002/D200008,Technical Services Depot,Payments to Contractors External
Ashfield District Council,37UB,Orbis Protect Limited,V922525,02/06/2020,107.41,R & B Transformation 2,Supplies & Services,G57002/D200008,Technical Services Depot,Payments to Contractors External
Ashfield District Council,37UB,Orbis Protect Limited,V922526,02/06/2020,163.93,R & B Transformation 2,Supplies & Services,G57002/D200008,Technical Services Depot,Payments to Contractors External
Ashfield District Council,37UB,Orbis Protect Limited,V922527,02/06/2020,395.70,R & B Transformation 2,Supplies & Services,G57002/D200008,Technical Services Depot,Payments to Contractors External
Ashfield District Council,37UB,Orbis Protect Limited,V922528,02/06/2020,59.35,R & B Transformation 2,Supplies & Services,G57002/D200008,Technical Services Depot,Payments to Contractors External
Ashfield District Council,37UB,Orbis Protect Limited,V922529,02/06/2020,59.35,R & B Transformation 2,Supplies & Services,G57002/D200008,Technical Services Depot,Payments to Contractors External
Ashfield District Council,37UB,Orbis Protect Limited,V922530,02/06/2020,99.50,R & B Transformation 2,Supplies & Services,G57002/D200008,Technical Services Depot,Payments to Contractors External
Ashfield District Council,37UB,Orbis Protect Limited,V922531,02/06/2020,107.41,R & B Transformation 2,Supplies & Services,G57002/D200008,Technical Services Depot,Payments to Contractors External
Ashfield District Council,37UB,Orbis Protect Limited,V922532,02/06/2020,107.41,R & B Transformation 2,Supplies & Services,G57002/D200008,Technical Services Depot,Payments to Contractors External
Ashfield District Council,37UB,Orbis Protect Limited,V922533,02/06/2020,99.50,R & B Transformation 2,Supplies & Services,G57002/D200008,Technical Services Depot,Payments to Contractors External
Ashfield District Council,37UB,Orbis Protect Limited,V922534,02/06/2020,361.78,R & B Transformation 2,Supplies & Services,G57002/D200008,Technical Services Depot,Payments to Contractors External
Ashfield District Council,37UB,Orbis Protect Limited,V922535,02/06/2020,540.90,R & B Transformation 2,Supplies & Services,G57002/D200008,Technical Services Depot,Payments to Contractors External
Ashfield District Council,37UB,Orbis Protect Limited,V922536,02/06/2020,446.58,R & B Transformation 2,Supplies & Services,G57002/D200008,Technical Services Depot,Payments to Contractors External
Ashfield District Council,37UB,Orbis Protect Limited,V922537,02/06/2020,503.11,R & B Transformation 2,Supplies & Services,G57002/D200008,Technical Services Depot,Payments to Contractors External
Ashfield District Council,37UB,Orbis Protect Limited,V922569,02/06/2020,158.85,R & B Transformation 2,Supplies & Services,G57002/D200008,Technical Services Depot,Payments to Contractors External
Ashfield District Council,37UB,Orbis Protect Limited,V922570,02/06/2020,47.48,R & B Transformation 2,Supplies & Services,G57002/D200008,Technical Services Depot,Payments to Contractors External
Ashfield District Council,37UB,Orbis Protect Limited,V922571,02/06/2020,59.35,R & B Transformation 2,Supplies & Services,G57002/D200008,Technical Services Depot,Payments to Contractors External
Ashfield District Council,37UB,Orbis Protect Limited,V923778,08/06/2020,107.41,R & B Transformation 2,Supplies & Services,G57002/D200008,Technical Services Depot,Payments to Contractors External
Ashfield District Council,37UB,Orbis Protect Limited,V923779,08/06/2020,339.17,R & B Transformation 2,Supplies & Services,G57002/D200008,Technical Services Depot,Payments to Contractors External
Ashfield District Council,37UB,Orbis Protect Limited,V923794,08/06/2020,339.17,R & B Transformation 2,Supplies & Services,G57002/D200008,Technical Services Depot,Payments to Contractors External
Ashfield District Council,37UB,Orbis Protect Limited,V923795,08/06/2020,107.41,R & B Transformation 2,Supplies & Services,G57002/D200008,Technical Services Depot,Payments to Contractors External
Ashfield District Council,37UB,Orbis Protect Limited,V923796,08/06/2020,99.50,R & B Transformation 2,Supplies & Services,G57002/D200008,Technical Services Depot,Payments to Contractors External
Ashfield District Council,37UB,Orbis Protect Limited,V923797,08/06/2020,361.78,R & B Transformation 2,Supplies & Services,G57002/D200008,Technical Services Depot,Payments to Contractors External
Ashfield District Council,37UB,Orbis Protect Limited,V923798,08/06/2020,115.88,R & B Transformation 2,Supplies & Services,G57002/D200008,Technical Services Depot,Payments to Contractors External
Ashfield District Council,37UB,Orbis Protect Limited,V923807,08/06/2020,47.48,R & B Transformation 2,Supplies & Services,G57002/D200008,Technical Services Depot,Payments to Contractors External
Ashfield District Council,37UB,Orbis Protect Limited,V923808,08/06/2020,339.17,R & B Transformation 2,Supplies & Services,G57002/D200008,Technical Services Depot,Payments to Contractors External
Ashfield District Council,37UB,Orbis Protect Limited,V923811,08/06/2020,107.41,R & B Transformation 2,Supplies & Services,G57002/D200008,Technical Services Depot,Payments to Contractors External
Ashfield District Council,37UB,Orbis Protect Limited,V923812,08/06/2020,361.78,R & B Transformation 2,Supplies & Services,G57002/D200008,Technical Services Depot,Payments to Contractors External
Ashfield District Council,37UB,Orbis Protect Limited,V923813,08/06/2020,461.28,R & B Transformation 2,Supplies & Services,G57002/D200008,Technical Services Depot,Payments to Contractors External
Ashfield District Council,37UB,Orbis Protect Limited,V923818,08/06/2020,107.41,R & B Transformation 2,Supplies & Services,G57002/D200008,Technical Services Depot,Payments to Contractors External
Ashfield District Council,37UB,Orbis Protect Limited,V923819,08/06/2020,107.41,R & B Transformation 2,Supplies & Services,G57002/D200008,Technical Services Depot,Payments to Contractors External
Ashfield District Council,37UB,Orbis Protect Limited,V925877,15/06/2020,-867.14,R & B Transformation 2,Supplies & Services,G57002/D200008,Technical Services Depot,Payments to Contractors External
Ashfield District Council,37UB,Orbis Protect Limited,V925880,15/06/2020,867.14,R & B Transformation 2,Supplies & Services,G57002/D200008,Technical Services Depot,Payments to Contractors External
Ashfield District Council,37UB,Orbis Protect Limited,V925913,15/06/2020,99.50,R & B Transformation 2,Supplies & Services,G57002/D200008,Technical Services Depot,Payments to Contractors External
Ashfield District Council,37UB,Orbis Protect Limited,V925914,15/06/2020,361.78,R & B Transformation 2,Supplies & Services,G57002/D200008,Technical Services Depot,Payments to Contractors External
Ashfield District Council,37UB,Orbis Protect Limited,V926393,23/06/2020,59.35,R & B Transformation 2,Supplies & Services,G57002/D200008,Technical Services Depot,Payments to Contractors External
Ashfield District Council,37UB,Orbis Protect Limited,V926394,23/06/2020,99.50,R & B Transformation 2,Supplies & Services,G57002/D200008,Technical Services Depot,Payments to Contractors External
Ashfield District Council,37UB,Orbis Protect Limited,V926395,23/06/2020,59.35,R & B Transformation 2,Supplies & Services,G57002/D200008,Technical Services Depot,Payments to Contractors External
Ashfield District Council,37UB,Orbis Protect Limited,V926396,23/06/2020,99.50,R & B Transformation 2,Supplies & Services,G57002/D200008,Technical Services Depot,Payments to Contractors External
Ashfield District Council,37UB,Orbis Protect Limited,V926397,23/06/2020,99.50,R & B Transformation 2,Supplies & Services,G57002/D200008,Technical Services Depot,Payments to Contractors External
Ashfield District Council,37UB,Orbis Protect Limited,V926398,23/06/2020,59.35,R & B Transformation 2,Supplies & Services,G57002/D200008,Technical Services Depot,Payments to Contractors External
Ashfield District Council,37UB,Orbis Protect Limited,V926399,23/06/2020,99.50,R & B Transformation 2,Supplies & Services,G57002/D200008,Technical Services Depot,Payments to Contractors External
Ashfield District Council,37UB,Orbis Protect Limited,V926400,23/06/2020,59.35,R & B Transformation 2,Supplies & Services,G57002/D200008,Technical Services Depot,Payments to Contractors External
Ashfield District Council,37UB,Orbis Protect Limited,V926401,23/06/2020,59.35,R & B Transformation 2,Supplies & Services,G57002/D200008,Technical Services Depot,Payments to Contractors External
Ashfield District Council,37UB,Orbis Protect Limited,V926402,23/06/2020,59.35,R & B Transformation 2,Supplies & Services,G57002/D200008,Technical Services Depot,Payments to Contractors External
Ashfield District Council,37UB,Orbis Protect Limited,V926403,23/06/2020,99.50,R & B Transformation 2,Supplies & Services,G57002/D200008,Technical Services Depot,Payments to Contractors External
Ashfield District Council,37UB,Orbis Protect Limited,V926436,23/06/2020,260.00,R & B Transformation 2,Supplies & Services,G57002/D200008,Technical Services Depot,Payments to Contractors External
Ashfield District Council,37UB,Orbis Protect Limited,V926437,23/06/2020,339.17,R & B Transformation 2,Supplies & Services,G57002/D200008,Technical Services Depot,Payments to Contractors External
Ashfield District Council,37UB,Orbis Protect Limited,V926438,23/06/2020,107.41,R & B Transformation 2,Supplies & Services,G57002/D200008,Technical Services Depot,Payments to Contractors External
Ashfield District Council,37UB,Orbis Protect Limited,V926439,23/06/2020,107.41,R & B Transformation 2,Supplies & Services,G57002/D200008,Technical Services Depot,Payments to Contractors External
Ashfield District Council,37UB,Orbis Protect Limited,V926440,23/06/2020,461.28,R & B Transformation 2,Supplies & Services,G57002/D200008,Technical Services Depot,Payments to Contractors External
Ashfield District Council,37UB,Orbis Protect Limited,V926441,23/06/2020,107.41,R & B Transformation 2,Supplies & Services,G57002/D200008,Technical Services Depot,Payments to Contractors External
Ashfield District Council,37UB,Orbis Protect Limited,V926516,23/06/2020,329.29,R & B Transformation 2,Supplies & Services,G57002/D200008,Technical Services Depot,Payments to Contractors External
Ashfield District Council,37UB,Orbis Protect Limited,V926869,29/06/2020,214.82,R & B Transformation 2,Supplies & Services,G57002/D200008,Technical Services Depot,Payments to Contractors External
Ashfield District Council,37UB,Orbis Protect Limited,V926870,29/06/2020,59.35,R & B Transformation 2,Supplies & Services,G57002/D200008,Technical Services Depot,Payments to Contractors External
Ashfield District Council,37UB,Orbis Protect Limited,V926871,29/06/2020,361.78,R & B Transformation 2,Supplies & Services,G57002/D200008,Technical Services Depot,Payments to Contractors External
Ashfield District Council,37UB,Orbis Protect Limited,V926872,29/06/2020,107.41,R & B Transformation 2,Supplies & Services,G57002/D200008,Technical Services Depot,Payments to Contractors External
Ashfield District Council,37UB,Orbis Protect Limited,V926873,29/06/2020,163.93,R & B Transformation 2,Supplies & Services,G57002/D200008,Technical Services Depot,Payments to Contractors External
Ashfield District Council,37UB,Orbis Protect Limited,V926874,29/06/2020,180.89,R & B Transformation 2,Supplies & Services,G57002/D200008,Technical Services Depot,Payments to Contractors External
Ashfield District Council,37UB,Orbis Protect Limited,V926875,29/06/2020,99.50,R & B Transformation 2,Supplies & Services,G57002/D200008,Technical Services Depot,Payments to Contractors External
Ashfield District Council,37UB,Orbis Protect Limited,V926876,29/06/2020,59.35,R & B Transformation 2,Supplies & Services,G57002/D200008,Technical Services Depot,Payments to Contractors External
Ashfield District Council,37UB,Orbis Protect Limited,V926877,29/06/2020,99.50,R & B Transformation 2,Supplies & Services,G57002/D200008,Technical Services Depot,Payments to Contractors External
Ashfield District Council,37UB,Orbis Protect Limited,V926878,29/06/2020,59.35,R & B Transformation 2,Supplies & Services,G57002/D200008,Technical Services Depot,Payments to Contractors External
Ashfield District Council,37UB,Orbis Protect Limited,V926879,29/06/2020,99.50,R & B Transformation 2,Supplies & Services,G57002/D200008,Technical Services Depot,Payments to Contractors External
Ashfield District Council,37UB,Orbis Protect Limited,V926880,29/06/2020,107.41,R & B Transformation 2,Supplies & Services,G57002/D200008,Technical Services Depot,Payments to Contractors External
Ashfield District Council,37UB,Orbis Protect Limited,V926881,29/06/2020,263.43,R & B Transformation 2,Supplies & Services,G57002/D200008,Technical Services Depot,Payments to Contractors External
Ashfield District Council,37UB,Orbis Protect Limited,V926882,29/06/2020,180.89,R & B Transformation 2,Supplies & Services,G57002/D200008,Technical Services Depot,Payments to Contractors External
Ashfield District Council,37UB,Orbis Protect Limited,V926883,29/06/2020,99.50,R & B Transformation 2,Supplies & Services,G57002/D200008,Technical Services Depot,Payments to Contractors External
Ashfield District Council,37UB,Orbis Protect Limited,V926884,29/06/2020,59.35,R & B Transformation 2,Supplies & Services,G57002/D200008,Technical Services Depot,Payments to Contractors External
Ashfield District Council,37UB,Orbis Protect Limited,V926885,29/06/2020,107.41,R & B Transformation 2,Supplies & Services,G57002/D200008,Technical Services Depot,Payments to Contractors External
Ashfield District Council,37UB,Orbis Protect Limited,V926886,29/06/2020,339.17,R & B Transformation 2,Supplies & Services,G57002/D200008,Technical Services Depot,Payments to Contractors External
Ashfield District Council,37UB,Orbis Protect Limited,V926887,29/06/2020,361.78,R & B Transformation 2,Supplies & Services,G57002/D200008,Technical Services Depot,Payments to Contractors External
Ashfield District Council,37UB,Orbis Protect Limited,V926888,29/06/2020,59.35,R & B Transformation 2,Supplies & Services,G57002/D200008,Technical Services Depot,Payments to Contractors External
Ashfield District Council,37UB,Orbis Protect Limited,V926889,29/06/2020,99.50,R & B Transformation 2,Supplies & Services,G57002/D200008,Technical Services Depot,Payments to Contractors External
Ashfield District Council,37UB,Orbis Protect Limited,V926890,29/06/2020,107.41,R & B Transformation 2,Supplies & Services,G57002/D200008,Technical Services Depot,Payments to Contractors External
Ashfield District Council,37UB,Orbis Protect Limited,V926891,29/06/2020,47.48,R & B Transformation 2,Supplies & Services,G57002/D200008,Technical Services Depot,Payments to Contractors External
Ashfield District Council,37UB,Parkin Contractors Limited,V926461,23/06/2020,290.00,R & B Transformation 2,Supplies & Services,G57002/D200008,Technical Services Depot,Payments to Contractors External
Ashfield District Council,37UB,Parkin Contractors Limited,V926462,23/06/2020,440.00,R & B Transformation 2,Supplies & Services,G57002/D200008,Technical Services Depot,Payments to Contractors External
Ashfield District Council,37UB,Parkin Contractors Limited,V926463,23/06/2020,636.00,R & B Transformation 2,Supplies & Services,G57002/D200008,Technical Services Depot,Payments to Contractors External
Ashfield District Council,37UB,Parkin Contractors Limited,V926464,23/06/2020,132.00,R & B Transformation 2,Supplies & Services,G57002/D200008,Technical Services Depot,Payments to Contractors External
Ashfield District Council,37UB,Parkin Contractors Limited,V926465,23/06/2020,741.60,R & B Transformation 2,Supplies & Services,G57002/D200008,Technical Services Depot,Payments to Contractors External
Ashfield District Council,37UB,Parkin Contractors Limited,V926466,23/06/2020,1377.11,R & B Transformation 2,Supplies & Services,G57002/D200008,Technical Services Depot,Payments to Contractors External
Ashfield District Council,37UB,Parkin Contractors Limited,V926838,29/06/2020,145.00,R & B Transformation 2,Supplies & Services,G57002/D200008,Technical Services Depot,Payments to Contractors External
Ashfield District Council,37UB,Parkin Contractors Limited,V926839,29/06/2020,1084.59,R & B Transformation 2,Supplies & Services,G57002/D200008,Technical Services Depot,Payments to Contractors External
Ashfield District Council,37UB,Parkin Contractors Limited,V926840,29/06/2020,169.95,R & B Transformation 2,Supplies & Services,G57002/D200008,Technical Services Depot,Payments to Contractors External
Ashfield District Council,37UB,Parkin Contractors Limited,V926841,29/06/2020,169.95,R & B Transformation 2,Supplies & Services,G57002/D200008,Technical Services Depot,Payments to Contractors External
Ashfield District Council,37UB,Parkin Contractors Limited,V926842,29/06/2020,312.10,R & B Transformation 2,Supplies & Services,G57002/D200008,Technical Services Depot,Payments to Contractors External
Ashfield District Council,37UB,Parkin Contractors Limited,V926843,29/06/2020,534.57,R & B Transformation 2,Supplies & Services,G57002/D200008,Technical Services Depot,Payments to Contractors External
Ashfield District Council,37UB,Parkin Contractors Limited,V926844,29/06/2020,66.95,R & B Transformation 2,Supplies & Services,G57002/D200008,Technical Services Depot,Payments to Contractors External
Ashfield District Council,37UB,Parkin Contractors Limited,V926845,29/06/2020,116.00,R & B Transformation 2,Supplies & Services,G57002/D200008,Technical Services Depot,Payments to Contractors External
Ashfield District Council,37UB,Smith Bros (Caer Conan) Wholesale Ltd,V923903,08/06/2020,600.00,R & B Transformation 2,Supplies & Services,G57000/D001004,Technical Services Depot,Chemicals and Materials Purchase
Ashfield District Council,37UB,Smith Bros (Caer Conan) Wholesale Ltd,V926962,29/06/2020,49.87,R & B Transformation 2,Supplies & Services,G57000/D001004,Technical Services Depot,Chemicals and Materials Purchase
Ashfield District Council,37UB,Supra UK Ltd t/a The Key Safe Company,V925908,15/06/2020,18.43,R & B Transformation 2,Supplies & Services,G57000/D001004,Technical Services Depot,Chemicals and Materials Purchase
Ashfield District Council,37UB,T&S Heating,V922540,02/06/2020,1602.57,R & B Transformation 2,Supplies & Services,G57002/D200008,Technical Services Depot,Payments to Contractors External
Ashfield District Council,37UB,T&S Heating,V926646,23/06/2020,992.00,R & B Transformation 2,Employee Expenses,G57000/A200004,Technical Services Depot,Agency Staff
Ashfield District Council,37UB,A B Waste Disposal,V925882,15/06/2020,185.00,R & B Transformation 2,Supplies & Services,G55006/D003001,Technical Services Management,Skip Hire
Ashfield District Council,37UB,A B Waste Disposal,V925882,15/06/2020,255.00,R & B Transformation 2,Supplies & Services,G55006/D003001,Technical Services Management,Skip Hire
Ashfield District Council,37UB,A B Waste Disposal,V926517,23/06/2020,235.00,R & B Transformation 2,Supplies & Services,G55006/D003001,Technical Services Management,Skip Hire
Ashfield District Council,37UB,A B Waste Disposal,V926518,23/06/2020,235.00,R & B Transformation 2,Supplies & Services,G55006/D003001,Technical Services Management,Skip Hire
Ashfield District Council,37UB,A B Waste Disposal,V926905,29/06/2020,235.00,R & B Transformation 2,Supplies & Services,G55006/D003001,Technical Services Management,Skip Hire
Ashfield District Council,37UB,A B Waste Disposal,V926906,29/06/2020,470.00,R & B Transformation 2,Supplies & Services,G55006/D003001,Technical Services Management,Skip Hire
Ashfield District Council,37UB,A B Waste Disposal,V926907,29/06/2020,550.00,R & B Transformation 2,Supplies & Services,G55006/D003001,Technical Services Management,Skip Hire
Ashfield District Council,37UB,A B Waste Disposal,V926908,29/06/2020,235.00,R & B Transformation 2,Supplies & Services,G55006/D003001,Technical Services Management,Skip Hire
Ashfield District Council,37UB,A B Waste Disposal,V926909,29/06/2020,185.00,R & B Transformation 2,Supplies & Services,G55006/D003001,Technical Services Management,Skip Hire
Ashfield District Council,37UB,A B Waste Disposal,V926910,29/06/2020,145.00,R & B Transformation 2,Supplies & Services,G55006/D003001,Technical Services Management,Skip Hire
Ashfield District Council,37UB,Capita Business Services Limited,V921554,18/06/2020,1925.00,R & B Transformation 2,Supplies & Services,G55000/D302001,Technical Services Management,Purchase
Ashfield District Council,37UB,Daisy Telecoms Ltd,V924016,11/06/2020,29.03,R & B Transformation 2,Supplies & Services,G55002/D301009,Technical Services Management,Repairs Call Handling & Online Tracking
Ashfield District Council,37UB,EE Limited,V924037,11/06/2020,61.50,R & B Transformation 2,Supplies & Services,G55001/D301003,Technical Services Management,Mobiles
Ashfield District Council,37UB,EE Limited,V924037,11/06/2020,26.50,R & B Transformation 2,Supplies & Services,G55004/D301003,Technical Services Management,Mobiles
Ashfield District Council,37UB,EE Limited,V925946,11/06/2020,66.90,R & B Transformation 2,Supplies & Services,G55001/D301003,Technical Services Management,Mobiles
Ashfield District Council,37UB,EE Limited,V925946,11/06/2020,26.50,R & B Transformation 2,Supplies & Services,G55004/D301003,Technical Services Management,Mobiles
Ashfield District Council,37UB,Virgin Media Payments Ltd,V924040,11/06/2020,119.68,R & B Transformation 2,Supplies & Services,G55002/D301009,Technical Services Management,Repairs Call Handling & Online Tracking
Ashfield District Council,37UB,Bibby Factors (Leicester) Ltd,V926758,25/06/2020,438.80,Housing & Assets 2,Employee Expenses,G52000/A200004,Tenancy Services,Agency Staff
Ashfield District Council,37UB,Fresh Start Recruitment,V925866,11/06/2020,101.50,Housing & Assets 2,Employee Expenses,G52000/A200004,Tenancy Services,Agency Staff
Ashfield District Council,37UB,Fresh Start Recruitment,V926767,25/06/2020,101.50,Housing & Assets 2,Employee Expenses,G52000/A200004,Tenancy Services,Agency Staff
Ashfield District Council,37UB,EE Limited,V924037,11/06/2020,213.00,R & B Transformation 2,Supplies & Services,G52000/D301003,Tenancy Services,Mobiles
Ashfield District Council,37UB,EE Limited,V925946,11/06/2020,213.00,R & B Transformation 2,Supplies & Services,G52000/D301003,Tenancy Services,Mobiles
Ashfield District Council,37UB,AKW Medi-Care Limited,V926519,23/06/2020,916.66,R & B Transformation 2,Supplies & Services,T35026/D200008,Housing Stock Accounts,Payments to Contractors External
Ashfield District Council,37UB,AKW Medi-Care Limited,V927020,29/06/2020,916.66,R & B Transformation 2,Supplies & Services,T35026/D200008,Housing Stock Accounts,Payments to Contractors External
Ashfield District Council,37UB,Arden Winch & Co Ltd,V922589,02/06/2020,700.00,R & B Transformation 2,Supplies & Services,T35026/D200008,Housing Stock Accounts,Payments to Contractors External
Ashfield District Council,37UB,City Plumbing Supplies Holdings Ltd,V922595,02/06/2020,67.80,R & B Transformation 2,Supplies & Services,T35026/D200008,Housing Stock Accounts,Payments to Contractors External
Ashfield District Council,37UB,City Plumbing Supplies Holdings Ltd,V922595,02/06/2020,6.30,R & B Transformation 2,Supplies & Services,T35026/D200008,Housing Stock Accounts,Payments to Contractors External
Ashfield District Council,37UB,City Plumbing Supplies Holdings Ltd,V922595,02/06/2020,45.00,R & B Transformation 2,Supplies & Services,T35026/D200008,Housing Stock Accounts,Payments to Contractors External
Ashfield District Council,37UB,City Plumbing Supplies Holdings Ltd,V922595,02/06/2020,1.70,R & B Transformation 2,Supplies & Services,T35026/D200008,Housing Stock Accounts,Payments to Contractors External
Ashfield District Council,37UB,City Plumbing Supplies Holdings Ltd,V922595,02/06/2020,306.30,R & B Transformation 2,Supplies & Services,T35026/D200008,Housing Stock Accounts,Payments to Contractors External
Ashfield District Council,37UB,City Plumbing Supplies Holdings Ltd,V922596,02/06/2020,102.50,R & B Transformation 2,Supplies & Services,T35026/D200008,Housing Stock Accounts,Payments to Contractors External
Ashfield District Council,37UB,City Plumbing Supplies Holdings Ltd,V922598,02/06/2020,182.72,R & B Transformation 2,Supplies & Services,T35026/D200008,Housing Stock Accounts,Payments to Contractors External
Ashfield District Council,37UB,City Plumbing Supplies Holdings Ltd,V922598,02/06/2020,95.30,R & B Transformation 2,Supplies & Services,T35026/D200008,Housing Stock Accounts,Payments to Contractors External
Ashfield District Council,37UB,City Plumbing Supplies Holdings Ltd,V922598,02/06/2020,42.68,R & B Transformation 2,Supplies & Services,T35026/D200008,Housing Stock Accounts,Payments to Contractors External
Ashfield District Council,37UB,City Plumbing Supplies Holdings Ltd,V923889,08/06/2020,4.95,R & B Transformation 2,Supplies & Services,T35026/D200008,Housing Stock Accounts,Payments to Contractors External
Ashfield District Council,37UB,City Plumbing Supplies Holdings Ltd,V923889,08/06/2020,49.20,R & B Transformation 2,Supplies & Services,T35026/D200008,Housing Stock Accounts,Payments to Contractors External
Ashfield District Council,37UB,City Plumbing Supplies Holdings Ltd,V923889,08/06/2020,6.90,R & B Transformation 2,Supplies & Services,T35026/D200008,Housing Stock Accounts,Payments to Contractors External
Ashfield District Council,37UB,City Plumbing Supplies Holdings Ltd,V923889,08/06/2020,42.68,R & B Transformation 2,Supplies & Services,T35026/D200008,Housing Stock Accounts,Payments to Contractors External
Ashfield District Council,37UB,City Plumbing Supplies Holdings Ltd,V923889,08/06/2020,105.00,R & B Transformation 2,Supplies & Services,T35026/D200008,Housing Stock Accounts,Payments to Contractors External
Ashfield District Council,37UB,City Plumbing Supplies Holdings Ltd,V923889,08/06/2020,49.26,R & B Transformation 2,Supplies & Services,T35026/D200008,Housing Stock Accounts,Payments to Contractors External
Ashfield District Council,37UB,City Plumbing Supplies Holdings Ltd,V923889,08/06/2020,76.20,R & B Transformation 2,Supplies & Services,T35026/D200008,Housing Stock Accounts,Payments to Contractors External
Ashfield District Council,37UB,City Plumbing Supplies Holdings Ltd,V923889,08/06/2020,75.27,R & B Transformation 2,Supplies & Services,T35026/D200008,Housing Stock Accounts,Payments to Contractors External
Ashfield District Council,37UB,City Plumbing Supplies Holdings Ltd,V923889,08/06/2020,120.96,R & B Transformation 2,Supplies & Services,T35026/D200008,Housing Stock Accounts,Payments to Contractors External
Ashfield District Council,37UB,City Plumbing Supplies Holdings Ltd,V923890,08/06/2020,190.60,R & B Transformation 2,Supplies & Services,T35026/D200008,Housing Stock Accounts,Payments to Contractors External
Ashfield District Council,37UB,City Plumbing Supplies Holdings Ltd,V923894,08/06/2020,105.15,R & B Transformation 2,Supplies & Services,T35026/D200008,Housing Stock Accounts,Payments to Contractors External
Ashfield District Council,37UB,City Plumbing Supplies Holdings Ltd,V923894,08/06/2020,237.75,R & B Transformation 2,Supplies & Services,T35026/D200008,Housing Stock Accounts,Payments to Contractors External
Ashfield District Council,37UB,City Plumbing Supplies Holdings Ltd,V923894,08/06/2020,123.30,R & B Transformation 2,Supplies & Services,T35026/D200008,Housing Stock Accounts,Payments to Contractors External
Ashfield District Council,37UB,City Plumbing Supplies Holdings Ltd,V923894,08/06/2020,87.50,R & B Transformation 2,Supplies & Services,T35026/D200008,Housing Stock Accounts,Payments to Contractors External
Ashfield District Council,37UB,City Plumbing Supplies Holdings Ltd,V923894,08/06/2020,14.70,R & B Transformation 2,Supplies & Services,T35026/D200008,Housing Stock Accounts,Payments to Contractors External
Ashfield District Council,37UB,City Plumbing Supplies Holdings Ltd,V923894,08/06/2020,60.60,R & B Transformation 2,Supplies & Services,T35026/D200008,Housing Stock Accounts,Payments to Contractors External
Ashfield District Council,37UB,City Plumbing Supplies Holdings Ltd,V923894,08/06/2020,56.00,R & B Transformation 2,Supplies & Services,T35026/D200008,Housing Stock Accounts,Payments to Contractors External
Ashfield District Council,37UB,City Plumbing Supplies Holdings Ltd,V923894,08/06/2020,34.20,R & B Transformation 2,Supplies & Services,T35026/D200008,Housing Stock Accounts,Payments to Contractors External
Ashfield District Council,37UB,City Plumbing Supplies Holdings Ltd,V923894,08/06/2020,95.30,R & B Transformation 2,Supplies & Services,T35026/D200008,Housing Stock Accounts,Payments to Contractors External
Ashfield District Council,37UB,City Plumbing Supplies Holdings Ltd,V923894,08/06/2020,216.24,R & B Transformation 2,Supplies & Services,T35026/D200008,Housing Stock Accounts,Payments to Contractors External
Ashfield District Council,37UB,City Plumbing Supplies Holdings Ltd,V923894,08/06/2020,134.40,R & B Transformation 2,Supplies & Services,T35026/D200008,Housing Stock Accounts,Payments to Contractors External
Ashfield District Council,37UB,City Plumbing Supplies Holdings Ltd,V923894,08/06/2020,3.40,R & B Transformation 2,Supplies & Services,T35026/D200008,Housing Stock Accounts,Payments to Contractors External
Ashfield District Council,37UB,City Plumbing Supplies Holdings Ltd,V923894,08/06/2020,44.40,R & B Transformation 2,Supplies & Services,T35026/D200008,Housing Stock Accounts,Payments to Contractors External
Ashfield District Council,37UB,City Plumbing Supplies Holdings Ltd,V923894,08/06/2020,31.20,R & B Transformation 2,Supplies & Services,T35026/D200008,Housing Stock Accounts,Payments to Contractors External
Ashfield District Council,37UB,City Plumbing Supplies Holdings Ltd,V923894,08/06/2020,438.00,R & B Transformation 2,Supplies & Services,T35026/D200008,Housing Stock Accounts,Payments to Contractors External
Ashfield District Council,37UB,City Plumbing Supplies Holdings Ltd,V923894,08/06/2020,30.90,R & B Transformation 2,Supplies & Services,T35026/D200008,Housing Stock Accounts,Payments to Contractors External
Ashfield District Council,37UB,City Plumbing Supplies Holdings Ltd,V923894,08/06/2020,240.80,R & B Transformation 2,Supplies & Services,T35026/D200008,Housing Stock Accounts,Payments to Contractors External
Ashfield District Council,37UB,City Plumbing Supplies Holdings Ltd,V923896,08/06/2020,408.40,R & B Transformation 2,Supplies & Services,T35026/D200008,Housing Stock Accounts,Payments to Contractors External
Ashfield District Council,37UB,City Plumbing Supplies Holdings Ltd,V923896,08/06/2020,1095.00,R & B Transformation 2,Supplies & Services,T35026/D200008,Housing Stock Accounts,Payments to Contractors External
Ashfield District Council,37UB,City Plumbing Supplies Holdings Ltd,V923898,08/06/2020,11.10,R & B Transformation 2,Supplies & Services,T35026/D200008,Housing Stock Accounts,Payments to Contractors External
Ashfield District Council,37UB,City Plumbing Supplies Holdings Ltd,V923898,08/06/2020,158.40,R & B Transformation 2,Supplies & Services,T35026/D200008,Housing Stock Accounts,Payments to Contractors External
Ashfield District Council,37UB,City Plumbing Supplies Holdings Ltd,V923899,08/06/2020,21.80,R & B Transformation 2,Supplies & Services,T35026/D200008,Housing Stock Accounts,Payments to Contractors External
Ashfield District Council,37UB,City Plumbing Supplies Holdings Ltd,V923900,08/06/2020,56.00,R & B Transformation 2,Supplies & Services,T35026/D200008,Housing Stock Accounts,Payments to Contractors External
Ashfield District Council,37UB,City Plumbing Supplies Holdings Ltd,V923900,08/06/2020,13.00,R & B Transformation 2,Supplies & Services,T35026/D200008,Housing Stock Accounts,Payments to Contractors External
Ashfield District Council,37UB,City Plumbing Supplies Holdings Ltd,V923900,08/06/2020,22.05,R & B Transformation 2,Supplies & Services,T35026/D200008,Housing Stock Accounts,Payments to Contractors External
Ashfield District Council,37UB,City Plumbing Supplies Holdings Ltd,V923900,08/06/2020,5.50,R & B Transformation 2,Supplies & Services,T35026/D200008,Housing Stock Accounts,Payments to Contractors External
Ashfield District Council,37UB,City Plumbing Supplies Holdings Ltd,V923900,08/06/2020,7.40,R & B Transformation 2,Supplies & Services,T35026/D200008,Housing Stock Accounts,Payments to Contractors External
Ashfield District Council,37UB,City Plumbing Supplies Holdings Ltd,V923900,08/06/2020,18.40,R & B Transformation 2,Supplies & Services,T35026/D200008,Housing Stock Accounts,Payments to Contractors External
Ashfield District Council,37UB,City Plumbing Supplies Holdings Ltd,V923901,08/06/2020,19.50,R & B Transformation 2,Supplies & Services,T35026/D200008,Housing Stock Accounts,Payments to Contractors External
Ashfield District Council,37UB,City Plumbing Supplies Holdings Ltd,V923901,08/06/2020,261.24,R & B Transformation 2,Supplies & Services,T35026/D200008,Housing Stock Accounts,Payments to Contractors External
Ashfield District Council,37UB,City Plumbing Supplies Holdings Ltd,V923901,08/06/2020,103.12,R & B Transformation 2,Supplies & Services,T35026/D200008,Housing Stock Accounts,Payments to Contractors External
Ashfield District Council,37UB,City Plumbing Supplies Holdings Ltd,V923901,08/06/2020,18.78,R & B Transformation 2,Supplies & Services,T35026/D200008,Housing Stock Accounts,Payments to Contractors External
Ashfield District Council,37UB,City Plumbing Supplies Holdings Ltd,V923901,08/06/2020,384.32,R & B Transformation 2,Supplies & Services,T35026/D200008,Housing Stock Accounts,Payments to Contractors External
Ashfield District Council,37UB,City Plumbing Supplies Holdings Ltd,V923901,08/06/2020,88.50,R & B Transformation 2,Supplies & Services,T35026/D200008,Housing Stock Accounts,Payments to Contractors External
Ashfield District Council,37UB,City Plumbing Supplies Holdings Ltd,V923901,08/06/2020,88.50,R & B Transformation 2,Supplies & Services,T35026/D200008,Housing Stock Accounts,Payments to Contractors External
Ashfield District Council,37UB,City Plumbing Supplies Holdings Ltd,V923901,08/06/2020,653.00,R & B Transformation 2,Supplies & Services,T35026/D200008,Housing Stock Accounts,Payments to Contractors External
Ashfield District Council,37UB,City Plumbing Supplies Holdings Ltd,V923901,08/06/2020,71.75,R & B Transformation 2,Supplies & Services,T35026/D200008,Housing Stock Accounts,Payments to Contractors External
Ashfield District Council,37UB,City Plumbing Supplies Holdings Ltd,V923901,08/06/2020,67.80,R & B Transformation 2,Supplies & Services,T35026/D200008,Housing Stock Accounts,Payments to Contractors External
Ashfield District Council,37UB,City Plumbing Supplies Holdings Ltd,V923901,08/06/2020,81.69,R & B Transformation 2,Supplies & Services,T35026/D200008,Housing Stock Accounts,Payments to Contractors External
Ashfield District Council,37UB,City Plumbing Supplies Holdings Ltd,V923901,08/06/2020,195.00,R & B Transformation 2,Supplies & Services,T35026/D200008,Housing Stock Accounts,Payments to Contractors External
Ashfield District Council,37UB,City Plumbing Supplies Holdings Ltd,V923901,08/06/2020,76.54,R & B Transformation 2,Supplies & Services,T35026/D200008,Housing Stock Accounts,Payments to Contractors External
Ashfield District Council,37UB,City Plumbing Supplies Holdings Ltd,V923901,08/06/2020,70.28,R & B Transformation 2,Supplies & Services,T35026/D200008,Housing Stock Accounts,Payments to Contractors External
Ashfield District Council,37UB,City Plumbing Supplies Holdings Ltd,V923901,08/06/2020,187.14,R & B Transformation 2,Supplies & Services,T35026/D200008,Housing Stock Accounts,Payments to Contractors External
Ashfield District Council,37UB,City Plumbing Supplies Holdings Ltd,V923906,08/06/2020,59.50,R & B Transformation 2,Supplies & Services,T35026/D200008,Housing Stock Accounts,Payments to Contractors External
Ashfield District Council,37UB,City Plumbing Supplies Holdings Ltd,V923907,08/06/2020,61.62,R & B Transformation 2,Supplies & Services,T35026/D200008,Housing Stock Accounts,Payments to Contractors External
Ashfield District Council,37UB,City Plumbing Supplies Holdings Ltd,V923907,08/06/2020,21.94,R & B Transformation 2,Supplies & Services,T35026/D200008,Housing Stock Accounts,Payments to Contractors External
Ashfield District Council,37UB,City Plumbing Supplies Holdings Ltd,V923908,08/06/2020,35.19,R & B Transformation 2,Supplies & Services,T35026/D200008,Housing Stock Accounts,Payments to Contractors External
Ashfield District Council,37UB,City Plumbing Supplies Holdings Ltd,V923908,08/06/2020,12.10,R & B Transformation 2,Supplies & Services,T35026/D200008,Housing Stock Accounts,Payments to Contractors External
Ashfield District Council,37UB,City Plumbing Supplies Holdings Ltd,V923908,08/06/2020,63.85,R & B Transformation 2,Supplies & Services,T35026/D200008,Housing Stock Accounts,Payments to Contractors External
Ashfield District Council,37UB,City Plumbing Supplies Holdings Ltd,V923908,08/06/2020,23.31,R & B Transformation 2,Supplies & Services,T35026/D200008,Housing Stock Accounts,Payments to Contractors External
Ashfield District Council,37UB,City Plumbing Supplies Holdings Ltd,V923908,08/06/2020,44.22,R & B Transformation 2,Supplies & Services,T35026/D200008,Housing Stock Accounts,Payments to Contractors External
Ashfield District Council,37UB,City Plumbing Supplies Holdings Ltd,V925892,15/06/2020,30.20,R & B Transformation 2,Supplies & Services,T35026/D200008,Housing Stock Accounts,Payments to Contractors External
Ashfield District Council,37UB,City Plumbing Supplies Holdings Ltd,V925892,15/06/2020,30.20,R & B Transformation 2,Supplies & Services,T35026/D200008,Housing Stock Accounts,Payments to Contractors External
Ashfield District Council,37UB,City Plumbing Supplies Holdings Ltd,V925892,15/06/2020,4.50,R & B Transformation 2,Supplies & Services,T35026/D200008,Housing Stock Accounts,Payments to Contractors External
Ashfield District Council,37UB,City Plumbing Supplies Holdings Ltd,V925892,15/06/2020,4.30,R & B Transformation 2,Supplies & Services,T35026/D200008,Housing Stock Accounts,Payments to Contractors External
Ashfield District Council,37UB,City Plumbing Supplies Holdings Ltd,V925892,15/06/2020,134.40,R & B Transformation 2,Supplies & Services,T35026/D200008,Housing Stock Accounts,Payments to Contractors External
Ashfield District Council,37UB,City Plumbing Supplies Holdings Ltd,V925897,15/06/2020,60.00,R & B Transformation 2,Supplies & Services,T35026/D200008,Housing Stock Accounts,Payments to Contractors External
Ashfield District Council,37UB,City Plumbing Supplies Holdings Ltd,V925898,15/06/2020,271.70,R & B Transformation 2,Supplies & Services,T35026/D200008,Housing Stock Accounts,Payments to Contractors External
Ashfield District Council,37UB,City Plumbing Supplies Holdings Ltd,V925898,15/06/2020,438.00,R & B Transformation 2,Supplies & Services,T35026/D200008,Housing Stock Accounts,Payments to Contractors External
Ashfield District Council,37UB,City Plumbing Supplies Holdings Ltd,V925898,15/06/2020,612.60,R & B Transformation 2,Supplies & Services,T35026/D200008,Housing Stock Accounts,Payments to Contractors External
Ashfield District Council,37UB,City Plumbing Supplies Holdings Ltd,V925901,15/06/2020,55.00,R & B Transformation 2,Supplies & Services,T35026/D200008,Housing Stock Accounts,Payments to Contractors External
Ashfield District Council,37UB,City Plumbing Supplies Holdings Ltd,V925902,15/06/2020,271.70,R & B Transformation 2,Supplies & Services,T35026/D200008,Housing Stock Accounts,Payments to Contractors External
Ashfield District Council,37UB,City Plumbing Supplies Holdings Ltd,V925909,15/06/2020,3.00,R & B Transformation 2,Supplies & Services,T35026/D200008,Housing Stock Accounts,Payments to Contractors External
Ashfield District Council,37UB,City Plumbing Supplies Holdings Ltd,V925910,15/06/2020,1.20,R & B Transformation 2,Supplies & Services,T35026/D200008,Housing Stock Accounts,Payments to Contractors External
Ashfield District Council,37UB,City Plumbing Supplies Holdings Ltd,V926315,23/06/2020,-4.98,R & B Transformation 2,Supplies & Services,T35026/D200008,Housing Stock Accounts,Payments to Contractors External
Ashfield District Council,37UB,City Plumbing Supplies Holdings Ltd,V926316,23/06/2020,-8.83,R & B Transformation 2,Supplies & Services,T35026/D200008,Housing Stock Accounts,Payments to Contractors External
Ashfield District Council,37UB,City Plumbing Supplies Holdings Ltd,V926317,23/06/2020,-7.30,R & B Transformation 2,Supplies & Services,T35026/D200008,Housing Stock Accounts,Payments to Contractors External
Ashfield District Council,37UB,City Plumbing Supplies Holdings Ltd,V926318,23/06/2020,-6.20,R & B Transformation 2,Supplies & Services,T35026/D200008,Housing Stock Accounts,Payments to Contractors External
Ashfield District Council,37UB,City Plumbing Supplies Holdings Ltd,V926319,23/06/2020,-2.26,R & B Transformation 2,Supplies & Services,T35026/D200008,Housing Stock Accounts,Payments to Contractors External
Ashfield District Council,37UB,City Plumbing Supplies Holdings Ltd,V926320,23/06/2020,-9.17,R & B Transformation 2,Supplies & Services,T35026/D200008,Housing Stock Accounts,Payments to Contractors External
Ashfield District Council,37UB,City Plumbing Supplies Holdings Ltd,V926321,23/06/2020,-1.09,R & B Transformation 2,Supplies & Services,T35026/D200008,Housing Stock Accounts,Payments to Contractors External
Ashfield District Council,37UB,City Plumbing Supplies Holdings Ltd,V926322,23/06/2020,-1.09,R & B Transformation 2,Supplies & Services,T35026/D200008,Housing Stock Accounts,Payments to Contractors External
Ashfield District Council,37UB,City Plumbing Supplies Holdings Ltd,V926324,23/06/2020,-152.50,R & B Transformation 2,Supplies & Services,T35026/D200008,Housing Stock Accounts,Payments to Contractors External
Ashfield District Council,37UB,City Plumbing Supplies Holdings Ltd,V926326,23/06/2020,-12.95,R & B Transformation 2,Supplies & Services,T35026/D200008,Housing Stock Accounts,Payments to Contractors External
Ashfield District Council,37UB,City Plumbing Supplies Holdings Ltd,V926328,23/06/2020,-3.60,R & B Transformation 2,Supplies & Services,T35026/D200008,Housing Stock Accounts,Payments to Contractors External
Ashfield District Council,37UB,City Plumbing Supplies Holdings Ltd,V926546,23/06/2020,30.00,R & B Transformation 2,Supplies & Services,T35026/D200008,Housing Stock Accounts,Payments to Contractors External
Ashfield District Council,37UB,City Plumbing Supplies Holdings Ltd,V926634,23/06/2020,41.40,R & B Transformation 2,Supplies & Services,T35026/D200008,Housing Stock Accounts,Payments to Contractors External
